Department Family,Entity,Date,Expense Type,Expense Area,Supplier,Transaction Number,Amount,Description
Department for Education,NATIONAL COLLEGE FOR TEACHING & LEADERSHIP,06/02/2018,Programme costs,Delivery Directorate,THE BRILLIANT CLUB,1041024774,"81,266.39",Funding to deliver policies (excluding consultancy) paid to third parties via a service delivery contract
Department for Education,NATIONAL COLLEGE FOR TEACHING & LEADERSHIP,06/02/2018,Programme costs,Delivery Directorate,THE BRILLIANT CLUB,1041024774,"86,119.25",Funding to deliver policies (excluding consultancy) paid to third parties via a service delivery contract
Department for Education,NATIONAL COLLEGE FOR TEACHING & LEADERSHIP,16/02/2018,Grants,Delivery Directorate,THE BRILLIANT CLUB,1041026478,"66,450.00",Grants to educational establishments or not for profit organisations including other businesses
Department for Education,NATIONAL COLLEGE FOR TEACHING & LEADERSHIP,06/02/2018,Programme costs,Delivery Directorate,EDUCATION DEVELOPMENT TRUST,1041024668,"58,282.46",Funding to deliver policies (excluding consultancy) paid to third parties via a service delivery contract
Department for Education,NATIONAL COLLEGE FOR TEACHING & LEADERSHIP,06/02/2018,Programme costs,Delivery Directorate,EDUCATION DEVELOPMENT TRUST,1041024668,"11,656.49",Funding to deliver policies (excluding consultancy) paid to third parties via a service delivery contract
Department for Education,NATIONAL COLLEGE FOR TEACHING & LEADERSHIP,23/02/2018,Programme costs,Delivery Directorate,UNIVERSITY OF BRIGHTON,1041027266,"165,728.21",Funding to deliver policies (excluding consultancy) paid to third parties via a service delivery contract
Department for Education,DEPARTMENT FOR EDUCATION,12/02/2018,Grants,Academies Regional Delivery Group,ACTIVATE LEARNING ACADEMY TRUST,1041025460,"230,000.00",Grants to educational establishments or not for profit organisations including other businesses
Department for Education,DEPARTMENT FOR EDUCATION,08/02/2018,Grants,Academies Regional Delivery Group,ARK SCHOOLS,1041025069,"200,000.00",Grants to educational establishments or not for profit organisations including other businesses
Department for Education,DEPARTMENT FOR EDUCATION,15/02/2018,Grants,Academies Regional Delivery Group,CORE EDUCATION TRUST,1041026216,"80,000.00",Capital grants paid to a private sector organisation
Department for Education,DEPARTMENT FOR EDUCATION,16/02/2018,Grants,Academies Regional Delivery Group,CORE EDUCATION TRUST,1041026451,"150,000.00",Grants to educational establishments or not for profit organisations including other businesses
Department for Education,DEPARTMENT FOR EDUCATION,26/02/2018,Grants,Academies Regional Delivery Group,GREENSHAW LEARNING TRUST,1041027372,"80,000.00",Capital grants paid to a private sector organisation
Department for Education,DEPARTMENT FOR EDUCATION,15/02/2018,Grants,Academies Regional Delivery Group,ST CLERES COOPERATIVE ACADEMY TRUST,1041026104,"80,000.00",Grants to educational establishments or not for profit organisations including other businesses
Department for Education,DEPARTMENT FOR EDUCATION,26/02/2018,Grants,Academies Regional Delivery Group,THE DIOCESE OF GLOUCESTER ACADEMIES TRUST,1041027394,"88,000.00",Grants to educational establishments or not for profit organisations including other businesses
Department for Education,DEPARTMENT FOR EDUCATION,26/02/2018,Grants,Academies Regional Delivery Group,THE LINCOLNSHIRE EDUCATIONAL TRUST LTD,1041027508,"80,000.00",Capital grants paid to a private sector organisation
Department for Education,DEPARTMENT FOR EDUCATION,08/02/2018,Grants,Academies Regional Delivery Group,THE RUTLAND LEARNING TRUST,1041025143,"85,000.00",Grants to educational establishments or not for profit organisations including other businesses
Department for Education,DEPARTMENT FOR EDUCATION,21/02/2018,Grants,Office of the Schools Commissioner Group,YORKSHIRE ENDEAVOUR ACADEMY TRUST,1041026991,"137,725.00",Grants to educational establishments or not for profit organisations including other businesses
Department for Education,DEPARTMENT FOR EDUCATION,05/02/2018,Grants,Special Educational Needs and Disadvantage Group,SHAW EDUCATION TRUST,1041024564,"40,000.00",Grants to educational establishments or not for profit organisations including other businesses
Department for Education,DEPARTMENT FOR EDUCATION,05/02/2018,Grants,Special Educational Needs and Disadvantage Group,ST JOHN THE BAPTIST CATHOLIC MAT,1041024602,"40,000.00",Grants to educational establishments or not for profit organisations including other businesses
Department for Education,DEPARTMENT FOR EDUCATION,05/02/2018,Grants,Special Educational Needs and Disadvantage Group,WYNDHAM PRIMARY ACADEMY,1041024570,"40,000.00",Grants to educational establishments or not for profit organisations including other businesses
Department for Education,DEPARTMENT FOR EDUCATION,28/02/2018,Facilities,Property Asset Management Group,AMEY,1041027673,"30,802.75",Property management
Department for Education,DEPARTMENT FOR EDUCATION,28/02/2018,Energy and Fuels,Property Asset Management Group,EDF ENERGY,1041027641,"194,800.00",Electricity supply
Department for Education,DEPARTMENT FOR EDUCATION,06/02/2018,Facilities,Property Asset Management Group,GVA GRIMLEY LTD,1041024718,"25,000.00",Property management
Department for Education,DEPARTMENT FOR EDUCATION,06/02/2018,Facilities,Property Asset Management Group,GVA GRIMLEY LTD,1041024718,"5,000.00",Property management
Department for Education,DEPARTMENT FOR EDUCATION,15/02/2018,Facilities,Property Asset Management Group,GVA GRIMLEY LTD,1041026063,"41,331.07",Rent
Department for Education,DEPARTMENT FOR EDUCATION,16/02/2018,Facilities,Property Asset Management Group,GVA GRIMLEY LTD,1041026300,"117,164.10",Rent
Department for Education,DEPARTMENT FOR EDUCATION,27/02/2018,Facilities,Property Asset Management Group,GVA GRIMLEY LTD,1041027555,"586,211.91",Business rates
Department for Education,DEPARTMENT FOR EDUCATION,27/02/2018,Facilities,Property Asset Management Group,GVA GRIMLEY LTD,1041027555,"205,108.00",Business rates
Department for Education,DEPARTMENT FOR EDUCATION,16/02/2018,Facilities,Property Asset Management Group,GVA GRIMLEY LTD DCLG,1041026511,"103,068.77",Rent
Department for Education,DEPARTMENT FOR EDUCATION,28/02/2018,Facilities,Property Asset Management Group,GVA GRIMLEY LTD DCLG,1041027828,"366,950.80",Rent
Department for Education,DEPARTMENT FOR EDUCATION,23/02/2018,Facilities,Property Asset Management Group,HOME OFFICE,1041027291,"3,510,000.00",Business rates
Department for Education,DEPARTMENT FOR EDUCATION,23/02/2018,Facilities,Property Asset Management Group,HOME OFFICE,1041027291,"3,510,000.00",Business rates
Department for Education,DEPARTMENT FOR EDUCATION,02/02/2018,Facilities,Property Asset Management Group,INTERSERVE FACILITIES MANAGEMENT LTD,1041024264,"95,316.58",Property management
Department for Education,DEPARTMENT FOR EDUCATION,02/02/2018,Facilities,Property Asset Management Group,INTERSERVE FACILITIES MANAGEMENT LTD,1041024264,"132,414.96",Property management
Department for Education,DEPARTMENT FOR EDUCATION,02/02/2018,Facilities,Property Asset Management Group,INTERSERVE FACILITIES MANAGEMENT LTD,1041024264,"19,063.32",Property management
Department for Education,DEPARTMENT FOR EDUCATION,02/02/2018,Facilities,Property Asset Management Group,INTERSERVE FACILITIES MANAGEMENT LTD,1041024264,"26,482.99",Property management
Department for Education,DEPARTMENT FOR EDUCATION,05/02/2018,Facilities,Property Asset Management Group,INTERSERVE FACILITIES MANAGEMENT LTD,1041024579,"154,652.09",Property management
Department for Education,DEPARTMENT FOR EDUCATION,05/02/2018,Facilities,Property Asset Management Group,INTERSERVE FACILITIES MANAGEMENT LTD,1041024579,"30,930.42",Property management
Department for Education,DEPARTMENT FOR EDUCATION,05/02/2018,Facilities,Property Asset Management Group,INTERSERVE FACILITIES MANAGEMENT LTD,1041024579,"23,285.01",Property management
Department for Education,DEPARTMENT FOR EDUCATION,05/02/2018,Facilities,Property Asset Management Group,INTERSERVE FACILITIES MANAGEMENT LTD,1041024579,"257,651.81",Property management
Department for Education,DEPARTMENT FOR EDUCATION,05/02/2018,Facilities,Property Asset Management Group,INTERSERVE FACILITIES MANAGEMENT LTD,1041024579,"4,657.00",Property management
Department for Education,DEPARTMENT FOR EDUCATION,05/02/2018,Facilities,Property Asset Management Group,INTERSERVE FACILITIES MANAGEMENT LTD,1041024579,"51,530.36",Property management
Department for Education,DEPARTMENT FOR EDUCATION,05/02/2018,Facilities,Property Asset Management Group,INTERSERVE FACILITIES MANAGEMENT LTD,1041024579,"175,551.64",Property management
Department for Education,DEPARTMENT FOR EDUCATION,05/02/2018,Facilities,Property Asset Management Group,INTERSERVE FACILITIES MANAGEMENT LTD,1041024579,"35,110.33",Property management
Department for Education,DEPARTMENT FOR EDUCATION,06/02/2018,Facilities,Property Asset Management Group,INTERSERVE FACILITIES MANAGEMENT LTD,1041024715,"107,263.07",Property management
Department for Education,DEPARTMENT FOR EDUCATION,06/02/2018,Facilities,Property Asset Management Group,INTERSERVE FACILITIES MANAGEMENT LTD,1041024715,"21,452.61",Property management
Department for Education,DEPARTMENT FOR EDUCATION,08/02/2018,Facilities,Property Asset Management Group,INTERSERVE FACILITIES MANAGEMENT LTD,1041025061,"26,165.33",Property management
Department for Education,DEPARTMENT FOR EDUCATION,08/02/2018,Facilities,Property Asset Management Group,INTERSERVE FACILITIES MANAGEMENT LTD,1041025061,"67,921.24",Property management
Department for Education,DEPARTMENT FOR EDUCATION,08/02/2018,Facilities,Property Asset Management Group,INTERSERVE FACILITIES MANAGEMENT LTD,1041025061,"5,233.07",Property management
Department for Education,DEPARTMENT FOR EDUCATION,08/02/2018,Facilities,Property Asset Management Group,INTERSERVE FACILITIES MANAGEMENT LTD,1041025061,"13,584.25",Property management
Department for Education,DEPARTMENT FOR EDUCATION,08/02/2018,Facilities,Property Asset Management Group,INTERSERVE FACILITIES MANAGEMENT LTD,1041025061,"290,246.20",Property management
Department for Education,DEPARTMENT FOR EDUCATION,08/02/2018,Facilities,Property Asset Management Group,INTERSERVE FACILITIES MANAGEMENT LTD,1041025061,"58,049.24",Property management
Department for Education,DEPARTMENT FOR EDUCATION,20/02/2018,Facilities,Property Asset Management Group,INTERSERVE FACILITIES MANAGEMENT LTD,1041026728,"99,497.68",Property management
Department for Education,DEPARTMENT FOR EDUCATION,20/02/2018,Facilities,Property Asset Management Group,INTERSERVE FACILITIES MANAGEMENT LTD,1041026728,"19,899.54",Property management
Department for Education,DEPARTMENT FOR EDUCATION,27/02/2018,Facilities,Property Asset Management Group,INTERSERVE FACILITIES MANAGEMENT LTD,1041027553,"175,551.64",Property management
Department for Education,DEPARTMENT FOR EDUCATION,27/02/2018,Facilities,Property Asset Management Group,INTERSERVE FACILITIES MANAGEMENT LTD,1041027553,"35,110.33",Property management
Department for Education,DEPARTMENT FOR EDUCATION,27/02/2018,Facilities,Property Asset Management Group,INTERSERVE FACILITIES MANAGEMENT LTD,1041027583,"93,067.96",Property management
Department for Education,DEPARTMENT FOR EDUCATION,27/02/2018,Facilities,Property Asset Management Group,INTERSERVE FACILITIES MANAGEMENT LTD,1041027583,"132,945.26",Property management
Department for Education,DEPARTMENT FOR EDUCATION,27/02/2018,Facilities,Property Asset Management Group,INTERSERVE FACILITIES MANAGEMENT LTD,1041027583,"18,613.59",Property management
Department for Education,DEPARTMENT FOR EDUCATION,27/02/2018,Facilities,Property Asset Management Group,INTERSERVE FACILITIES MANAGEMENT LTD,1041027583,"26,589.05",Property management
Department for Education,DEPARTMENT FOR EDUCATION,28/02/2018,Facilities,Property Asset Management Group,INTERSERVE FACILITIES MANAGEMENT LTD,1041027647,"23,285.01",Property management
Department for Education,DEPARTMENT FOR EDUCATION,28/02/2018,Facilities,Property Asset Management Group,INTERSERVE FACILITIES MANAGEMENT LTD,1041027647,"105,001.22",Property management
Department for Education,DEPARTMENT FOR EDUCATION,28/02/2018,Facilities,Property Asset Management Group,INTERSERVE FACILITIES MANAGEMENT LTD,1041027647,"258,458.93",Property management
Department for Education,DEPARTMENT FOR EDUCATION,28/02/2018,Facilities,Property Asset Management Group,INTERSERVE FACILITIES MANAGEMENT LTD,1041027647,"4,657.00",Property management
Department for Education,DEPARTMENT FOR EDUCATION,28/02/2018,Facilities,Property Asset Management Group,INTERSERVE FACILITIES MANAGEMENT LTD,1041027647,"21,000.24",Property management
Department for Education,DEPARTMENT FOR EDUCATION,28/02/2018,Facilities,Property Asset Management Group,INTERSERVE FACILITIES MANAGEMENT LTD,1041027647,"51,691.79",Property management
Department for Education,DEPARTMENT FOR EDUCATION,06/02/2018,Facilities,Property Asset Management Group,MACE LTD,1041024691,"147,963.00",Property management
Department for Education,DEPARTMENT FOR EDUCATION,06/02/2018,Facilities,Property Asset Management Group,MACE LTD,1041024691,"29,592.60",Property management
Department for Education,DEPARTMENT FOR EDUCATION,14/02/2018,Facilities,Property Asset Management Group,MACE LTD,1041025653,"56,186.00",Capital Expenditure
Department for Education,DEPARTMENT FOR EDUCATION,14/02/2018,Facilities,Property Asset Management Group,MACE LTD,1041025653,"194,683.00",Capital Expenditure
Department for Education,DEPARTMENT FOR EDUCATION,14/02/2018,Facilities,Property Asset Management Group,MACE LTD,1041025653,"120,777.00",Property management
Department for Education,DEPARTMENT FOR EDUCATION,14/02/2018,Facilities,Property Asset Management Group,MACE LTD,1041025653,"24,155.40",Property management
Department for Education,DEPARTMENT FOR EDUCATION,15/02/2018,Facilities,Property Asset Management Group,PHUSEI LTD,1041025933,"40,958.48","Low value furniture, fixtures and fittings"
Department for Education,DEPARTMENT FOR EDUCATION,15/02/2018,Facilities,Property Asset Management Group,PHUSEI LTD,1041025933,"8,191.70","Low value furniture, fixtures and fittings"
Department for Education,DEPARTMENT FOR EDUCATION,15/02/2018,Facilities,Property Asset Management Group,WILLMOTT DIXON CONSTRUCTION LTD,1041025934,"1,838,460.83",Property management
Department for Education,DEPARTMENT FOR EDUCATION,15/02/2018,Facilities,Property Asset Management Group,WILLMOTT DIXON INTERIORS LTD,1041026200,"1,169,290.86",Property management
Department for Education,DEPARTMENT FOR EDUCATION,06/02/2018,Grants,Free Schools Group,CATHEDRAL SCHOOLS TRUST,1041024754,"30,000.00",Grants to educational establishments or not for profit organisations including other businesses
Department for Education,DEPARTMENT FOR EDUCATION,21/02/2018,Grants,Free Schools Group,CHILFORD HUNDRED EDUCATION TRUST,1041026980,"25,000.00",Grants to educational establishments or not for profit organisations including other businesses
Department for Education,DEPARTMENT FOR EDUCATION,21/02/2018,Grants,Free Schools Group,FULBRIDGE ACADEMY,1041027020,"30,000.00",Grants to educational establishments or not for profit organisations including other businesses
Department for Education,DEPARTMENT FOR EDUCATION,21/02/2018,Grants,Free Schools Group,MOOR END ACADEMIES TRUST,1041027030,"25,000.00",Grants to educational establishments or not for profit organisations including other businesses
Department for Education,DEPARTMENT FOR EDUCATION,15/02/2018,Grants,Free Schools Group,NEW SCHOOLS NETWORK,1041026139,"131,018.97",Grants to educational establishments or not for profit organisations including other businesses
Department for Education,DEPARTMENT FOR EDUCATION,05/02/2018,Grants,Free Schools Group,POLYMAT,1041024590,"40,000.00",Grants to educational establishments or not for profit organisations including other businesses
Department for Education,DEPARTMENT FOR EDUCATION,21/02/2018,Grants,Free Schools Group,PRINCE ALBERT JUNIOR & INFANT SCHOOL,1041027076,"30,000.00",Grants to educational establishments or not for profit organisations including other businesses
Department for Education,DEPARTMENT FOR EDUCATION,05/02/2018,Grants,Free Schools Group,SOLIHULL ALTERNATIVE PROVISION ACADEMY LTD,1041024554,"84,411.00",Grants to educational establishments or not for profit organisations including other businesses
Department for Education,DEPARTMENT FOR EDUCATION,21/02/2018,Grants,Free Schools Group,THE GORSE ACADEMIES TRUST,1041026936,"25,000.00",Grants to educational establishments or not for profit organisations including other businesses
Department for Education,DEPARTMENT FOR EDUCATION,21/02/2018,Grants,Free Schools Group,WELLSPRING ACADEMY TRUST,1041026951,"100,000.00",Grants to educational establishments or not for profit organisations including other businesses
Department for Education,DEPARTMENT FOR EDUCATION,02/02/2018,Grants,Early Years Group,E QUALITAS PROFESSIONAL SERVICES LTD,1041024380,"72,990.00",Grants to educational establishments or not for profit organisations including other businesses
Department for Education,DEPARTMENT FOR EDUCATION,15/02/2018,Grants,Special Educational Needs and Disadvantage Group,EAST RIDING OF YORKSHIRE,1041026188,"155,863.00",Grants to local authorities / other establishments within aggregate external funding or aggregate exchequer grant
Department for Education,DEPARTMENT FOR EDUCATION,16/02/2018,Grants,Special Educational Needs and Disadvantage Group,EAST RIDING OF YORKSHIRE,1041026344,"55,587.00",Grants to local authorities / other establishments within aggregate external funding or aggregate exchequer grant
Department for Education,DEPARTMENT FOR EDUCATION,21/02/2018,Grants,Special Educational Needs and Disadvantage Group,EAST RIDING OF YORKSHIRE,1041026839,"56,024.00",Grants to local authorities / other establishments within aggregate external funding or aggregate exchequer grant
Department for Education,DEPARTMENT FOR EDUCATION,15/02/2018,Grants,Special Educational Needs and Disadvantage Group,EAST SUSSEX COUNTY COUNCIL,1041026086,"245,980.00",Grants to local authorities / other establishments within aggregate external funding or aggregate exchequer grant
Department for Education,DEPARTMENT FOR EDUCATION,16/02/2018,Grants,Special Educational Needs and Disadvantage Group,EAST SUSSEX COUNTY COUNCIL,1041026298,"76,650.00",Grants to local authorities / other establishments within aggregate external funding or aggregate exchequer grant
Department for Education,DEPARTMENT FOR EDUCATION,21/02/2018,Grants,Special Educational Needs and Disadvantage Group,EAST SUSSEX COUNTY COUNCIL,1041026927,"87,419.00",Grants to local authorities / other establishments within aggregate external funding or aggregate exchequer grant
Department for Education,DEPARTMENT FOR EDUCATION,16/02/2018,Professional Services Other,Special Educational Needs and Disadvantage Group,ECORYS UK LTD,1041026363,"26,635.00",Research and evaluation activities
Department for Education,DEPARTMENT FOR EDUCATION,02/02/2018,Grants,Early Years Group,EDGE HILL UNIVERSITY,1041024408,"51,570.00",Grants to educational establishments or not for profit organisations including other businesses
Department for Education,DEPARTMENT FOR EDUCATION,15/02/2018,Grants,Special Educational Needs and Disadvantage Group,ESSEX COUNTY COUNCIL,1041026031,"670,036.00",Grants to local authorities / other establishments within aggregate external funding or aggregate exchequer grant
Department for Education,DEPARTMENT FOR EDUCATION,16/02/2018,Grants,Special Educational Needs and Disadvantage Group,ESSEX COUNTY COUNCIL,1041026468,"175,764.00",Grants to local authorities / other establishments within aggregate external funding or aggregate exchequer grant
Department for Education,DEPARTMENT FOR EDUCATION,21/02/2018,Grants,Special Educational Needs and Disadvantage Group,ESSEX COUNTY COUNCIL,1041026870,"242,528.00",Grants to local authorities / other establishments within aggregate external funding or aggregate exchequer grant
Department for Education,DEPARTMENT FOR EDUCATION,02/02/2018,Grants,Early Years Group,ESSEX PRY SCHOOLS TRAINING GROUP,1041024400,"30,240.00",Grants to educational establishments or not for profit organisations including other businesses
Department for Education,DEPARTMENT FOR EDUCATION,28/02/2018,Grants,Early Years Group,FAMILY & CHILDCARE TRUST,1041027654,"84,894.12",Grants to educational establishments or not for profit organisations including other businesses
Department for Education,DEPARTMENT FOR EDUCATION,15/02/2018,Grants,Special Educational Needs and Disadvantage Group,GATESHEAD MBC,1041026149,"108,502.00",Grants to local authorities / other establishments within aggregate external funding or aggregate exchequer grant
Department for Education,DEPARTMENT FOR EDUCATION,16/02/2018,Grants,Special Educational Needs and Disadvantage Group,GATESHEAD MBC,1041026291,"44,517.00",Grants to local authorities / other establishments within aggregate external funding or aggregate exchequer grant
Department for Education,DEPARTMENT FOR EDUCATION,21/02/2018,Grants,Special Educational Needs and Disadvantage Group,GATESHEAD MBC,1041026900,"33,066.00",Grants to local authorities / other establishments within aggregate external funding or aggregate exchequer grant
Department for Education,DEPARTMENT FOR EDUCATION,15/02/2018,Grants,Special Educational Needs and Disadvantage Group,GLOUCESTERSHIRE COUNTY COUNCIL,1041026037,"289,788.00",Grants to local authorities / other establishments within aggregate external funding or aggregate exchequer grant
Department for Education,DEPARTMENT FOR EDUCATION,16/02/2018,Grants,Special Educational Needs and Disadvantage Group,GLOUCESTERSHIRE COUNTY COUNCIL,1041026485,"86,889.00",Grants to local authorities / other establishments within aggregate external funding or aggregate exchequer grant
Department for Education,DEPARTMENT FOR EDUCATION,21/02/2018,Grants,Special Educational Needs and Disadvantage Group,GLOUCESTERSHIRE COUNTY COUNCIL,1041026793,"104,469.00",Grants to local authorities / other establishments within aggregate external funding or aggregate exchequer grant
Department for Education,DEPARTMENT FOR EDUCATION,02/02/2018,Grants,Early Years Group,KINGSTON UNIVERSITY,1041024414,"28,980.00",Grants to educational establishments or not for profit organisations including other businesses
Department for Education,DEPARTMENT FOR EDUCATION,02/02/2018,Grants,Early Years Group,UNIVERSITY OF BEDFORDSHIRE,1041024316,"31,320.00",Grants to educational establishments or not for profit organisations including other businesses
Department for Education,DEPARTMENT FOR EDUCATION,02/02/2018,Grants,Early Years Group,UNIVERSITY OF DERBY,1041024300,"29,790.00",Grants to educational establishments or not for profit organisations including other businesses
Department for Education,DEPARTMENT FOR EDUCATION,02/02/2018,Grants,Early Years Group,UNIVERSITY OF GLOUCESTERSHIRE,1041024298,"37,800.00",Grants to educational establishments or not for profit organisations including other businesses
Department for Education,DEPARTMENT FOR EDUCATION,02/02/2018,Grants,Early Years Group,UNIVERSITY OF SUSSEX,1041024256,"30,690.00",Grants to educational establishments or not for profit organisations including other businesses
Department for Education,DEPARTMENT FOR EDUCATION,28/02/2018,Grants,Academies Regional Delivery Group,ALPHA ACADEMIES TRUST,1041027792,"25,000.00",Grants to educational establishments or not for profit organisations including other businesses
Department for Education,DEPARTMENT FOR EDUCATION,12/02/2018,Grants,Academies Regional Delivery Group,ARTHUR TERRY LEARNING PARTNERSHIP,1041025308,"25,000.00",Grants to educational establishments or not for profit organisations including other businesses
Department for Education,DEPARTMENT FOR EDUCATION,15/02/2018,Grants,Academies Regional Delivery Group,ARTHUR TERRY LEARNING PARTNERSHIP,1041026133,"25,000.00",Grants to educational establishments or not for profit organisations including other businesses
Department for Education,DEPARTMENT FOR EDUCATION,28/02/2018,Grants,Academies Regional Delivery Group,GLOUCESTERSHIRE LEARNING ALLIANCE,1041027649,"70,000.00",Grants to educational establishments or not for profit organisations including other businesses
Department for Education,DEPARTMENT FOR EDUCATION,08/02/2018,Grants,Academies Regional Delivery Group,MANOR MULTI ACADEMY TRUST,1041025188,"25,000.00",Grants to educational establishments or not for profit organisations including other businesses
Department for Education,DEPARTMENT FOR EDUCATION,08/02/2018,Grants,Academies Regional Delivery Group,MANOR MULTI ACADEMY TRUST,1041025188,"70,000.00",Grants to educational establishments or not for profit organisations including other businesses
Department for Education,DEPARTMENT FOR EDUCATION,08/02/2018,Grants,Academies Regional Delivery Group,NORTHWOOD PARK EDUCATIONAL TRUST,1041025166,"25,000.00",Grants to educational establishments or not for profit organisations including other businesses
Department for Education,DEPARTMENT FOR EDUCATION,08/02/2018,Grants,Academies Regional Delivery Group,PERRY HALL MULTI ACADEMY TRUST,1041025057,"70,000.00",Grants to educational establishments or not for profit organisations including other businesses
Department for Education,DEPARTMENT FOR EDUCATION,01/02/2018,Grants,Academies Regional Delivery Group,ST BARTS MULTI ACADEMY TRUST,1041024150,"25,000.00",Grants to educational establishments or not for profit organisations including other businesses
Department for Education,DEPARTMENT FOR EDUCATION,21/02/2018,Grants,Academies Regional Delivery Group,STAFFORDSHIRE UNIVERSITY ACADEMY,1041026940,"25,000.00",Grants to educational establishments or not for profit organisations including other businesses
Department for Education,DEPARTMENT FOR EDUCATION,21/02/2018,Grants,Academies Regional Delivery Group,STAFFORDSHIRE UNIVERSITY ACADEMY,1041026940,"25,000.00",Grants to educational establishments or not for profit organisations including other businesses
Department for Education,DEPARTMENT FOR EDUCATION,21/02/2018,Grants,Academies Regional Delivery Group,STAFFORDSHIRE UNIVERSITY ACADEMY,1041026940,"25,000.00",Grants to educational establishments or not for profit organisations including other businesses
Department for Education,DEPARTMENT FOR EDUCATION,08/02/2018,Grants,Academies Regional Delivery Group,THE COMMUNITY ACADEMIES TRUST,1041025081,"70,000.00",Grants to educational establishments or not for profit organisations including other businesses
Department for Education,DEPARTMENT FOR EDUCATION,15/02/2018,Grants,Academies Regional Delivery Group,THE WILFRED OWEN SCHOOL,1041026024,"25,000.00",Grants to educational establishments or not for profit organisations including other businesses
Department for Education,DEPARTMENT FOR EDUCATION,28/02/2018,Grants,Careers and Further Education Funding Group,THE CAREERS & ENTERPRISE COMPANY,1041027806,"2,524,209.00",Grants to educational establishments or not for profit organisations including other businesses
Department for Education,NATIONAL COLLEGE FOR TEACHING & LEADERSHIP,14/02/2018,Programme costs,Delivery Directorate,TELEPERFORMANCE LTD,1041025666,"21,244.94","Fees / expenses of professionals such as auditors, accountants, lawyers, etc. engaged to provide advice or opinion on how to affect something"
Department for Education,NATIONAL COLLEGE FOR TEACHING & LEADERSHIP,14/02/2018,Programme costs,Delivery Directorate,TELEPERFORMANCE LTD,1041025666,"44,578.00","Fees / expenses of professionals such as auditors, accountants, lawyers, etc. engaged to provide advice or opinion on how to affect something"
Department for Education,NATIONAL COLLEGE FOR TEACHING & LEADERSHIP,14/02/2018,Programme costs,Delivery Directorate,TELEPERFORMANCE LTD,1041025666,"133,701.18","Fees / expenses of professionals such as auditors, accountants, lawyers, etc. engaged to provide advice or opinion on how to affect something"
Department for Education,NATIONAL COLLEGE FOR TEACHING & LEADERSHIP,14/02/2018,Programme costs,Delivery Directorate,TELEPERFORMANCE LTD,1041025666,"202,478.00","Fees / expenses of professionals such as auditors, accountants, lawyers, etc. engaged to provide advice or opinion on how to affect something"
Department for Education,NATIONAL COLLEGE FOR TEACHING & LEADERSHIP,14/02/2018,Programme costs,Delivery Directorate,TELEPERFORMANCE LTD,1041025666,"4,248.99","Fees / expenses of professionals such as auditors, accountants, lawyers, etc. engaged to provide advice or opinion on how to affect something"
Department for Education,NATIONAL COLLEGE FOR TEACHING & LEADERSHIP,14/02/2018,Programme costs,Delivery Directorate,TELEPERFORMANCE LTD,1041025666,"8,915.60","Fees / expenses of professionals such as auditors, accountants, lawyers, etc. engaged to provide advice or opinion on how to affect something"
Department for Education,NATIONAL COLLEGE FOR TEACHING & LEADERSHIP,14/02/2018,Programme costs,Delivery Directorate,TELEPERFORMANCE LTD,1041025666,"26,740.24","Fees / expenses of professionals such as auditors, accountants, lawyers, etc. engaged to provide advice or opinion on how to affect something"
Department for Education,NATIONAL COLLEGE FOR TEACHING & LEADERSHIP,14/02/2018,Programme costs,Delivery Directorate,TELEPERFORMANCE LTD,1041025666,"40,495.60","Fees / expenses of professionals such as auditors, accountants, lawyers, etc. engaged to provide advice or opinion on how to affect something"
Department for Education,DEPARTMENT FOR EDUCATION,26/02/2018,Professional Services Other,Strategic Analysis and Research Group,CAMBRIDGE INFORMATION LTD,1041027403,"29,994.00",Research and evaluation activities
Department for Education,DEPARTMENT FOR EDUCATION,26/02/2018,Professional Services Other,Strategic Analysis and Research Group,CAMBRIDGE INFORMATION LTD,1041027403,"5,998.80",Research and evaluation activities
Department for Education,DEPARTMENT FOR EDUCATION,06/02/2018,Professional Services Other,Strategic Analysis and Research Group,NATIONAL CENTRE FOR SOCIAL RESEARCH,1041024807,"185,820.00",Research and evaluation activities
Department for Education,DEPARTMENT FOR EDUCATION,06/02/2018,Professional Services Other,Strategic Analysis and Research Group,PEARSON EDUCATION LTD,1041024755,"92,700.00",Research and evaluation activities
Department for Education,DEPARTMENT FOR EDUCATION,08/02/2018,Professional Services Other,Strategic Analysis and Research Group,PEARSON EDUCATION LTD,1041025172,"40,876.00",Research and evaluation activities
Department for Education,DEPARTMENT FOR EDUCATION,15/02/2018,Learning and Development,Insight Resources and Transformation Group,BRITISH COUNCIL,1041026170,"1,125,145.00",Current grants paid to organisations including arms length bodies and educational establishments
Department for Education,DEPARTMENT FOR EDUCATION,15/02/2018,Learning and Development,Insight Resources and Transformation Group,BRITISH COUNCIL,1041026170,"225,029.00",Current grants paid to organisations including arms length bodies and educational establishments
Department for Education,DEPARTMENT FOR EDUCATION,26/02/2018,Grants,Insight Resources and Transformation Group,BRITISH COUNCIL DIVISION,1041027435,"1,000,000.00",Grants to educational establishments or not for profit organisations including other businesses
Department for Education,DEPARTMENT FOR EDUCATION,06/02/2018,Programme costs,Insight Resources and Transformation Group,EUROPEAN UNIVERSITY INSTITUTE,10000676,"1,763,046.54",Funding to deliver policies (excluding consultancy) paid to third parties via a service delivery contract
Department for Education,DEPARTMENT FOR EDUCATION,06/02/2018,Programme costs,Insight Resources and Transformation Group,EUROPEAN UNIVERSITY INSTITUTE,20000054,"1,084,227.72",Funding to deliver policies (excluding consultancy) paid to third parties via a service delivery contract
Department for Education,DEPARTMENT FOR EDUCATION,06/02/2018,Programme costs,International Education Group,OECD,20000052,"168,921.47",Funding to deliver policies (excluding consultancy) paid to third parties via a service delivery contract
Department for Education,DEPARTMENT FOR EDUCATION,12/02/2018,Grants,Insight Resources and Transformation Group,US UK FULBRIGHT EDUCATIONAL COMMISSION,1041025385,"50,000.00",Grants to educational establishments or not for profit organisations including other businesses
Department for Education,DEPARTMENT FOR EDUCATION,01/02/2018,Personnel Related,Human Resources Group,CABINET OFFICE,1041024200,"-251,211.52",Recruitment Costs
Department for Education,DEPARTMENT FOR EDUCATION,01/02/2018,Personnel Related,Human Resources Group,CABINET OFFICE,1041024200,"-50,242.30",Recruitment Costs
Department for Education,DEPARTMENT FOR EDUCATION,01/02/2018,Personnel Related,Human Resources Group,CABINET OFFICE,1041024200,"301,453.82",Recruitment Costs
Department for Education,DEPARTMENT FOR EDUCATION,13/02/2018,Personnel Related,Human Resources Group,CABINET OFFICE,1041025499,"401,566.98",Recruitment costs
Department for Education,DEPARTMENT FOR EDUCATION,28/02/2018,Personnel Related,Human Resources Group,CABINET OFFICE,1041027729,"-177,132.00",Recruitment costs
Department for Education,DEPARTMENT FOR EDUCATION,28/02/2018,Personnel Related,Human Resources Group,CABINET OFFICE,1041027729,"177,132.00",Recruitment costs
Department for Education,DEPARTMENT FOR EDUCATION,28/02/2018,Personnel Related,Human Resources Group,CABINET OFFICE,1041027729,"52,800.00",Recruitment costs
Department for Education,DEPARTMENT FOR EDUCATION,27/02/2018,Personnel Related,Human Resources Group,FIDELITI LTD,1041027560,"113,363.83",Childcare voucher scheme for staff
Department for Education,DEPARTMENT FOR EDUCATION,14/02/2018,Personnel Related,Human Resources Group,INLAND REVENUE,1041025820,"104,729.00",Apprenticeship Levy
Department for Education,DEPARTMENT FOR EDUCATION,21/02/2018,Grants,Academies Regional Delivery Group,HAMWIC TRUST,1041027081,"25,000.00",Grants to educational establishments or not for profit organisations including other businesses
Department for Education,DEPARTMENT FOR EDUCATION,21/02/2018,Grants,Academies Regional Delivery Group,HAMWIC TRUST,1041027081,"25,000.00",Grants to educational establishments or not for profit organisations including other businesses
Department for Education,DEPARTMENT FOR EDUCATION,28/02/2018,Grants,Academies Regional Delivery Group,LANGSTONE INFANT SCHOOL,1041027772,"25,000.00",Grants to educational establishments or not for profit organisations including other businesses
Department for Education,DEPARTMENT FOR EDUCATION,28/02/2018,Grants,Academies Regional Delivery Group,LANGSTONE JUNIOR SCHOOL,1041027791,"25,000.00",Grants to educational establishments or not for profit organisations including other businesses
Department for Education,DEPARTMENT FOR EDUCATION,21/02/2018,Grants,Academies Regional Delivery Group,SOUTHWARK DIOCESAN BOARD OF EDUCATION MULTI ACADEMY TRUST,1041026984,"25,000.00",Grants to educational establishments or not for profit organisations including other businesses
Department for Education,DEPARTMENT FOR EDUCATION,21/02/2018,Grants,Academies Regional Delivery Group,SOUTHWARK DIOCESAN BOARD OF EDUCATION MULTI ACADEMY TRUST,1041026984,"25,000.00",Grants to educational establishments or not for profit organisations including other businesses
Department for Education,DEPARTMENT FOR EDUCATION,21/02/2018,Grants,Academies Regional Delivery Group,SOUTHWARK DIOCESAN BOARD OF EDUCATION MULTI ACADEMY TRUST,1041026984,"25,000.00",Grants to educational establishments or not for profit organisations including other businesses
Department for Education,DEPARTMENT FOR EDUCATION,21/02/2018,Grants,Academies Regional Delivery Group,SOUTHWARK DIOCESAN BOARD OF EDUCATION MULTI ACADEMY TRUST,1041026984,"25,000.00",Grants to educational establishments or not for profit organisations including other businesses
Department for Education,DEPARTMENT FOR EDUCATION,26/02/2018,Grants,Academies Regional Delivery Group,THE PATHWAY ACADEMY TRUST,1041027499,"25,000.00",Grants to educational establishments or not for profit organisations including other businesses
Department for Education,DEPARTMENT FOR EDUCATION,21/02/2018,Grants,Academies Regional Delivery Group,THE THINKING SCHOOLS ACADEMY TRUST,1041027032,"25,000.00",Grants to educational establishments or not for profit organisations including other businesses
Department for Education,STANDARDS AND TESTING AGENCY,01/02/2018,Professional Services Consultancy and Contingent Labour,Test Development Division,ACER INTERNATIONAL UNITED KINGDOM LTD,1041024224,"76,381.00","Advisory services including fees, travel and expenses"
Department for Education,STANDARDS AND TESTING AGENCY,01/02/2018,Professional Services Consultancy and Contingent Labour,Test Development Division,ACER INTERNATIONAL UNITED KINGDOM LTD,1041024224,"68,743.00","Advisory services including fees, travel and expenses"
Department for Education,STANDARDS AND TESTING AGENCY,16/02/2018,Professional Services Consultancy and Contingent Labour,Test Operations Division,CADENCE PARTNERSHIP,1041026244,"79,039.00","Fees / expenses of professionals such as auditors, accountants, lawyers, etc. engaged to provide advice or opinion on how to affect something"
Department for Education,STANDARDS AND TESTING AGENCY,16/02/2018,Professional Services Consultancy and Contingent Labour,Test Operations Division,CADENCE PARTNERSHIP,1041026244,"15,807.80","Fees / expenses of professionals such as auditors, accountants, lawyers, etc. engaged to provide advice or opinion on how to affect something"
Department for Education,STANDARDS AND TESTING AGENCY,09/02/2018,Professional Services Consultancy and Contingent Labour,Test Development Division,LEARN DIRECT,1041025240,"95,726.36","Advisory services including fees, travel and expenses"
Department for Education,STANDARDS AND TESTING AGENCY,09/02/2018,Professional Services Consultancy and Contingent Labour,Test Operations Division,LITERACY WORKS LTD,1041025260,"35,000.00","Fees / expenses of professionals such as auditors, accountants, lawyers, etc. engaged to provide advice or opinion on how to affect something"
Department for Education,STANDARDS AND TESTING AGENCY,13/02/2018,Professional Services Consultancy and Contingent Labour,Test Operations Division,OLIVE JAR DIGITAL LTD,1041025560,"95,556.84","Fees / expenses of professionals such as auditors, accountants, lawyers, etc. engaged to provide advice or opinion on how to affect something"
Department for Education,STANDARDS AND TESTING AGENCY,13/02/2018,Professional Services Consultancy and Contingent Labour,Test Operations Division,OLIVE JAR DIGITAL LTD,1041025560,"19,111.37","Fees / expenses of professionals such as auditors, accountants, lawyers, etc. engaged to provide advice or opinion on how to affect something"
Department for Education,STANDARDS AND TESTING AGENCY,05/02/2018,Office Solutions,Test Operations Division,PARCELFORCE WORLDWIDE,1041024607,"40,218.87",Post and courier services
Department for Education,STANDARDS AND TESTING AGENCY,08/02/2018,Office Solutions,Test Operations Division,PARCELFORCE WORLDWIDE,1041025082,"30,059.58",Post and courier services
Department for Education,STANDARDS AND TESTING AGENCY,05/02/2018,ICT,Test Operations Division,THE STATIONERY OFFICE LTD,1041024534,"27,462.50",ICT Services - hardware maintenance and support
Department for Education,STANDARDS AND TESTING AGENCY,05/02/2018,ICT,Test Operations Division,THE STATIONERY OFFICE LTD,1041024534,"5,492.50",ICT Services - hardware maintenance and support
Department for Education,DEPARTMENT FOR EDUCATION,08/02/2018,Grants,Higher Education Strategy and Policy Group,NATIONAL COLLEGE FOR DIGITAL SKILLS LTD,1041025141,"182,903.75",Capital grants paid to a private sector organisation
Department for Education,DEPARTMENT FOR EDUCATION,08/02/2018,Grants,Higher Education Strategy and Policy Group,NATIONAL COLLEGE FOR DIGITAL SKILLS LTD,1041025141,"190,284.99",Capital grants paid to a private sector organisation
Department for Education,DEPARTMENT FOR EDUCATION,12/02/2018,Grants,Teachers and Teaching Group,COLLEGE OF TEACHING LTD,1041025427,"157,000.00",Grants to educational establishments or not for profit organisations including other businesses
Department for Education,DEPARTMENT FOR EDUCATION,09/02/2018,Programme costs,Special Educational Needs and Disadvantage Group,RURAL PAYMENTS AGENCY,1041025272,"40,335.81",Funding to deliver policies (excluding consultancy) paid to third parties via a service delivery contract
Department for Education,DEPARTMENT FOR EDUCATION,01/02/2018,ICT,Special Educational Needs and Disadvantage Group,VODAFONE CORPORATE,1041024174,162.00,Telecoms facilities and services - mobiles and pagers
Department for Education,DEPARTMENT FOR EDUCATION,01/02/2018,ICT,Special Educational Needs and Disadvantage Group,VODAFONE CORPORATE,1041024174,0.58,Telecoms facilities and services - mobiles and pagers
Department for Education,NATIONAL COLLEGE FOR TEACHING & LEADERSHIP,08/02/2018,Programme costs,Delivery Directorate,UNIVERSITY COLLEGE LONDON,1041025123,"380,380.00",Funding to deliver policies (excluding consultancy) paid to third parties via a service delivery contract
Department for Education,NATIONAL COLLEGE FOR TEACHING & LEADERSHIP,08/02/2018,Programme costs,Delivery Directorate,UNIVERSITY COLLEGE LONDON,1041025123,"471,331.25",Funding to deliver policies (excluding consultancy) paid to third parties via a service delivery contract
Department for Education,NATIONAL COLLEGE FOR TEACHING & LEADERSHIP,23/02/2018,Programme costs,Delivery Directorate,UNIVERSITY OF MANCHESTER,1041027265,"172,260.00",Funding to deliver policies (excluding consultancy) paid to third parties via a service delivery contract
Department for Education,NATIONAL COLLEGE FOR TEACHING & LEADERSHIP,23/02/2018,Programme costs,Delivery Directorate,UNIVERSITY OF MANCHESTER,1041027265,"200,060.00",Funding to deliver policies (excluding consultancy) paid to third parties via a service delivery contract
Department for Education,NATIONAL COLLEGE FOR TEACHING & LEADERSHIP,23/02/2018,Programme costs,Delivery Directorate,UNIVERSITY OF MANCHESTER,1041027265,"244,982.23",Funding to deliver policies (excluding consultancy) paid to third parties via a service delivery contract
Department for Education,DEPARTMENT FOR EDUCATION,19/02/2018,Professional Services Consultancy and Contingent Labour,Digital and Technology Group,ADATIS CONSULTING LTD,1041026624,"25,552.04","Advisory services including fees, travel and expenses"
Department for Education,DEPARTMENT FOR EDUCATION,26/02/2018,Facilities,Digital and Technology Group,BOTTOMLINE,1041027405,"3,938.00","Maintenance, repair and cleaning including of equipment"
Department for Education,DEPARTMENT FOR EDUCATION,26/02/2018,Facilities,Digital and Technology Group,BOTTOMLINE,1041027405,"17,900.00","Maintenance, repair and cleaning including of equipment"
Department for Education,DEPARTMENT FOR EDUCATION,21/02/2018,ICT,Digital and Technology Group,BT GLOBAL SERVICES,1041027002,0.01,ICT Services
Department for Education,DEPARTMENT FOR EDUCATION,21/02/2018,ICT,Digital and Technology Group,BT GLOBAL SERVICES,1041027002,"23,383.05",ICT Services
Department for Education,DEPARTMENT FOR EDUCATION,21/02/2018,ICT,Digital and Technology Group,BT GLOBAL SERVICES,1041027002,"159,933.33",ICT Hardware
Department for Education,DEPARTMENT FOR EDUCATION,21/02/2018,ICT,Digital and Technology Group,BT GLOBAL SERVICES,1041027002,"-80,226.82",Telecoms facilities and services - telecom rentals
Department for Education,DEPARTMENT FOR EDUCATION,21/02/2018,ICT,Digital and Technology Group,BT GLOBAL SERVICES,1041027002,"-15,847.21",Telecoms facilities and services - telecom rentals
Department for Education,DEPARTMENT FOR EDUCATION,21/02/2018,ICT,Digital and Technology Group,BT GLOBAL SERVICES,1041027002,"135,740.91",Telecoms facilities and services - telecom rentals
Department for Education,DEPARTMENT FOR EDUCATION,21/02/2018,ICT,Digital and Technology Group,BT GLOBAL SERVICES,1041027002,"27,148.18",Telecoms facilities and services - telecom rentals
Department for Education,DEPARTMENT FOR EDUCATION,16/02/2018,Facilities,Digital and Technology Group,CADENCE PARTNERSHIP,1041026244,"25,056.00","Maintenance, repair and cleaning including of equipment"
Department for Education,DEPARTMENT FOR EDUCATION,20/02/2018,Professional Services and Consultancy,Digital and Technology Group,CADENCE PARTNERSHIP,1041026717,"53,244.00",Professional Services ICT
Department for Education,DEPARTMENT FOR EDUCATION,20/02/2018,Professional Services and Consultancy,Digital and Technology Group,CADENCE PARTNERSHIP,1041026717,"10,648.80",Professional Services ICT
Department for Education,DEPARTMENT FOR EDUCATION,09/02/2018,Professional Services Consultancy and Contingent Labour,Digital and Technology Group,CAPGEMINI UK PLC,1041025275,"56,582.94","Advisory services including fees, travel and expenses"
Department for Education,DEPARTMENT FOR EDUCATION,16/02/2018,Professional Services Consultancy and Contingent Labour,Digital and Technology Group,CAPGEMINI UK PLC,1041026383,"161,671.69","Advisory services including fees, travel and expenses"
Department for Education,DEPARTMENT FOR EDUCATION,22/02/2018,Professional Services Consultancy and Contingent Labour,Digital and Technology Group,DIGI2AL LTD,1041027205,"35,200.00","Advisory services including fees, travel and expenses"
Department for Education,DEPARTMENT FOR EDUCATION,14/02/2018,Professional Services and Consultancy,Digital and Technology Group,ESYNERGY SOLUTIONS LTD,1041025882,"36,576.00",Professional Services ICT
Department for Education,DEPARTMENT FOR EDUCATION,14/02/2018,Professional Services and Consultancy,Digital and Technology Group,ESYNERGY SOLUTIONS LTD,1041025882,"51,430.00",Professional Services ICT
Department for Education,DEPARTMENT FOR EDUCATION,14/02/2018,Professional Services and Consultancy,Digital and Technology Group,ESYNERGY SOLUTIONS LTD,1041025882,"86,316.57",Professional Services ICT
Department for Education,DEPARTMENT FOR EDUCATION,14/02/2018,Professional Services and Consultancy,Digital and Technology Group,ESYNERGY SOLUTIONS LTD,1041025882,"7,315.20",Professional Services ICT
Department for Education,DEPARTMENT FOR EDUCATION,14/02/2018,Professional Services and Consultancy,Digital and Technology Group,ESYNERGY SOLUTIONS LTD,1041025882,"10,286.00",Professional Services ICT
Department for Education,DEPARTMENT FOR EDUCATION,14/02/2018,Professional Services and Consultancy,Digital and Technology Group,ESYNERGY SOLUTIONS LTD,1041025882,"17,263.31",Professional Services ICT
Department for Education,DEPARTMENT FOR EDUCATION,14/02/2018,Professional Services and Consultancy,Digital and Technology Group,ESYNERGY SOLUTIONS LTD,1041025882,"22,709.57",Professional Services ICT
Department for Education,DEPARTMENT FOR EDUCATION,14/02/2018,Professional Services and Consultancy,Digital and Technology Group,ESYNERGY SOLUTIONS LTD,1041025882,"25,641.85",Professional Services ICT
Department for Education,DEPARTMENT FOR EDUCATION,14/02/2018,Professional Services and Consultancy,Digital and Technology Group,ESYNERGY SOLUTIONS LTD,1041025882,"4,541.92",Professional Services ICT
Department for Education,DEPARTMENT FOR EDUCATION,14/02/2018,Professional Services and Consultancy,Digital and Technology Group,ESYNERGY SOLUTIONS LTD,1041025882,"5,128.37",Professional Services ICT
Department for Education,DEPARTMENT FOR EDUCATION,19/02/2018,Facilities,Digital and Technology Group,ESYNERGY SOLUTIONS LTD,1041026556,"24,480.00","Maintenance, repair and cleaning including of equipment"
Department for Education,DEPARTMENT FOR EDUCATION,19/02/2018,Facilities,Digital and Technology Group,ESYNERGY SOLUTIONS LTD,1041026556,"29,988.00","Maintenance, repair and cleaning including of equipment"
Department for Education,DEPARTMENT FOR EDUCATION,20/02/2018,Facilities,Digital and Technology Group,FIRMSTEP LTD,1041026757,"39,375.00","Maintenance, repair and cleaning including of equipment"
Department for Education,DEPARTMENT FOR EDUCATION,12/02/2018,ICT,Digital and Technology Group,INSIGHT DIRECT UK LIMITED,1041025389,"48,648.19",ICT Software
Department for Education,DEPARTMENT FOR EDUCATION,12/02/2018,ICT,Digital and Technology Group,INSIGHT DIRECT UK LIMITED,1041025389,"9,729.64",ICT Software
Department for Education,DEPARTMENT FOR EDUCATION,09/02/2018,ICT,Digital and Technology Group,KYKLOUD,1041025233,"22,225.00",ICT Software
Department for Education,DEPARTMENT FOR EDUCATION,23/02/2018,Professional Services Consultancy and Contingent Labour,Digital and Technology Group,METHOD4 LTD,1041027282,"39,400.00","Advisory services including fees, travel and expenses"
Department for Education,DEPARTMENT FOR EDUCATION,09/02/2018,Professional Services Consultancy and Contingent Labour,Digital and Technology Group,METHODS PROFESSIONAL SERVICES LTD,1041025234,"29,850.00",Costs related to temporary workers
Department for Education,DEPARTMENT FOR EDUCATION,09/02/2018,Professional Services Consultancy and Contingent Labour,Digital and Technology Group,METHODS PROFESSIONAL SERVICES LTD,1041025234,"35,586.25",Costs related to temporary workers
Department for Education,DEPARTMENT FOR EDUCATION,16/02/2018,Professional Services Consultancy and Contingent Labour,Digital and Technology Group,METHODS PROFESSIONAL SERVICES LTD,1041026494,"25,300.00",Costs related to temporary workers
Department for Education,DEPARTMENT FOR EDUCATION,14/02/2018,ICT,Digital and Technology Group,SOL TEC LTD,1041025901,"36,300.00",ICT Software
Department for Education,DEPARTMENT FOR EDUCATION,28/02/2018,Professional Services Consultancy and Contingent Labour,Digital and Technology Group,SOL TEC LTD,1041027805,"38,168.27","Advisory services including fees, travel and expenses"
Department for Education,DEPARTMENT FOR EDUCATION,16/02/2018,ICT,Digital and Technology Group,SOMERFORD ASSOCIATES LTD,1041026460,"93,100.00",ICT Services - hardware maintenance and support
Department for Education,DEPARTMENT FOR EDUCATION,16/02/2018,ICT,Digital and Technology Group,SOMERFORD ASSOCIATES LTD,1041026460,"18,620.00",ICT Services - hardware maintenance and support
Department for Education,DEPARTMENT FOR EDUCATION,09/02/2018,Professional Services Consultancy and Contingent Labour,Digital and Technology Group,SOPRA STERIA LTD,1041025225,"55,203.00",Costs related to temporary workers
Department for Education,DEPARTMENT FOR EDUCATION,09/02/2018,Professional Services Consultancy and Contingent Labour,Digital and Technology Group,SOPRA STERIA LTD,1041025225,"85,794.95",Costs related to temporary workers
Department for Education,DEPARTMENT FOR EDUCATION,09/02/2018,Professional Services Consultancy and Contingent Labour,Digital and Technology Group,SOPRA STERIA LTD,1041025225,"11,040.60",Costs related to temporary workers
Department for Education,DEPARTMENT FOR EDUCATION,09/02/2018,Professional Services Consultancy and Contingent Labour,Digital and Technology Group,SOPRA STERIA LTD,1041025225,"17,158.99",Costs related to temporary workers
Department for Education,DEPARTMENT FOR EDUCATION,01/02/2018,ICT,Digital and Technology Group,VODAFONE CORPORATE,1041024174,10.00,Telecoms facilities and services - mobiles and pagers
Department for Education,DEPARTMENT FOR EDUCATION,01/02/2018,ICT,Digital and Technology Group,VODAFONE CORPORATE,1041024174,10.00,Telecoms facilities and services - mobiles and pagers
Department for Education,DEPARTMENT FOR EDUCATION,01/02/2018,ICT,Digital and Technology Group,VODAFONE CORPORATE,1041024174,10.00,Telecoms facilities and services - mobiles and pagers
Department for Education,DEPARTMENT FOR EDUCATION,01/02/2018,ICT,Digital and Technology Group,VODAFONE CORPORATE,1041024174,10.00,Telecoms facilities and services - mobiles and pagers
Department for Education,DEPARTMENT FOR EDUCATION,01/02/2018,ICT,Digital and Technology Group,VODAFONE CORPORATE,1041024174,10.00,Telecoms facilities and services - mobiles and pagers
Department for Education,DEPARTMENT FOR EDUCATION,01/02/2018,ICT,Digital and Technology Group,VODAFONE CORPORATE,1041024174,10.00,Telecoms facilities and services - mobiles and pagers
Department for Education,DEPARTMENT FOR EDUCATION,01/02/2018,ICT,Digital and Technology Group,VODAFONE CORPORATE,1041024174,10.00,Telecoms facilities and services - mobiles and pagers
Department for Education,DEPARTMENT FOR EDUCATION,01/02/2018,ICT,Digital and Technology Group,VODAFONE CORPORATE,1041024174,10.00,Telecoms facilities and services - mobiles and pagers
Department for Education,DEPARTMENT FOR EDUCATION,01/02/2018,ICT,Digital and Technology Group,VODAFONE CORPORATE,1041024174,10.00,Telecoms facilities and services - mobiles and pagers
Department for Education,DEPARTMENT FOR EDUCATION,01/02/2018,ICT,Digital and Technology Group,VODAFONE CORPORATE,1041024174,10.09,Telecoms facilities and services - mobiles and pagers
Department for Education,DEPARTMENT FOR EDUCATION,01/02/2018,ICT,Digital and Technology Group,VODAFONE CORPORATE,1041024174,10.00,Telecoms facilities and services - mobiles and pagers
Department for Education,DEPARTMENT FOR EDUCATION,01/02/2018,ICT,Digital and Technology Group,VODAFONE CORPORATE,1041024174,12.19,Telecoms facilities and services - mobiles and pagers
Department for Education,DEPARTMENT FOR EDUCATION,01/02/2018,ICT,Digital and Technology Group,VODAFONE CORPORATE,1041024174,10.10,Telecoms facilities and services - mobiles and pagers
Department for Education,DEPARTMENT FOR EDUCATION,01/02/2018,ICT,Digital and Technology Group,VODAFONE CORPORATE,1041024174,10.00,Telecoms facilities and services - mobiles and pagers
Department for Education,DEPARTMENT FOR EDUCATION,01/02/2018,ICT,Digital and Technology Group,VODAFONE CORPORATE,1041024174,10.00,Telecoms facilities and services - mobiles and pagers
Department for Education,DEPARTMENT FOR EDUCATION,01/02/2018,ICT,Digital and Technology Group,VODAFONE CORPORATE,1041024174,10.00,Telecoms facilities and services - mobiles and pagers
Department for Education,DEPARTMENT FOR EDUCATION,01/02/2018,ICT,Digital and Technology Group,VODAFONE CORPORATE,1041024174,10.00,Telecoms facilities and services - mobiles and pagers
Department for Education,DEPARTMENT FOR EDUCATION,01/02/2018,ICT,Digital and Technology Group,VODAFONE CORPORATE,1041024174,10.00,Telecoms facilities and services - mobiles and pagers
Department for Education,DEPARTMENT FOR EDUCATION,01/02/2018,ICT,Digital and Technology Group,VODAFONE CORPORATE,1041024174,10.00,Telecoms facilities and services - mobiles and pagers
Department for Education,DEPARTMENT FOR EDUCATION,01/02/2018,ICT,Digital and Technology Group,VODAFONE CORPORATE,1041024174,10.00,Telecoms facilities and services - mobiles and pagers
Department for Education,DEPARTMENT FOR EDUCATION,01/02/2018,ICT,Digital and Technology Group,VODAFONE CORPORATE,1041024174,10.00,Telecoms facilities and services - mobiles and pagers
Department for Education,DEPARTMENT FOR EDUCATION,01/02/2018,ICT,Digital and Technology Group,VODAFONE CORPORATE,1041024174,10.00,Telecoms facilities and services - mobiles and pagers
Department for Education,DEPARTMENT FOR EDUCATION,01/02/2018,ICT,Digital and Technology Group,VODAFONE CORPORATE,1041024174,10.00,Telecoms facilities and services - mobiles and pagers
Department for Education,DEPARTMENT FOR EDUCATION,01/02/2018,ICT,Digital and Technology Group,VODAFONE CORPORATE,1041024174,10.00,Telecoms facilities and services - mobiles and pagers
Department for Education,DEPARTMENT FOR EDUCATION,01/02/2018,ICT,Digital and Technology Group,VODAFONE CORPORATE,1041024174,10.00,Telecoms facilities and services - mobiles and pagers
Department for Education,DEPARTMENT FOR EDUCATION,01/02/2018,ICT,Digital and Technology Group,VODAFONE CORPORATE,1041024174,10.00,Telecoms facilities and services - mobiles and pagers
Department for Education,DEPARTMENT FOR EDUCATION,01/02/2018,ICT,Digital and Technology Group,VODAFONE CORPORATE,1041024174,10.00,Telecoms facilities and services - mobiles and pagers
Department for Education,DEPARTMENT FOR EDUCATION,01/02/2018,ICT,Digital and Technology Group,VODAFONE CORPORATE,1041024174,10.00,Telecoms facilities and services - mobiles and pagers
Department for Education,DEPARTMENT FOR EDUCATION,01/02/2018,ICT,Digital and Technology Group,VODAFONE CORPORATE,1041024174,10.00,Telecoms facilities and services - mobiles and pagers
Department for Education,DEPARTMENT FOR EDUCATION,01/02/2018,ICT,Digital and Technology Group,VODAFONE CORPORATE,1041024174,10.00,Telecoms facilities and services - mobiles and pagers
Department for Education,DEPARTMENT FOR EDUCATION,01/02/2018,ICT,Digital and Technology Group,VODAFONE CORPORATE,1041024174,10.00,Telecoms facilities and services - mobiles and pagers
Department for Education,DEPARTMENT FOR EDUCATION,01/02/2018,ICT,Digital and Technology Group,VODAFONE CORPORATE,1041024174,10.00,Telecoms facilities and services - mobiles and pagers
Department for Education,DEPARTMENT FOR EDUCATION,01/02/2018,ICT,Digital and Technology Group,VODAFONE CORPORATE,1041024174,10.00,Telecoms facilities and services - mobiles and pagers
Department for Education,DEPARTMENT FOR EDUCATION,01/02/2018,ICT,Digital and Technology Group,VODAFONE CORPORATE,1041024174,10.00,Telecoms facilities and services - mobiles and pagers
Department for Education,DEPARTMENT FOR EDUCATION,01/02/2018,ICT,Digital and Technology Group,VODAFONE CORPORATE,1041024174,10.00,Telecoms facilities and services - mobiles and pagers
Department for Education,DEPARTMENT FOR EDUCATION,01/02/2018,ICT,Digital and Technology Group,VODAFONE CORPORATE,1041024174,10.00,Telecoms facilities and services - mobiles and pagers
Department for Education,DEPARTMENT FOR EDUCATION,01/02/2018,ICT,Digital and Technology Group,VODAFONE CORPORATE,1041024174,10.00,Telecoms facilities and services - mobiles and pagers
Department for Education,DEPARTMENT FOR EDUCATION,01/02/2018,ICT,Digital and Technology Group,VODAFONE CORPORATE,1041024174,10.00,Telecoms facilities and services - mobiles and pagers
Department for Education,DEPARTMENT FOR EDUCATION,01/02/2018,ICT,Digital and Technology Group,VODAFONE CORPORATE,1041024174,10.00,Telecoms facilities and services - mobiles and pagers
Department for Education,DEPARTMENT FOR EDUCATION,01/02/2018,ICT,Digital and Technology Group,VODAFONE CORPORATE,1041024174,10.00,Telecoms facilities and services - mobiles and pagers
Department for Education,DEPARTMENT FOR EDUCATION,01/02/2018,ICT,Digital and Technology Group,VODAFONE CORPORATE,1041024174,10.00,Telecoms facilities and services - mobiles and pagers
Department for Education,DEPARTMENT FOR EDUCATION,01/02/2018,ICT,Digital and Technology Group,VODAFONE CORPORATE,1041024174,10.00,Telecoms facilities and services - mobiles and pagers
Department for Education,DEPARTMENT FOR EDUCATION,01/02/2018,ICT,Digital and Technology Group,VODAFONE CORPORATE,1041024174,9.00,Telecoms facilities and services - mobiles and pagers
Department for Education,DEPARTMENT FOR EDUCATION,01/02/2018,ICT,Digital and Technology Group,VODAFONE CORPORATE,1041024174,9.00,Telecoms facilities and services - mobiles and pagers
Department for Education,DEPARTMENT FOR EDUCATION,01/02/2018,ICT,Digital and Technology Group,VODAFONE CORPORATE,1041024174,10.00,Telecoms facilities and services - mobiles and pagers
Department for Education,DEPARTMENT FOR EDUCATION,01/02/2018,ICT,Digital and Technology Group,VODAFONE CORPORATE,1041024174,10.00,Telecoms facilities and services - mobiles and pagers
Department for Education,DEPARTMENT FOR EDUCATION,01/02/2018,ICT,Digital and Technology Group,VODAFONE CORPORATE,1041024174,10.00,Telecoms facilities and services - mobiles and pagers
Department for Education,DEPARTMENT FOR EDUCATION,01/02/2018,ICT,Digital and Technology Group,VODAFONE CORPORATE,1041024174,10.00,Telecoms facilities and services - mobiles and pagers
Department for Education,DEPARTMENT FOR EDUCATION,01/02/2018,ICT,Digital and Technology Group,VODAFONE CORPORATE,1041024174,9.00,Telecoms facilities and services - mobiles and pagers
Department for Education,DEPARTMENT FOR EDUCATION,01/02/2018,ICT,Digital and Technology Group,VODAFONE CORPORATE,1041024174,10.00,Telecoms facilities and services - mobiles and pagers
Department for Education,DEPARTMENT FOR EDUCATION,01/02/2018,ICT,Digital and Technology Group,VODAFONE CORPORATE,1041024174,10.00,Telecoms facilities and services - mobiles and pagers
Department for Education,DEPARTMENT FOR EDUCATION,01/02/2018,ICT,Digital and Technology Group,VODAFONE CORPORATE,1041024174,10.00,Telecoms facilities and services - mobiles and pagers
Department for Education,DEPARTMENT FOR EDUCATION,01/02/2018,ICT,Digital and Technology Group,VODAFONE CORPORATE,1041024174,10.00,Telecoms facilities and services - mobiles and pagers
Department for Education,DEPARTMENT FOR EDUCATION,01/02/2018,ICT,Digital and Technology Group,VODAFONE CORPORATE,1041024174,10.00,Telecoms facilities and services - mobiles and pagers
Department for Education,DEPARTMENT FOR EDUCATION,01/02/2018,ICT,Digital and Technology Group,VODAFONE CORPORATE,1041024174,10.00,Telecoms facilities and services - mobiles and pagers
Department for Education,DEPARTMENT FOR EDUCATION,01/02/2018,ICT,Digital and Technology Group,VODAFONE CORPORATE,1041024174,10.00,Telecoms facilities and services - mobiles and pagers
Department for Education,DEPARTMENT FOR EDUCATION,01/02/2018,ICT,Digital and Technology Group,VODAFONE CORPORATE,1041024174,12.84,Telecoms facilities and services - mobiles and pagers
Department for Education,DEPARTMENT FOR EDUCATION,01/02/2018,ICT,Digital and Technology Group,VODAFONE CORPORATE,1041024174,10.00,Telecoms facilities and services - mobiles and pagers
Department for Education,DEPARTMENT FOR EDUCATION,01/02/2018,ICT,Digital and Technology Group,VODAFONE CORPORATE,1041024174,10.00,Telecoms facilities and services - mobiles and pagers
Department for Education,DEPARTMENT FOR EDUCATION,01/02/2018,ICT,Digital and Technology Group,VODAFONE CORPORATE,1041024174,10.00,Telecoms facilities and services - mobiles and pagers
Department for Education,DEPARTMENT FOR EDUCATION,01/02/2018,ICT,Digital and Technology Group,VODAFONE CORPORATE,1041024174,6.31,Telecoms facilities and services - mobiles and pagers
Department for Education,DEPARTMENT FOR EDUCATION,01/02/2018,ICT,Digital and Technology Group,VODAFONE CORPORATE,1041024174,10.00,Telecoms facilities and services - mobiles and pagers
Department for Education,DEPARTMENT FOR EDUCATION,01/02/2018,ICT,Digital and Technology Group,VODAFONE CORPORATE,1041024174,10.00,Telecoms facilities and services - mobiles and pagers
Department for Education,DEPARTMENT FOR EDUCATION,01/02/2018,ICT,Digital and Technology Group,VODAFONE CORPORATE,1041024174,10.00,Telecoms facilities and services - mobiles and pagers
Department for Education,DEPARTMENT FOR EDUCATION,01/02/2018,ICT,Digital and Technology Group,VODAFONE CORPORATE,1041024174,10.00,Telecoms facilities and services - mobiles and pagers
Department for Education,DEPARTMENT FOR EDUCATION,01/02/2018,ICT,Digital and Technology Group,VODAFONE CORPORATE,1041024174,5.48,Telecoms facilities and services - mobiles and pagers
Department for Education,DEPARTMENT FOR EDUCATION,01/02/2018,ICT,Digital and Technology Group,VODAFONE CORPORATE,1041024174,10.00,Telecoms facilities and services - mobiles and pagers
Department for Education,DEPARTMENT FOR EDUCATION,01/02/2018,ICT,Digital and Technology Group,VODAFONE CORPORATE,1041024174,10.00,Telecoms facilities and services - mobiles and pagers
Department for Education,DEPARTMENT FOR EDUCATION,01/02/2018,ICT,Digital and Technology Group,VODAFONE CORPORATE,1041024174,10.00,Telecoms facilities and services - mobiles and pagers
Department for Education,DEPARTMENT FOR EDUCATION,01/02/2018,ICT,Digital and Technology Group,VODAFONE CORPORATE,1041024174,5.48,Telecoms facilities and services - mobiles and pagers
Department for Education,DEPARTMENT FOR EDUCATION,01/02/2018,ICT,Digital and Technology Group,VODAFONE CORPORATE,1041024174,10.00,Telecoms facilities and services - mobiles and pagers
Department for Education,DEPARTMENT FOR EDUCATION,01/02/2018,ICT,Digital and Technology Group,VODAFONE CORPORATE,1041024174,10.00,Telecoms facilities and services - mobiles and pagers
Department for Education,DEPARTMENT FOR EDUCATION,01/02/2018,ICT,Digital and Technology Group,VODAFONE CORPORATE,1041024174,10.00,Telecoms facilities and services - mobiles and pagers
Department for Education,DEPARTMENT FOR EDUCATION,01/02/2018,ICT,Digital and Technology Group,VODAFONE CORPORATE,1041024174,10.00,Telecoms facilities and services - mobiles and pagers
Department for Education,DEPARTMENT FOR EDUCATION,01/02/2018,ICT,Digital and Technology Group,VODAFONE CORPORATE,1041024174,10.00,Telecoms facilities and services - mobiles and pagers
Department for Education,DEPARTMENT FOR EDUCATION,01/02/2018,ICT,Digital and Technology Group,VODAFONE CORPORATE,1041024174,10.00,Telecoms facilities and services - mobiles and pagers
Department for Education,DEPARTMENT FOR EDUCATION,01/02/2018,ICT,Digital and Technology Group,VODAFONE CORPORATE,1041024174,10.00,Telecoms facilities and services - mobiles and pagers
Department for Education,DEPARTMENT FOR EDUCATION,01/02/2018,ICT,Digital and Technology Group,VODAFONE CORPORATE,1041024174,10.00,Telecoms facilities and services - mobiles and pagers
Department for Education,DEPARTMENT FOR EDUCATION,01/02/2018,ICT,Digital and Technology Group,VODAFONE CORPORATE,1041024174,6.70,Telecoms facilities and services - mobiles and pagers
Department for Education,DEPARTMENT FOR EDUCATION,01/02/2018,ICT,Digital and Technology Group,VODAFONE CORPORATE,1041024174,10.00,Telecoms facilities and services - mobiles and pagers
Department for Education,DEPARTMENT FOR EDUCATION,01/02/2018,ICT,Digital and Technology Group,VODAFONE CORPORATE,1041024174,10.00,Telecoms facilities and services - mobiles and pagers
Department for Education,DEPARTMENT FOR EDUCATION,01/02/2018,ICT,Digital and Technology Group,VODAFONE CORPORATE,1041024174,10.00,Telecoms facilities and services - mobiles and pagers
Department for Education,DEPARTMENT FOR EDUCATION,01/02/2018,ICT,Digital and Technology Group,VODAFONE CORPORATE,1041024174,10.00,Telecoms facilities and services - mobiles and pagers
Department for Education,DEPARTMENT FOR EDUCATION,01/02/2018,ICT,Digital and Technology Group,VODAFONE CORPORATE,1041024174,10.68,Telecoms facilities and services - mobiles and pagers
Department for Education,DEPARTMENT FOR EDUCATION,01/02/2018,ICT,Digital and Technology Group,VODAFONE CORPORATE,1041024174,10.00,Telecoms facilities and services - mobiles and pagers
Department for Education,DEPARTMENT FOR EDUCATION,01/02/2018,ICT,Digital and Technology Group,VODAFONE CORPORATE,1041024174,10.00,Telecoms facilities and services - mobiles and pagers
Department for Education,DEPARTMENT FOR EDUCATION,01/02/2018,ICT,Digital and Technology Group,VODAFONE CORPORATE,1041024174,10.00,Telecoms facilities and services - mobiles and pagers
Department for Education,DEPARTMENT FOR EDUCATION,01/02/2018,ICT,Digital and Technology Group,VODAFONE CORPORATE,1041024174,10.00,Telecoms facilities and services - mobiles and pagers
Department for Education,DEPARTMENT FOR EDUCATION,01/02/2018,ICT,Digital and Technology Group,VODAFONE CORPORATE,1041024174,10.00,Telecoms facilities and services - mobiles and pagers
Department for Education,DEPARTMENT FOR EDUCATION,01/02/2018,ICT,Digital and Technology Group,VODAFONE CORPORATE,1041024174,10.00,Telecoms facilities and services - mobiles and pagers
Department for Education,DEPARTMENT FOR EDUCATION,01/02/2018,ICT,Digital and Technology Group,VODAFONE CORPORATE,1041024174,10.37,Telecoms facilities and services - mobiles and pagers
Department for Education,DEPARTMENT FOR EDUCATION,01/02/2018,ICT,Digital and Technology Group,VODAFONE CORPORATE,1041024174,9.68,Telecoms facilities and services - mobiles and pagers
Department for Education,DEPARTMENT FOR EDUCATION,01/02/2018,ICT,Digital and Technology Group,VODAFONE CORPORATE,1041024174,10.00,Telecoms facilities and services - mobiles and pagers
Department for Education,DEPARTMENT FOR EDUCATION,01/02/2018,ICT,Digital and Technology Group,VODAFONE CORPORATE,1041024174,13.42,Telecoms facilities and services - mobiles and pagers
Department for Education,DEPARTMENT FOR EDUCATION,01/02/2018,ICT,Digital and Technology Group,VODAFONE CORPORATE,1041024174,10.00,Telecoms facilities and services - mobiles and pagers
Department for Education,DEPARTMENT FOR EDUCATION,01/02/2018,ICT,Digital and Technology Group,VODAFONE CORPORATE,1041024174,10.00,Telecoms facilities and services - mobiles and pagers
Department for Education,DEPARTMENT FOR EDUCATION,01/02/2018,ICT,Digital and Technology Group,VODAFONE CORPORATE,1041024174,10.30,Telecoms facilities and services - mobiles and pagers
Department for Education,DEPARTMENT FOR EDUCATION,01/02/2018,ICT,Digital and Technology Group,VODAFONE CORPORATE,1041024174,5.48,Telecoms facilities and services - mobiles and pagers
Department for Education,DEPARTMENT FOR EDUCATION,01/02/2018,ICT,Digital and Technology Group,VODAFONE CORPORATE,1041024174,5.48,Telecoms facilities and services - mobiles and pagers
Department for Education,DEPARTMENT FOR EDUCATION,01/02/2018,ICT,Digital and Technology Group,VODAFONE CORPORATE,1041024174,10.00,Telecoms facilities and services - mobiles and pagers
Department for Education,DEPARTMENT FOR EDUCATION,01/02/2018,ICT,Digital and Technology Group,VODAFONE CORPORATE,1041024174,12.61,Telecoms facilities and services - mobiles and pagers
Department for Education,DEPARTMENT FOR EDUCATION,01/02/2018,ICT,Digital and Technology Group,VODAFONE CORPORATE,1041024174,10.00,Telecoms facilities and services - mobiles and pagers
Department for Education,DEPARTMENT FOR EDUCATION,01/02/2018,ICT,Digital and Technology Group,VODAFONE CORPORATE,1041024174,10.00,Telecoms facilities and services - mobiles and pagers
Department for Education,DEPARTMENT FOR EDUCATION,01/02/2018,ICT,Digital and Technology Group,VODAFONE CORPORATE,1041024174,10.00,Telecoms facilities and services - mobiles and pagers
Department for Education,DEPARTMENT FOR EDUCATION,01/02/2018,ICT,Digital and Technology Group,VODAFONE CORPORATE,1041024174,10.00,Telecoms facilities and services - mobiles and pagers
Department for Education,DEPARTMENT FOR EDUCATION,01/02/2018,ICT,Digital and Technology Group,VODAFONE CORPORATE,1041024174,10.00,Telecoms facilities and services - mobiles and pagers
Department for Education,DEPARTMENT FOR EDUCATION,01/02/2018,ICT,Digital and Technology Group,VODAFONE CORPORATE,1041024174,10.00,Telecoms facilities and services - mobiles and pagers
Department for Education,DEPARTMENT FOR EDUCATION,01/02/2018,ICT,Digital and Technology Group,VODAFONE CORPORATE,1041024174,10.00,Telecoms facilities and services - mobiles and pagers
Department for Education,DEPARTMENT FOR EDUCATION,01/02/2018,ICT,Digital and Technology Group,VODAFONE CORPORATE,1041024174,10.00,Telecoms facilities and services - mobiles and pagers
Department for Education,DEPARTMENT FOR EDUCATION,01/02/2018,ICT,Digital and Technology Group,VODAFONE CORPORATE,1041024174,10.00,Telecoms facilities and services - mobiles and pagers
Department for Education,DEPARTMENT FOR EDUCATION,01/02/2018,ICT,Digital and Technology Group,VODAFONE CORPORATE,1041024174,5.48,Telecoms facilities and services - mobiles and pagers
Department for Education,DEPARTMENT FOR EDUCATION,01/02/2018,ICT,Digital and Technology Group,VODAFONE CORPORATE,1041024174,10.00,Telecoms facilities and services - mobiles and pagers
Department for Education,DEPARTMENT FOR EDUCATION,01/02/2018,ICT,Digital and Technology Group,VODAFONE CORPORATE,1041024174,5.48,Telecoms facilities and services - mobiles and pagers
Department for Education,DEPARTMENT FOR EDUCATION,01/02/2018,ICT,Digital and Technology Group,VODAFONE CORPORATE,1041024174,10.00,Telecoms facilities and services - mobiles and pagers
Department for Education,DEPARTMENT FOR EDUCATION,01/02/2018,ICT,Digital and Technology Group,VODAFONE CORPORATE,1041024174,10.57,Telecoms facilities and services - mobiles and pagers
Department for Education,DEPARTMENT FOR EDUCATION,01/02/2018,ICT,Digital and Technology Group,VODAFONE CORPORATE,1041024174,10.00,Telecoms facilities and services - mobiles and pagers
Department for Education,DEPARTMENT FOR EDUCATION,01/02/2018,ICT,Digital and Technology Group,VODAFONE CORPORATE,1041024174,10.00,Telecoms facilities and services - mobiles and pagers
Department for Education,DEPARTMENT FOR EDUCATION,01/02/2018,ICT,Digital and Technology Group,VODAFONE CORPORATE,1041024174,5.48,Telecoms facilities and services - mobiles and pagers
Department for Education,DEPARTMENT FOR EDUCATION,01/02/2018,ICT,Digital and Technology Group,VODAFONE CORPORATE,1041024174,10.00,Telecoms facilities and services - mobiles and pagers
Department for Education,DEPARTMENT FOR EDUCATION,01/02/2018,ICT,Digital and Technology Group,VODAFONE CORPORATE,1041024174,10.00,Telecoms facilities and services - mobiles and pagers
Department for Education,DEPARTMENT FOR EDUCATION,01/02/2018,ICT,Digital and Technology Group,VODAFONE CORPORATE,1041024174,10.00,Telecoms facilities and services - mobiles and pagers
Department for Education,DEPARTMENT FOR EDUCATION,01/02/2018,ICT,Digital and Technology Group,VODAFONE CORPORATE,1041024174,5.48,Telecoms facilities and services - mobiles and pagers
Department for Education,DEPARTMENT FOR EDUCATION,01/02/2018,ICT,Digital and Technology Group,VODAFONE CORPORATE,1041024174,10.00,Telecoms facilities and services - mobiles and pagers
Department for Education,DEPARTMENT FOR EDUCATION,01/02/2018,ICT,Digital and Technology Group,VODAFONE CORPORATE,1041024174,11.52,Telecoms facilities and services - mobiles and pagers
Department for Education,DEPARTMENT FOR EDUCATION,01/02/2018,ICT,Digital and Technology Group,VODAFONE CORPORATE,1041024174,5.48,Telecoms facilities and services - mobiles and pagers
Department for Education,DEPARTMENT FOR EDUCATION,01/02/2018,ICT,Digital and Technology Group,VODAFONE CORPORATE,1041024174,10.00,Telecoms facilities and services - mobiles and pagers
Department for Education,DEPARTMENT FOR EDUCATION,01/02/2018,ICT,Digital and Technology Group,VODAFONE CORPORATE,1041024174,10.00,Telecoms facilities and services - mobiles and pagers
Department for Education,DEPARTMENT FOR EDUCATION,01/02/2018,ICT,Digital and Technology Group,VODAFONE CORPORATE,1041024174,10.35,Telecoms facilities and services - mobiles and pagers
Department for Education,DEPARTMENT FOR EDUCATION,01/02/2018,ICT,Digital and Technology Group,VODAFONE CORPORATE,1041024174,10.24,Telecoms facilities and services - mobiles and pagers
Department for Education,DEPARTMENT FOR EDUCATION,01/02/2018,ICT,Digital and Technology Group,VODAFONE CORPORATE,1041024174,10.00,Telecoms facilities and services - mobiles and pagers
Department for Education,DEPARTMENT FOR EDUCATION,01/02/2018,ICT,Digital and Technology Group,VODAFONE CORPORATE,1041024174,10.00,Telecoms facilities and services - mobiles and pagers
Department for Education,DEPARTMENT FOR EDUCATION,01/02/2018,ICT,Digital and Technology Group,VODAFONE CORPORATE,1041024174,5.48,Telecoms facilities and services - mobiles and pagers
Department for Education,DEPARTMENT FOR EDUCATION,01/02/2018,ICT,Digital and Technology Group,VODAFONE CORPORATE,1041024174,10.46,Telecoms facilities and services - mobiles and pagers
Department for Education,DEPARTMENT FOR EDUCATION,01/02/2018,ICT,Digital and Technology Group,VODAFONE CORPORATE,1041024174,5.48,Telecoms facilities and services - mobiles and pagers
Department for Education,DEPARTMENT FOR EDUCATION,01/02/2018,ICT,Digital and Technology Group,VODAFONE CORPORATE,1041024174,10.00,Telecoms facilities and services - mobiles and pagers
Department for Education,DEPARTMENT FOR EDUCATION,01/02/2018,ICT,Digital and Technology Group,VODAFONE CORPORATE,1041024174,11.63,Telecoms facilities and services - mobiles and pagers
Department for Education,DEPARTMENT FOR EDUCATION,01/02/2018,ICT,Digital and Technology Group,VODAFONE CORPORATE,1041024174,15.23,Telecoms facilities and services - mobiles and pagers
Department for Education,DEPARTMENT FOR EDUCATION,01/02/2018,ICT,Digital and Technology Group,VODAFONE CORPORATE,1041024174,10.00,Telecoms facilities and services - mobiles and pagers
Department for Education,DEPARTMENT FOR EDUCATION,01/02/2018,ICT,Digital and Technology Group,VODAFONE CORPORATE,1041024174,10.76,Telecoms facilities and services - mobiles and pagers
Department for Education,DEPARTMENT FOR EDUCATION,01/02/2018,ICT,Digital and Technology Group,VODAFONE CORPORATE,1041024174,10.00,Telecoms facilities and services - mobiles and pagers
Department for Education,DEPARTMENT FOR EDUCATION,01/02/2018,ICT,Digital and Technology Group,VODAFONE CORPORATE,1041024174,12.09,Telecoms facilities and services - mobiles and pagers
Department for Education,DEPARTMENT FOR EDUCATION,01/02/2018,ICT,Digital and Technology Group,VODAFONE CORPORATE,1041024174,5.48,Telecoms facilities and services - mobiles and pagers
Department for Education,DEPARTMENT FOR EDUCATION,01/02/2018,ICT,Digital and Technology Group,VODAFONE CORPORATE,1041024174,5.90,Telecoms facilities and services - mobiles and pagers
Department for Education,DEPARTMENT FOR EDUCATION,01/02/2018,ICT,Digital and Technology Group,VODAFONE CORPORATE,1041024174,10.00,Telecoms facilities and services - mobiles and pagers
Department for Education,DEPARTMENT FOR EDUCATION,01/02/2018,ICT,Digital and Technology Group,VODAFONE CORPORATE,1041024174,10.00,Telecoms facilities and services - mobiles and pagers
Department for Education,DEPARTMENT FOR EDUCATION,01/02/2018,ICT,Digital and Technology Group,VODAFONE CORPORATE,1041024174,10.00,Telecoms facilities and services - mobiles and pagers
Department for Education,DEPARTMENT FOR EDUCATION,01/02/2018,ICT,Digital and Technology Group,VODAFONE CORPORATE,1041024174,10.00,Telecoms facilities and services - mobiles and pagers
Department for Education,DEPARTMENT FOR EDUCATION,01/02/2018,ICT,Digital and Technology Group,VODAFONE CORPORATE,1041024174,10.00,Telecoms facilities and services - mobiles and pagers
Department for Education,DEPARTMENT FOR EDUCATION,01/02/2018,ICT,Digital and Technology Group,VODAFONE CORPORATE,1041024174,5.48,Telecoms facilities and services - mobiles and pagers
Department for Education,DEPARTMENT FOR EDUCATION,01/02/2018,ICT,Digital and Technology Group,VODAFONE CORPORATE,1041024174,5.48,Telecoms facilities and services - mobiles and pagers
Department for Education,DEPARTMENT FOR EDUCATION,01/02/2018,ICT,Digital and Technology Group,VODAFONE CORPORATE,1041024174,10.00,Telecoms facilities and services - mobiles and pagers
Department for Education,DEPARTMENT FOR EDUCATION,01/02/2018,ICT,Digital and Technology Group,VODAFONE CORPORATE,1041024174,5.48,Telecoms facilities and services - mobiles and pagers
Department for Education,DEPARTMENT FOR EDUCATION,01/02/2018,ICT,Digital and Technology Group,VODAFONE CORPORATE,1041024174,5.48,Telecoms facilities and services - mobiles and pagers
Department for Education,DEPARTMENT FOR EDUCATION,01/02/2018,ICT,Digital and Technology Group,VODAFONE CORPORATE,1041024174,5.48,Telecoms facilities and services - mobiles and pagers
Department for Education,DEPARTMENT FOR EDUCATION,01/02/2018,ICT,Digital and Technology Group,VODAFONE CORPORATE,1041024174,5.48,Telecoms facilities and services - mobiles and pagers
Department for Education,DEPARTMENT FOR EDUCATION,01/02/2018,ICT,Digital and Technology Group,VODAFONE CORPORATE,1041024174,5.48,Telecoms facilities and services - mobiles and pagers
Department for Education,DEPARTMENT FOR EDUCATION,01/02/2018,ICT,Digital and Technology Group,VODAFONE CORPORATE,1041024174,5.58,Telecoms facilities and services - mobiles and pagers
Department for Education,DEPARTMENT FOR EDUCATION,01/02/2018,ICT,Digital and Technology Group,VODAFONE CORPORATE,1041024174,5.48,Telecoms facilities and services - mobiles and pagers
Department for Education,DEPARTMENT FOR EDUCATION,01/02/2018,ICT,Digital and Technology Group,VODAFONE CORPORATE,1041024174,10.00,Telecoms facilities and services - mobiles and pagers
Department for Education,DEPARTMENT FOR EDUCATION,01/02/2018,ICT,Digital and Technology Group,VODAFONE CORPORATE,1041024174,6.58,Telecoms facilities and services - mobiles and pagers
Department for Education,DEPARTMENT FOR EDUCATION,01/02/2018,ICT,Digital and Technology Group,VODAFONE CORPORATE,1041024174,6.58,Telecoms facilities and services - mobiles and pagers
Department for Education,DEPARTMENT FOR EDUCATION,01/02/2018,ICT,Digital and Technology Group,VODAFONE CORPORATE,1041024174,12.00,Telecoms facilities and services - mobiles and pagers
Department for Education,DEPARTMENT FOR EDUCATION,01/02/2018,ICT,Digital and Technology Group,VODAFONE CORPORATE,1041024174,12.00,Telecoms facilities and services - mobiles and pagers
Department for Education,DEPARTMENT FOR EDUCATION,01/02/2018,ICT,Digital and Technology Group,VODAFONE CORPORATE,1041024174,6.58,Telecoms facilities and services - mobiles and pagers
Department for Education,DEPARTMENT FOR EDUCATION,01/02/2018,ICT,Digital and Technology Group,VODAFONE CORPORATE,1041024174,6.58,Telecoms facilities and services - mobiles and pagers
Department for Education,DEPARTMENT FOR EDUCATION,01/02/2018,ICT,Digital and Technology Group,VODAFONE CORPORATE,1041024174,6.58,Telecoms facilities and services - mobiles and pagers
Department for Education,DEPARTMENT FOR EDUCATION,01/02/2018,ICT,Digital and Technology Group,VODAFONE CORPORATE,1041024174,10.00,Telecoms facilities and services - mobiles and pagers
Department for Education,DEPARTMENT FOR EDUCATION,01/02/2018,ICT,Digital and Technology Group,VODAFONE CORPORATE,1041024174,6.58,Telecoms facilities and services - mobiles and pagers
Department for Education,DEPARTMENT FOR EDUCATION,01/02/2018,ICT,Digital and Technology Group,VODAFONE CORPORATE,1041024174,12.00,Telecoms facilities and services - mobiles and pagers
Department for Education,DEPARTMENT FOR EDUCATION,01/02/2018,ICT,Digital and Technology Group,VODAFONE CORPORATE,1041024174,6.58,Telecoms facilities and services - mobiles and pagers
Department for Education,DEPARTMENT FOR EDUCATION,01/02/2018,ICT,Digital and Technology Group,VODAFONE CORPORATE,1041024174,12.00,Telecoms facilities and services - mobiles and pagers
Department for Education,DEPARTMENT FOR EDUCATION,01/02/2018,ICT,Digital and Technology Group,VODAFONE CORPORATE,1041024174,10.00,Telecoms facilities and services - mobiles and pagers
Department for Education,DEPARTMENT FOR EDUCATION,01/02/2018,ICT,Digital and Technology Group,VODAFONE CORPORATE,1041024174,12.00,Telecoms facilities and services - mobiles and pagers
Department for Education,DEPARTMENT FOR EDUCATION,01/02/2018,ICT,Digital and Technology Group,VODAFONE CORPORATE,1041024174,12.00,Telecoms facilities and services - mobiles and pagers
Department for Education,DEPARTMENT FOR EDUCATION,01/02/2018,ICT,Digital and Technology Group,VODAFONE CORPORATE,1041024174,12.00,Telecoms facilities and services - mobiles and pagers
Department for Education,DEPARTMENT FOR EDUCATION,01/02/2018,ICT,Digital and Technology Group,VODAFONE CORPORATE,1041024174,10.00,Telecoms facilities and services - mobiles and pagers
Department for Education,DEPARTMENT FOR EDUCATION,01/02/2018,ICT,Digital and Technology Group,VODAFONE CORPORATE,1041024174,10.00,Telecoms facilities and services - mobiles and pagers
Department for Education,DEPARTMENT FOR EDUCATION,01/02/2018,ICT,Digital and Technology Group,VODAFONE CORPORATE,1041024174,12.00,Telecoms facilities and services - mobiles and pagers
Department for Education,DEPARTMENT FOR EDUCATION,01/02/2018,ICT,Digital and Technology Group,VODAFONE CORPORATE,1041024174,12.00,Telecoms facilities and services - mobiles and pagers
Department for Education,DEPARTMENT FOR EDUCATION,01/02/2018,ICT,Digital and Technology Group,VODAFONE CORPORATE,1041024174,6.58,Telecoms facilities and services - mobiles and pagers
Department for Education,DEPARTMENT FOR EDUCATION,01/02/2018,ICT,Digital and Technology Group,VODAFONE CORPORATE,1041024174,6.58,Telecoms facilities and services - mobiles and pagers
Department for Education,DEPARTMENT FOR EDUCATION,01/02/2018,ICT,Digital and Technology Group,VODAFONE CORPORATE,1041024174,10.45,Telecoms facilities and services - mobiles and pagers
Department for Education,DEPARTMENT FOR EDUCATION,01/02/2018,ICT,Digital and Technology Group,VODAFONE CORPORATE,1041024174,10.00,Telecoms facilities and services - mobiles and pagers
Department for Education,DEPARTMENT FOR EDUCATION,01/02/2018,ICT,Digital and Technology Group,VODAFONE CORPORATE,1041024174,10.00,Telecoms facilities and services - mobiles and pagers
Department for Education,DEPARTMENT FOR EDUCATION,01/02/2018,ICT,Digital and Technology Group,VODAFONE CORPORATE,1041024174,14.83,Telecoms facilities and services - mobiles and pagers
Department for Education,DEPARTMENT FOR EDUCATION,01/02/2018,ICT,Digital and Technology Group,VODAFONE CORPORATE,1041024174,10.30,Telecoms facilities and services - mobiles and pagers
Department for Education,DEPARTMENT FOR EDUCATION,01/02/2018,ICT,Digital and Technology Group,VODAFONE CORPORATE,1041024174,10.00,Telecoms facilities and services - mobiles and pagers
Department for Education,DEPARTMENT FOR EDUCATION,01/02/2018,ICT,Digital and Technology Group,VODAFONE CORPORATE,1041024174,10.00,Telecoms facilities and services - mobiles and pagers
Department for Education,DEPARTMENT FOR EDUCATION,01/02/2018,ICT,Digital and Technology Group,VODAFONE CORPORATE,1041024174,10.00,Telecoms facilities and services - mobiles and pagers
Department for Education,DEPARTMENT FOR EDUCATION,01/02/2018,ICT,Digital and Technology Group,VODAFONE CORPORATE,1041024174,10.00,Telecoms facilities and services - mobiles and pagers
Department for Education,DEPARTMENT FOR EDUCATION,01/02/2018,ICT,Digital and Technology Group,VODAFONE CORPORATE,1041024174,10.00,Telecoms facilities and services - mobiles and pagers
Department for Education,DEPARTMENT FOR EDUCATION,01/02/2018,ICT,Digital and Technology Group,VODAFONE CORPORATE,1041024174,10.00,Telecoms facilities and services - mobiles and pagers
Department for Education,DEPARTMENT FOR EDUCATION,01/02/2018,ICT,Digital and Technology Group,VODAFONE CORPORATE,1041024174,10.00,Telecoms facilities and services - mobiles and pagers
Department for Education,DEPARTMENT FOR EDUCATION,01/02/2018,ICT,Digital and Technology Group,VODAFONE CORPORATE,1041024174,10.00,Telecoms facilities and services - mobiles and pagers
Department for Education,DEPARTMENT FOR EDUCATION,01/02/2018,ICT,Digital and Technology Group,VODAFONE CORPORATE,1041024174,10.00,Telecoms facilities and services - mobiles and pagers
Department for Education,DEPARTMENT FOR EDUCATION,01/02/2018,ICT,Digital and Technology Group,VODAFONE CORPORATE,1041024174,10.00,Telecoms facilities and services - mobiles and pagers
Department for Education,DEPARTMENT FOR EDUCATION,01/02/2018,ICT,Digital and Technology Group,VODAFONE CORPORATE,1041024174,5.48,Telecoms facilities and services - mobiles and pagers
Department for Education,DEPARTMENT FOR EDUCATION,01/02/2018,ICT,Digital and Technology Group,VODAFONE CORPORATE,1041024174,10.00,Telecoms facilities and services - mobiles and pagers
Department for Education,DEPARTMENT FOR EDUCATION,01/02/2018,ICT,Digital and Technology Group,VODAFONE CORPORATE,1041024174,5.48,Telecoms facilities and services - mobiles and pagers
Department for Education,DEPARTMENT FOR EDUCATION,01/02/2018,ICT,Digital and Technology Group,VODAFONE CORPORATE,1041024174,10.00,Telecoms facilities and services - mobiles and pagers
Department for Education,DEPARTMENT FOR EDUCATION,01/02/2018,ICT,Digital and Technology Group,VODAFONE CORPORATE,1041024174,5.48,Telecoms facilities and services - mobiles and pagers
Department for Education,DEPARTMENT FOR EDUCATION,01/02/2018,ICT,Digital and Technology Group,VODAFONE CORPORATE,1041024174,10.00,Telecoms facilities and services - mobiles and pagers
Department for Education,DEPARTMENT FOR EDUCATION,01/02/2018,ICT,Digital and Technology Group,VODAFONE CORPORATE,1041024174,5.48,Telecoms facilities and services - mobiles and pagers
Department for Education,DEPARTMENT FOR EDUCATION,01/02/2018,ICT,Digital and Technology Group,VODAFONE CORPORATE,1041024174,10.00,Telecoms facilities and services - mobiles and pagers
Department for Education,DEPARTMENT FOR EDUCATION,01/02/2018,ICT,Digital and Technology Group,VODAFONE CORPORATE,1041024174,5.48,Telecoms facilities and services - mobiles and pagers
Department for Education,DEPARTMENT FOR EDUCATION,01/02/2018,ICT,Digital and Technology Group,VODAFONE CORPORATE,1041024174,5.48,Telecoms facilities and services - mobiles and pagers
Department for Education,DEPARTMENT FOR EDUCATION,01/02/2018,ICT,Digital and Technology Group,VODAFONE CORPORATE,1041024174,10.00,Telecoms facilities and services - mobiles and pagers
Department for Education,DEPARTMENT FOR EDUCATION,01/02/2018,ICT,Digital and Technology Group,VODAFONE CORPORATE,1041024174,10.00,Telecoms facilities and services - mobiles and pagers
Department for Education,DEPARTMENT FOR EDUCATION,01/02/2018,ICT,Digital and Technology Group,VODAFONE CORPORATE,1041024174,5.48,Telecoms facilities and services - mobiles and pagers
Department for Education,DEPARTMENT FOR EDUCATION,01/02/2018,ICT,Digital and Technology Group,VODAFONE CORPORATE,1041024174,5.48,Telecoms facilities and services - mobiles and pagers
Department for Education,DEPARTMENT FOR EDUCATION,01/02/2018,ICT,Digital and Technology Group,VODAFONE CORPORATE,1041024174,10.00,Telecoms facilities and services - mobiles and pagers
Department for Education,DEPARTMENT FOR EDUCATION,01/02/2018,ICT,Digital and Technology Group,VODAFONE CORPORATE,1041024174,5.48,Telecoms facilities and services - mobiles and pagers
Department for Education,DEPARTMENT FOR EDUCATION,01/02/2018,ICT,Digital and Technology Group,VODAFONE CORPORATE,1041024174,10.00,Telecoms facilities and services - mobiles and pagers
Department for Education,DEPARTMENT FOR EDUCATION,01/02/2018,ICT,Digital and Technology Group,VODAFONE CORPORATE,1041024174,10.00,Telecoms facilities and services - mobiles and pagers
Department for Education,DEPARTMENT FOR EDUCATION,01/02/2018,ICT,Digital and Technology Group,VODAFONE CORPORATE,1041024174,10.00,Telecoms facilities and services - mobiles and pagers
Department for Education,DEPARTMENT FOR EDUCATION,01/02/2018,ICT,Digital and Technology Group,VODAFONE CORPORATE,1041024174,10.00,Telecoms facilities and services - mobiles and pagers
Department for Education,DEPARTMENT FOR EDUCATION,01/02/2018,ICT,Digital and Technology Group,VODAFONE CORPORATE,1041024174,10.50,Telecoms facilities and services - mobiles and pagers
Department for Education,DEPARTMENT FOR EDUCATION,01/02/2018,ICT,Digital and Technology Group,VODAFONE CORPORATE,1041024174,10.00,Telecoms facilities and services - mobiles and pagers
Department for Education,DEPARTMENT FOR EDUCATION,01/02/2018,ICT,Digital and Technology Group,VODAFONE CORPORATE,1041024174,10.00,Telecoms facilities and services - mobiles and pagers
Department for Education,DEPARTMENT FOR EDUCATION,01/02/2018,ICT,Digital and Technology Group,VODAFONE CORPORATE,1041024174,5.48,Telecoms facilities and services - mobiles and pagers
Department for Education,DEPARTMENT FOR EDUCATION,01/02/2018,ICT,Digital and Technology Group,VODAFONE CORPORATE,1041024174,5.48,Telecoms facilities and services - mobiles and pagers
Department for Education,DEPARTMENT FOR EDUCATION,01/02/2018,ICT,Digital and Technology Group,VODAFONE CORPORATE,1041024174,10.00,Telecoms facilities and services - mobiles and pagers
Department for Education,DEPARTMENT FOR EDUCATION,01/02/2018,ICT,Digital and Technology Group,VODAFONE CORPORATE,1041024174,5.48,Telecoms facilities and services - mobiles and pagers
Department for Education,DEPARTMENT FOR EDUCATION,01/02/2018,ICT,Digital and Technology Group,VODAFONE CORPORATE,1041024174,5.48,Telecoms facilities and services - mobiles and pagers
Department for Education,DEPARTMENT FOR EDUCATION,01/02/2018,ICT,Digital and Technology Group,VODAFONE CORPORATE,1041024174,10.00,Telecoms facilities and services - mobiles and pagers
Department for Education,DEPARTMENT FOR EDUCATION,01/02/2018,ICT,Digital and Technology Group,VODAFONE CORPORATE,1041024174,10.00,Telecoms facilities and services - mobiles and pagers
Department for Education,DEPARTMENT FOR EDUCATION,01/02/2018,ICT,Digital and Technology Group,VODAFONE CORPORATE,1041024174,10.00,Telecoms facilities and services - mobiles and pagers
Department for Education,DEPARTMENT FOR EDUCATION,01/02/2018,ICT,Digital and Technology Group,VODAFONE CORPORATE,1041024174,10.00,Telecoms facilities and services - mobiles and pagers
Department for Education,DEPARTMENT FOR EDUCATION,01/02/2018,ICT,Digital and Technology Group,VODAFONE CORPORATE,1041024174,10.00,Telecoms facilities and services - mobiles and pagers
Department for Education,DEPARTMENT FOR EDUCATION,01/02/2018,ICT,Digital and Technology Group,VODAFONE CORPORATE,1041024174,10.00,Telecoms facilities and services - mobiles and pagers
Department for Education,DEPARTMENT FOR EDUCATION,01/02/2018,ICT,Digital and Technology Group,VODAFONE CORPORATE,1041024174,10.00,Telecoms facilities and services - mobiles and pagers
Department for Education,DEPARTMENT FOR EDUCATION,01/02/2018,ICT,Digital and Technology Group,VODAFONE CORPORATE,1041024174,10.12,Telecoms facilities and services - mobiles and pagers
Department for Education,DEPARTMENT FOR EDUCATION,01/02/2018,ICT,Digital and Technology Group,VODAFONE CORPORATE,1041024174,16.40,Telecoms facilities and services - mobiles and pagers
Department for Education,DEPARTMENT FOR EDUCATION,01/02/2018,ICT,Digital and Technology Group,VODAFONE CORPORATE,1041024174,5.48,Telecoms facilities and services - mobiles and pagers
Department for Education,DEPARTMENT FOR EDUCATION,01/02/2018,ICT,Digital and Technology Group,VODAFONE CORPORATE,1041024174,10.00,Telecoms facilities and services - mobiles and pagers
Department for Education,DEPARTMENT FOR EDUCATION,01/02/2018,ICT,Digital and Technology Group,VODAFONE CORPORATE,1041024174,10.00,Telecoms facilities and services - mobiles and pagers
Department for Education,DEPARTMENT FOR EDUCATION,01/02/2018,ICT,Digital and Technology Group,VODAFONE CORPORATE,1041024174,12.32,Telecoms facilities and services - mobiles and pagers
Department for Education,DEPARTMENT FOR EDUCATION,01/02/2018,ICT,Digital and Technology Group,VODAFONE CORPORATE,1041024174,5.48,Telecoms facilities and services - mobiles and pagers
Department for Education,DEPARTMENT FOR EDUCATION,01/02/2018,ICT,Digital and Technology Group,VODAFONE CORPORATE,1041024174,5.48,Telecoms facilities and services - mobiles and pagers
Department for Education,DEPARTMENT FOR EDUCATION,01/02/2018,ICT,Digital and Technology Group,VODAFONE CORPORATE,1041024174,10.00,Telecoms facilities and services - mobiles and pagers
Department for Education,DEPARTMENT FOR EDUCATION,01/02/2018,ICT,Digital and Technology Group,VODAFONE CORPORATE,1041024174,5.48,Telecoms facilities and services - mobiles and pagers
Department for Education,DEPARTMENT FOR EDUCATION,01/02/2018,ICT,Digital and Technology Group,VODAFONE CORPORATE,1041024174,5.48,Telecoms facilities and services - mobiles and pagers
Department for Education,DEPARTMENT FOR EDUCATION,01/02/2018,ICT,Digital and Technology Group,VODAFONE CORPORATE,1041024174,156.28,Telecoms facilities and services - mobiles and pagers
Department for Education,DEPARTMENT FOR EDUCATION,01/02/2018,ICT,Digital and Technology Group,VODAFONE CORPORATE,1041024174,5.48,Telecoms facilities and services - mobiles and pagers
Department for Education,DEPARTMENT FOR EDUCATION,01/02/2018,ICT,Digital and Technology Group,VODAFONE CORPORATE,1041024174,5.48,Telecoms facilities and services - mobiles and pagers
Department for Education,DEPARTMENT FOR EDUCATION,01/02/2018,ICT,Digital and Technology Group,VODAFONE CORPORATE,1041024174,10.00,Telecoms facilities and services - mobiles and pagers
Department for Education,DEPARTMENT FOR EDUCATION,01/02/2018,ICT,Digital and Technology Group,VODAFONE CORPORATE,1041024174,5.48,Telecoms facilities and services - mobiles and pagers
Department for Education,DEPARTMENT FOR EDUCATION,01/02/2018,ICT,Digital and Technology Group,VODAFONE CORPORATE,1041024174,5.48,Telecoms facilities and services - mobiles and pagers
Department for Education,DEPARTMENT FOR EDUCATION,01/02/2018,ICT,Digital and Technology Group,VODAFONE CORPORATE,1041024174,20.00,Telecoms facilities and services - mobiles and pagers
Department for Education,DEPARTMENT FOR EDUCATION,01/02/2018,ICT,Digital and Technology Group,VODAFONE CORPORATE,1041024174,20.00,Telecoms facilities and services - mobiles and pagers
Department for Education,DEPARTMENT FOR EDUCATION,01/02/2018,ICT,Digital and Technology Group,VODAFONE CORPORATE,1041024174,20.00,Telecoms facilities and services - mobiles and pagers
Department for Education,DEPARTMENT FOR EDUCATION,01/02/2018,ICT,Digital and Technology Group,VODAFONE CORPORATE,1041024174,10.69,Telecoms facilities and services - mobiles and pagers
Department for Education,DEPARTMENT FOR EDUCATION,01/02/2018,ICT,Digital and Technology Group,VODAFONE CORPORATE,1041024174,20.00,Telecoms facilities and services - mobiles and pagers
Department for Education,DEPARTMENT FOR EDUCATION,01/02/2018,ICT,Digital and Technology Group,VODAFONE CORPORATE,1041024174,20.00,Telecoms facilities and services - mobiles and pagers
Department for Education,DEPARTMENT FOR EDUCATION,01/02/2018,ICT,Digital and Technology Group,VODAFONE CORPORATE,1041024174,19.03,Telecoms facilities and services - mobiles and pagers
Department for Education,DEPARTMENT FOR EDUCATION,01/02/2018,ICT,Digital and Technology Group,VODAFONE CORPORATE,1041024174,18.71,Telecoms facilities and services - mobiles and pagers
Department for Education,DEPARTMENT FOR EDUCATION,01/02/2018,ICT,Digital and Technology Group,VODAFONE CORPORATE,1041024174,18.71,Telecoms facilities and services - mobiles and pagers
Department for Education,DEPARTMENT FOR EDUCATION,01/02/2018,ICT,Digital and Technology Group,VODAFONE CORPORATE,1041024174,18.71,Telecoms facilities and services - mobiles and pagers
Department for Education,DEPARTMENT FOR EDUCATION,01/02/2018,ICT,Digital and Technology Group,VODAFONE CORPORATE,1041024174,18.71,Telecoms facilities and services - mobiles and pagers
Department for Education,DEPARTMENT FOR EDUCATION,01/02/2018,ICT,Digital and Technology Group,VODAFONE CORPORATE,1041024174,18.71,Telecoms facilities and services - mobiles and pagers
Department for Education,DEPARTMENT FOR EDUCATION,01/02/2018,ICT,Digital and Technology Group,VODAFONE CORPORATE,1041024174,13.87,Telecoms facilities and services - mobiles and pagers
Department for Education,DEPARTMENT FOR EDUCATION,01/02/2018,ICT,Digital and Technology Group,VODAFONE CORPORATE,1041024174,18.54,Telecoms facilities and services - mobiles and pagers
Department for Education,DEPARTMENT FOR EDUCATION,01/02/2018,ICT,Digital and Technology Group,VODAFONE CORPORATE,1041024174,18.39,Telecoms facilities and services - mobiles and pagers
Department for Education,DEPARTMENT FOR EDUCATION,01/02/2018,ICT,Digital and Technology Group,VODAFONE CORPORATE,1041024174,18.39,Telecoms facilities and services - mobiles and pagers
Department for Education,DEPARTMENT FOR EDUCATION,01/02/2018,ICT,Digital and Technology Group,VODAFONE CORPORATE,1041024174,13.54,Telecoms facilities and services - mobiles and pagers
Department for Education,DEPARTMENT FOR EDUCATION,01/02/2018,ICT,Digital and Technology Group,VODAFONE CORPORATE,1041024174,17.74,Telecoms facilities and services - mobiles and pagers
Department for Education,DEPARTMENT FOR EDUCATION,01/02/2018,ICT,Digital and Technology Group,VODAFONE CORPORATE,1041024174,17.74,Telecoms facilities and services - mobiles and pagers
Department for Education,DEPARTMENT FOR EDUCATION,01/02/2018,ICT,Digital and Technology Group,VODAFONE CORPORATE,1041024174,21.29,Telecoms facilities and services - mobiles and pagers
Department for Education,DEPARTMENT FOR EDUCATION,01/02/2018,ICT,Digital and Technology Group,VODAFONE CORPORATE,1041024174,15.87,Telecoms facilities and services - mobiles and pagers
Department for Education,DEPARTMENT FOR EDUCATION,01/02/2018,ICT,Digital and Technology Group,VODAFONE CORPORATE,1041024174,21.29,Telecoms facilities and services - mobiles and pagers
Department for Education,DEPARTMENT FOR EDUCATION,01/02/2018,ICT,Digital and Technology Group,VODAFONE CORPORATE,1041024174,21.29,Telecoms facilities and services - mobiles and pagers
Department for Education,DEPARTMENT FOR EDUCATION,01/02/2018,ICT,Digital and Technology Group,VODAFONE CORPORATE,1041024174,21.29,Telecoms facilities and services - mobiles and pagers
Department for Education,DEPARTMENT FOR EDUCATION,01/02/2018,ICT,Digital and Technology Group,VODAFONE CORPORATE,1041024174,21.29,Telecoms facilities and services - mobiles and pagers
Department for Education,DEPARTMENT FOR EDUCATION,01/02/2018,ICT,Digital and Technology Group,VODAFONE CORPORATE,1041024174,21.29,Telecoms facilities and services - mobiles and pagers
Department for Education,DEPARTMENT FOR EDUCATION,01/02/2018,ICT,Digital and Technology Group,VODAFONE CORPORATE,1041024174,21.29,Telecoms facilities and services - mobiles and pagers
Department for Education,DEPARTMENT FOR EDUCATION,01/02/2018,ICT,Digital and Technology Group,VODAFONE CORPORATE,1041024174,21.29,Telecoms facilities and services - mobiles and pagers
Department for Education,DEPARTMENT FOR EDUCATION,01/02/2018,ICT,Digital and Technology Group,VODAFONE CORPORATE,1041024174,21.29,Telecoms facilities and services - mobiles and pagers
Department for Education,DEPARTMENT FOR EDUCATION,01/02/2018,ICT,Digital and Technology Group,VODAFONE CORPORATE,1041024174,17.74,Telecoms facilities and services - mobiles and pagers
Department for Education,DEPARTMENT FOR EDUCATION,01/02/2018,ICT,Digital and Technology Group,VODAFONE CORPORATE,1041024174,17.74,Telecoms facilities and services - mobiles and pagers
Department for Education,DEPARTMENT FOR EDUCATION,01/02/2018,ICT,Digital and Technology Group,VODAFONE CORPORATE,1041024174,18.83,Telecoms facilities and services - mobiles and pagers
Department for Education,DEPARTMENT FOR EDUCATION,01/02/2018,ICT,Digital and Technology Group,VODAFONE CORPORATE,1041024174,16.77,Telecoms facilities and services - mobiles and pagers
Department for Education,DEPARTMENT FOR EDUCATION,01/02/2018,ICT,Digital and Technology Group,VODAFONE CORPORATE,1041024174,16.77,Telecoms facilities and services - mobiles and pagers
Department for Education,DEPARTMENT FOR EDUCATION,01/02/2018,ICT,Digital and Technology Group,VODAFONE CORPORATE,1041024174,16.77,Telecoms facilities and services - mobiles and pagers
Department for Education,DEPARTMENT FOR EDUCATION,01/02/2018,ICT,Digital and Technology Group,VODAFONE CORPORATE,1041024174,16.13,Telecoms facilities and services - mobiles and pagers
Department for Education,DEPARTMENT FOR EDUCATION,01/02/2018,ICT,Digital and Technology Group,VODAFONE CORPORATE,1041024174,16.13,Telecoms facilities and services - mobiles and pagers
Department for Education,DEPARTMENT FOR EDUCATION,01/02/2018,ICT,Digital and Technology Group,VODAFONE CORPORATE,1041024174,15.81,Telecoms facilities and services - mobiles and pagers
Department for Education,DEPARTMENT FOR EDUCATION,01/02/2018,ICT,Digital and Technology Group,VODAFONE CORPORATE,1041024174,15.81,Telecoms facilities and services - mobiles and pagers
Department for Education,DEPARTMENT FOR EDUCATION,01/02/2018,ICT,Digital and Technology Group,VODAFONE CORPORATE,1041024174,15.48,Telecoms facilities and services - mobiles and pagers
Department for Education,DEPARTMENT FOR EDUCATION,01/02/2018,ICT,Digital and Technology Group,VODAFONE CORPORATE,1041024174,14.52,Telecoms facilities and services - mobiles and pagers
Department for Education,DEPARTMENT FOR EDUCATION,01/02/2018,ICT,Digital and Technology Group,VODAFONE CORPORATE,1041024174,14.52,Telecoms facilities and services - mobiles and pagers
Department for Education,DEPARTMENT FOR EDUCATION,01/02/2018,ICT,Digital and Technology Group,VODAFONE CORPORATE,1041024174,14.52,Telecoms facilities and services - mobiles and pagers
Department for Education,DEPARTMENT FOR EDUCATION,01/02/2018,ICT,Digital and Technology Group,VODAFONE CORPORATE,1041024174,9.67,Telecoms facilities and services - mobiles and pagers
Department for Education,DEPARTMENT FOR EDUCATION,01/02/2018,ICT,Digital and Technology Group,VODAFONE CORPORATE,1041024174,9.67,Telecoms facilities and services - mobiles and pagers
Department for Education,DEPARTMENT FOR EDUCATION,01/02/2018,ICT,Digital and Technology Group,VODAFONE CORPORATE,1041024174,9.67,Telecoms facilities and services - mobiles and pagers
Department for Education,DEPARTMENT FOR EDUCATION,01/02/2018,ICT,Digital and Technology Group,VODAFONE CORPORATE,1041024174,9.67,Telecoms facilities and services - mobiles and pagers
Department for Education,DEPARTMENT FOR EDUCATION,01/02/2018,ICT,Digital and Technology Group,VODAFONE CORPORATE,1041024174,9.67,Telecoms facilities and services - mobiles and pagers
Department for Education,DEPARTMENT FOR EDUCATION,01/02/2018,ICT,Digital and Technology Group,VODAFONE CORPORATE,1041024174,13.55,Telecoms facilities and services - mobiles and pagers
Department for Education,DEPARTMENT FOR EDUCATION,01/02/2018,ICT,Digital and Technology Group,VODAFONE CORPORATE,1041024174,13.23,Telecoms facilities and services - mobiles and pagers
Department for Education,DEPARTMENT FOR EDUCATION,01/02/2018,ICT,Digital and Technology Group,VODAFONE CORPORATE,1041024174,13.23,Telecoms facilities and services - mobiles and pagers
Department for Education,DEPARTMENT FOR EDUCATION,01/02/2018,ICT,Digital and Technology Group,VODAFONE CORPORATE,1041024174,13.23,Telecoms facilities and services - mobiles and pagers
Department for Education,DEPARTMENT FOR EDUCATION,01/02/2018,ICT,Digital and Technology Group,VODAFONE CORPORATE,1041024174,13.23,Telecoms facilities and services - mobiles and pagers
Department for Education,DEPARTMENT FOR EDUCATION,01/02/2018,ICT,Digital and Technology Group,VODAFONE CORPORATE,1041024174,13.23,Telecoms facilities and services - mobiles and pagers
Department for Education,DEPARTMENT FOR EDUCATION,01/02/2018,ICT,Digital and Technology Group,VODAFONE CORPORATE,1041024174,12.26,Telecoms facilities and services - mobiles and pagers
Department for Education,DEPARTMENT FOR EDUCATION,01/02/2018,ICT,Digital and Technology Group,VODAFONE CORPORATE,1041024174,12.26,Telecoms facilities and services - mobiles and pagers
Department for Education,DEPARTMENT FOR EDUCATION,01/02/2018,ICT,Digital and Technology Group,VODAFONE CORPORATE,1041024174,12.26,Telecoms facilities and services - mobiles and pagers
Department for Education,DEPARTMENT FOR EDUCATION,01/02/2018,ICT,Digital and Technology Group,VODAFONE CORPORATE,1041024174,11.94,Telecoms facilities and services - mobiles and pagers
Department for Education,DEPARTMENT FOR EDUCATION,01/02/2018,ICT,Digital and Technology Group,VODAFONE CORPORATE,1041024174,11.94,Telecoms facilities and services - mobiles and pagers
Department for Education,DEPARTMENT FOR EDUCATION,01/02/2018,ICT,Digital and Technology Group,VODAFONE CORPORATE,1041024174,11.94,Telecoms facilities and services - mobiles and pagers
Department for Education,DEPARTMENT FOR EDUCATION,01/02/2018,ICT,Digital and Technology Group,VODAFONE CORPORATE,1041024174,11.94,Telecoms facilities and services - mobiles and pagers
Department for Education,DEPARTMENT FOR EDUCATION,01/02/2018,ICT,Digital and Technology Group,VODAFONE CORPORATE,1041024174,11.94,Telecoms facilities and services - mobiles and pagers
Department for Education,DEPARTMENT FOR EDUCATION,01/02/2018,ICT,Digital and Technology Group,VODAFONE CORPORATE,1041024174,11.94,Telecoms facilities and services - mobiles and pagers
Department for Education,DEPARTMENT FOR EDUCATION,01/02/2018,ICT,Digital and Technology Group,VODAFONE CORPORATE,1041024174,11.94,Telecoms facilities and services - mobiles and pagers
Department for Education,DEPARTMENT FOR EDUCATION,01/02/2018,ICT,Digital and Technology Group,VODAFONE CORPORATE,1041024174,11.94,Telecoms facilities and services - mobiles and pagers
Department for Education,DEPARTMENT FOR EDUCATION,01/02/2018,ICT,Digital and Technology Group,VODAFONE CORPORATE,1041024174,11.94,Telecoms facilities and services - mobiles and pagers
Department for Education,DEPARTMENT FOR EDUCATION,01/02/2018,ICT,Digital and Technology Group,VODAFONE CORPORATE,1041024174,11.94,Telecoms facilities and services - mobiles and pagers
Department for Education,DEPARTMENT FOR EDUCATION,01/02/2018,ICT,Digital and Technology Group,VODAFONE CORPORATE,1041024174,11.94,Telecoms facilities and services - mobiles and pagers
Department for Education,DEPARTMENT FOR EDUCATION,01/02/2018,ICT,Digital and Technology Group,VODAFONE CORPORATE,1041024174,11.94,Telecoms facilities and services - mobiles and pagers
Department for Education,DEPARTMENT FOR EDUCATION,01/02/2018,ICT,Digital and Technology Group,VODAFONE CORPORATE,1041024174,11.94,Telecoms facilities and services - mobiles and pagers
Department for Education,DEPARTMENT FOR EDUCATION,01/02/2018,ICT,Digital and Technology Group,VODAFONE CORPORATE,1041024174,11.94,Telecoms facilities and services - mobiles and pagers
Department for Education,DEPARTMENT FOR EDUCATION,01/02/2018,ICT,Digital and Technology Group,VODAFONE CORPORATE,1041024174,11.94,Telecoms facilities and services - mobiles and pagers
Department for Education,DEPARTMENT FOR EDUCATION,01/02/2018,ICT,Digital and Technology Group,VODAFONE CORPORATE,1041024174,11.94,Telecoms facilities and services - mobiles and pagers
Department for Education,DEPARTMENT FOR EDUCATION,01/02/2018,ICT,Digital and Technology Group,VODAFONE CORPORATE,1041024174,11.94,Telecoms facilities and services - mobiles and pagers
Department for Education,DEPARTMENT FOR EDUCATION,01/02/2018,ICT,Digital and Technology Group,VODAFONE CORPORATE,1041024174,11.94,Telecoms facilities and services - mobiles and pagers
Department for Education,DEPARTMENT FOR EDUCATION,01/02/2018,ICT,Digital and Technology Group,VODAFONE CORPORATE,1041024174,7.42,Telecoms facilities and services - mobiles and pagers
Department for Education,DEPARTMENT FOR EDUCATION,01/02/2018,ICT,Digital and Technology Group,VODAFONE CORPORATE,1041024174,11.94,Telecoms facilities and services - mobiles and pagers
Department for Education,DEPARTMENT FOR EDUCATION,01/02/2018,ICT,Digital and Technology Group,VODAFONE CORPORATE,1041024174,10.00,Telecoms facilities and services - mobiles and pagers
Department for Education,DEPARTMENT FOR EDUCATION,01/02/2018,ICT,Digital and Technology Group,VODAFONE CORPORATE,1041024174,7.09,Telecoms facilities and services - mobiles and pagers
Department for Education,DEPARTMENT FOR EDUCATION,01/02/2018,ICT,Digital and Technology Group,VODAFONE CORPORATE,1041024174,11.61,Telecoms facilities and services - mobiles and pagers
Department for Education,DEPARTMENT FOR EDUCATION,01/02/2018,ICT,Digital and Technology Group,VODAFONE CORPORATE,1041024174,11.29,Telecoms facilities and services - mobiles and pagers
Department for Education,DEPARTMENT FOR EDUCATION,01/02/2018,ICT,Digital and Technology Group,VODAFONE CORPORATE,1041024174,11.29,Telecoms facilities and services - mobiles and pagers
Department for Education,DEPARTMENT FOR EDUCATION,01/02/2018,ICT,Digital and Technology Group,VODAFONE CORPORATE,1041024174,6.77,Telecoms facilities and services - mobiles and pagers
Department for Education,DEPARTMENT FOR EDUCATION,01/02/2018,ICT,Digital and Technology Group,VODAFONE CORPORATE,1041024174,11.29,Telecoms facilities and services - mobiles and pagers
Department for Education,DEPARTMENT FOR EDUCATION,01/02/2018,ICT,Digital and Technology Group,VODAFONE CORPORATE,1041024174,11.29,Telecoms facilities and services - mobiles and pagers
Department for Education,DEPARTMENT FOR EDUCATION,01/02/2018,ICT,Digital and Technology Group,VODAFONE CORPORATE,1041024174,6.77,Telecoms facilities and services - mobiles and pagers
Department for Education,DEPARTMENT FOR EDUCATION,01/02/2018,ICT,Digital and Technology Group,VODAFONE CORPORATE,1041024174,11.29,Telecoms facilities and services - mobiles and pagers
Department for Education,DEPARTMENT FOR EDUCATION,01/02/2018,ICT,Digital and Technology Group,VODAFONE CORPORATE,1041024174,11.29,Telecoms facilities and services - mobiles and pagers
Department for Education,DEPARTMENT FOR EDUCATION,01/02/2018,ICT,Digital and Technology Group,VODAFONE CORPORATE,1041024174,11.29,Telecoms facilities and services - mobiles and pagers
Department for Education,DEPARTMENT FOR EDUCATION,01/02/2018,ICT,Digital and Technology Group,VODAFONE CORPORATE,1041024174,11.29,Telecoms facilities and services - mobiles and pagers
Department for Education,DEPARTMENT FOR EDUCATION,01/02/2018,ICT,Digital and Technology Group,VODAFONE CORPORATE,1041024174,11.29,Telecoms facilities and services - mobiles and pagers
Department for Education,DEPARTMENT FOR EDUCATION,01/02/2018,ICT,Digital and Technology Group,VODAFONE CORPORATE,1041024174,11.29,Telecoms facilities and services - mobiles and pagers
Department for Education,DEPARTMENT FOR EDUCATION,01/02/2018,ICT,Digital and Technology Group,VODAFONE CORPORATE,1041024174,11.29,Telecoms facilities and services - mobiles and pagers
Department for Education,DEPARTMENT FOR EDUCATION,01/02/2018,ICT,Digital and Technology Group,VODAFONE CORPORATE,1041024174,10.97,Telecoms facilities and services - mobiles and pagers
Department for Education,DEPARTMENT FOR EDUCATION,01/02/2018,ICT,Digital and Technology Group,VODAFONE CORPORATE,1041024174,6.45,Telecoms facilities and services - mobiles and pagers
Department for Education,DEPARTMENT FOR EDUCATION,01/02/2018,ICT,Digital and Technology Group,VODAFONE CORPORATE,1041024174,12.58,Telecoms facilities and services - mobiles and pagers
Department for Education,DEPARTMENT FOR EDUCATION,01/02/2018,ICT,Digital and Technology Group,VODAFONE CORPORATE,1041024174,10.00,Telecoms facilities and services - mobiles and pagers
Department for Education,DEPARTMENT FOR EDUCATION,01/02/2018,ICT,Digital and Technology Group,VODAFONE CORPORATE,1041024174,10.00,Telecoms facilities and services - mobiles and pagers
Department for Education,DEPARTMENT FOR EDUCATION,01/02/2018,ICT,Digital and Technology Group,VODAFONE CORPORATE,1041024174,10.00,Telecoms facilities and services - mobiles and pagers
Department for Education,DEPARTMENT FOR EDUCATION,01/02/2018,ICT,Digital and Technology Group,VODAFONE CORPORATE,1041024174,10.00,Telecoms facilities and services - mobiles and pagers
Department for Education,DEPARTMENT FOR EDUCATION,01/02/2018,ICT,Digital and Technology Group,VODAFONE CORPORATE,1041024174,10.14,Telecoms facilities and services - mobiles and pagers
Department for Education,DEPARTMENT FOR EDUCATION,01/02/2018,ICT,Digital and Technology Group,VODAFONE CORPORATE,1041024174,10.00,Telecoms facilities and services - mobiles and pagers
Department for Education,DEPARTMENT FOR EDUCATION,01/02/2018,ICT,Digital and Technology Group,VODAFONE CORPORATE,1041024174,10.00,Telecoms facilities and services - mobiles and pagers
Department for Education,DEPARTMENT FOR EDUCATION,01/02/2018,ICT,Digital and Technology Group,VODAFONE CORPORATE,1041024174,10.00,Telecoms facilities and services - mobiles and pagers
Department for Education,DEPARTMENT FOR EDUCATION,01/02/2018,ICT,Digital and Technology Group,VODAFONE CORPORATE,1041024174,11.01,Telecoms facilities and services - mobiles and pagers
Department for Education,DEPARTMENT FOR EDUCATION,01/02/2018,ICT,Digital and Technology Group,VODAFONE CORPORATE,1041024174,10.00,Telecoms facilities and services - mobiles and pagers
Department for Education,DEPARTMENT FOR EDUCATION,01/02/2018,ICT,Digital and Technology Group,VODAFONE CORPORATE,1041024174,10.00,Telecoms facilities and services - mobiles and pagers
Department for Education,DEPARTMENT FOR EDUCATION,01/02/2018,ICT,Digital and Technology Group,VODAFONE CORPORATE,1041024174,10.00,Telecoms facilities and services - mobiles and pagers
Department for Education,DEPARTMENT FOR EDUCATION,01/02/2018,ICT,Digital and Technology Group,VODAFONE CORPORATE,1041024174,10.00,Telecoms facilities and services - mobiles and pagers
Department for Education,DEPARTMENT FOR EDUCATION,01/02/2018,ICT,Digital and Technology Group,VODAFONE CORPORATE,1041024174,10.72,Telecoms facilities and services - mobiles and pagers
Department for Education,DEPARTMENT FOR EDUCATION,01/02/2018,ICT,Digital and Technology Group,VODAFONE CORPORATE,1041024174,10.00,Telecoms facilities and services - mobiles and pagers
Department for Education,DEPARTMENT FOR EDUCATION,01/02/2018,ICT,Digital and Technology Group,VODAFONE CORPORATE,1041024174,10.00,Telecoms facilities and services - mobiles and pagers
Department for Education,DEPARTMENT FOR EDUCATION,01/02/2018,ICT,Digital and Technology Group,VODAFONE CORPORATE,1041024174,14.84,Telecoms facilities and services - mobiles and pagers
Department for Education,DEPARTMENT FOR EDUCATION,01/02/2018,ICT,Digital and Technology Group,VODAFONE CORPORATE,1041024174,10.00,Telecoms facilities and services - mobiles and pagers
Department for Education,DEPARTMENT FOR EDUCATION,01/02/2018,ICT,Digital and Technology Group,VODAFONE CORPORATE,1041024174,10.00,Telecoms facilities and services - mobiles and pagers
Department for Education,DEPARTMENT FOR EDUCATION,01/02/2018,ICT,Digital and Technology Group,VODAFONE CORPORATE,1041024174,10.00,Telecoms facilities and services - mobiles and pagers
Department for Education,DEPARTMENT FOR EDUCATION,01/02/2018,ICT,Digital and Technology Group,VODAFONE CORPORATE,1041024174,10.00,Telecoms facilities and services - mobiles and pagers
Department for Education,DEPARTMENT FOR EDUCATION,01/02/2018,ICT,Digital and Technology Group,VODAFONE CORPORATE,1041024174,10.00,Telecoms facilities and services - mobiles and pagers
Department for Education,DEPARTMENT FOR EDUCATION,01/02/2018,ICT,Digital and Technology Group,VODAFONE CORPORATE,1041024174,10.00,Telecoms facilities and services - mobiles and pagers
Department for Education,DEPARTMENT FOR EDUCATION,01/02/2018,ICT,Digital and Technology Group,VODAFONE CORPORATE,1041024174,10.00,Telecoms facilities and services - mobiles and pagers
Department for Education,DEPARTMENT FOR EDUCATION,01/02/2018,ICT,Digital and Technology Group,VODAFONE CORPORATE,1041024174,10.00,Telecoms facilities and services - mobiles and pagers
Department for Education,DEPARTMENT FOR EDUCATION,01/02/2018,ICT,Digital and Technology Group,VODAFONE CORPORATE,1041024174,10.00,Telecoms facilities and services - mobiles and pagers
Department for Education,DEPARTMENT FOR EDUCATION,01/02/2018,ICT,Digital and Technology Group,VODAFONE CORPORATE,1041024174,10.00,Telecoms facilities and services - mobiles and pagers
Department for Education,DEPARTMENT FOR EDUCATION,01/02/2018,ICT,Digital and Technology Group,VODAFONE CORPORATE,1041024174,10.00,Telecoms facilities and services - mobiles and pagers
Department for Education,DEPARTMENT FOR EDUCATION,01/02/2018,ICT,Digital and Technology Group,VODAFONE CORPORATE,1041024174,10.77,Telecoms facilities and services - mobiles and pagers
Department for Education,DEPARTMENT FOR EDUCATION,01/02/2018,ICT,Digital and Technology Group,VODAFONE CORPORATE,1041024174,10.00,Telecoms facilities and services - mobiles and pagers
Department for Education,DEPARTMENT FOR EDUCATION,01/02/2018,ICT,Digital and Technology Group,VODAFONE CORPORATE,1041024174,10.00,Telecoms facilities and services - mobiles and pagers
Department for Education,DEPARTMENT FOR EDUCATION,01/02/2018,ICT,Digital and Technology Group,VODAFONE CORPORATE,1041024174,10.00,Telecoms facilities and services - mobiles and pagers
Department for Education,DEPARTMENT FOR EDUCATION,01/02/2018,ICT,Digital and Technology Group,VODAFONE CORPORATE,1041024174,14.75,Telecoms facilities and services - mobiles and pagers
Department for Education,DEPARTMENT FOR EDUCATION,01/02/2018,ICT,Digital and Technology Group,VODAFONE CORPORATE,1041024174,10.00,Telecoms facilities and services - mobiles and pagers
Department for Education,DEPARTMENT FOR EDUCATION,01/02/2018,ICT,Digital and Technology Group,VODAFONE CORPORATE,1041024174,10.00,Telecoms facilities and services - mobiles and pagers
Department for Education,DEPARTMENT FOR EDUCATION,01/02/2018,ICT,Digital and Technology Group,VODAFONE CORPORATE,1041024174,10.00,Telecoms facilities and services - mobiles and pagers
Department for Education,DEPARTMENT FOR EDUCATION,01/02/2018,ICT,Digital and Technology Group,VODAFONE CORPORATE,1041024174,10.00,Telecoms facilities and services - mobiles and pagers
Department for Education,DEPARTMENT FOR EDUCATION,01/02/2018,ICT,Digital and Technology Group,VODAFONE CORPORATE,1041024174,10.00,Telecoms facilities and services - mobiles and pagers
Department for Education,DEPARTMENT FOR EDUCATION,01/02/2018,ICT,Digital and Technology Group,VODAFONE CORPORATE,1041024174,10.00,Telecoms facilities and services - mobiles and pagers
Department for Education,DEPARTMENT FOR EDUCATION,01/02/2018,ICT,Digital and Technology Group,VODAFONE CORPORATE,1041024174,10.00,Telecoms facilities and services - mobiles and pagers
Department for Education,DEPARTMENT FOR EDUCATION,01/02/2018,ICT,Digital and Technology Group,VODAFONE CORPORATE,1041024174,10.00,Telecoms facilities and services - mobiles and pagers
Department for Education,DEPARTMENT FOR EDUCATION,01/02/2018,ICT,Digital and Technology Group,VODAFONE CORPORATE,1041024174,10.00,Telecoms facilities and services - mobiles and pagers
Department for Education,DEPARTMENT FOR EDUCATION,01/02/2018,ICT,Digital and Technology Group,VODAFONE CORPORATE,1041024174,10.00,Telecoms facilities and services - mobiles and pagers
Department for Education,DEPARTMENT FOR EDUCATION,01/02/2018,ICT,Digital and Technology Group,VODAFONE CORPORATE,1041024174,10.02,Telecoms facilities and services - mobiles and pagers
Department for Education,DEPARTMENT FOR EDUCATION,01/02/2018,ICT,Digital and Technology Group,VODAFONE CORPORATE,1041024174,10.00,Telecoms facilities and services - mobiles and pagers
Department for Education,DEPARTMENT FOR EDUCATION,01/02/2018,ICT,Digital and Technology Group,VODAFONE CORPORATE,1041024174,10.00,Telecoms facilities and services - mobiles and pagers
Department for Education,DEPARTMENT FOR EDUCATION,01/02/2018,ICT,Digital and Technology Group,VODAFONE CORPORATE,1041024174,10.00,Telecoms facilities and services - mobiles and pagers
Department for Education,DEPARTMENT FOR EDUCATION,01/02/2018,ICT,Digital and Technology Group,VODAFONE CORPORATE,1041024174,10.00,Telecoms facilities and services - mobiles and pagers
Department for Education,DEPARTMENT FOR EDUCATION,01/02/2018,ICT,Digital and Technology Group,VODAFONE CORPORATE,1041024174,10.00,Telecoms facilities and services - mobiles and pagers
Department for Education,DEPARTMENT FOR EDUCATION,01/02/2018,ICT,Digital and Technology Group,VODAFONE CORPORATE,1041024174,10.00,Telecoms facilities and services - mobiles and pagers
Department for Education,DEPARTMENT FOR EDUCATION,01/02/2018,ICT,Digital and Technology Group,VODAFONE CORPORATE,1041024174,10.00,Telecoms facilities and services - mobiles and pagers
Department for Education,DEPARTMENT FOR EDUCATION,01/02/2018,ICT,Digital and Technology Group,VODAFONE CORPORATE,1041024174,10.00,Telecoms facilities and services - mobiles and pagers
Department for Education,DEPARTMENT FOR EDUCATION,01/02/2018,ICT,Digital and Technology Group,VODAFONE CORPORATE,1041024174,10.00,Telecoms facilities and services - mobiles and pagers
Department for Education,DEPARTMENT FOR EDUCATION,01/02/2018,ICT,Digital and Technology Group,VODAFONE CORPORATE,1041024174,10.00,Telecoms facilities and services - mobiles and pagers
Department for Education,DEPARTMENT FOR EDUCATION,01/02/2018,ICT,Digital and Technology Group,VODAFONE CORPORATE,1041024174,10.00,Telecoms facilities and services - mobiles and pagers
Department for Education,DEPARTMENT FOR EDUCATION,01/02/2018,ICT,Digital and Technology Group,VODAFONE CORPORATE,1041024174,10.00,Telecoms facilities and services - mobiles and pagers
Department for Education,DEPARTMENT FOR EDUCATION,01/02/2018,ICT,Digital and Technology Group,VODAFONE CORPORATE,1041024174,10.00,Telecoms facilities and services - mobiles and pagers
Department for Education,DEPARTMENT FOR EDUCATION,01/02/2018,ICT,Digital and Technology Group,VODAFONE CORPORATE,1041024174,10.00,Telecoms facilities and services - mobiles and pagers
Department for Education,DEPARTMENT FOR EDUCATION,01/02/2018,ICT,Digital and Technology Group,VODAFONE CORPORATE,1041024174,10.00,Telecoms facilities and services - mobiles and pagers
Department for Education,DEPARTMENT FOR EDUCATION,01/02/2018,ICT,Digital and Technology Group,VODAFONE CORPORATE,1041024174,10.00,Telecoms facilities and services - mobiles and pagers
Department for Education,DEPARTMENT FOR EDUCATION,01/02/2018,ICT,Digital and Technology Group,VODAFONE CORPORATE,1041024174,10.11,Telecoms facilities and services - mobiles and pagers
Department for Education,DEPARTMENT FOR EDUCATION,01/02/2018,ICT,Digital and Technology Group,VODAFONE CORPORATE,1041024174,10.00,Telecoms facilities and services - mobiles and pagers
Department for Education,DEPARTMENT FOR EDUCATION,01/02/2018,ICT,Digital and Technology Group,VODAFONE CORPORATE,1041024174,10.00,Telecoms facilities and services - mobiles and pagers
Department for Education,DEPARTMENT FOR EDUCATION,01/02/2018,ICT,Digital and Technology Group,VODAFONE CORPORATE,1041024174,10.00,Telecoms facilities and services - mobiles and pagers
Department for Education,DEPARTMENT FOR EDUCATION,01/02/2018,ICT,Digital and Technology Group,VODAFONE CORPORATE,1041024174,10.00,Telecoms facilities and services - mobiles and pagers
Department for Education,DEPARTMENT FOR EDUCATION,01/02/2018,ICT,Digital and Technology Group,VODAFONE CORPORATE,1041024174,10.00,Telecoms facilities and services - mobiles and pagers
Department for Education,DEPARTMENT FOR EDUCATION,01/02/2018,ICT,Digital and Technology Group,VODAFONE CORPORATE,1041024174,10.00,Telecoms facilities and services - mobiles and pagers
Department for Education,DEPARTMENT FOR EDUCATION,01/02/2018,ICT,Digital and Technology Group,VODAFONE CORPORATE,1041024174,8.39,Telecoms facilities and services - mobiles and pagers
Department for Education,DEPARTMENT FOR EDUCATION,01/02/2018,ICT,Digital and Technology Group,VODAFONE CORPORATE,1041024174,10.00,Telecoms facilities and services - mobiles and pagers
Department for Education,DEPARTMENT FOR EDUCATION,01/02/2018,ICT,Digital and Technology Group,VODAFONE CORPORATE,1041024174,10.00,Telecoms facilities and services - mobiles and pagers
Department for Education,DEPARTMENT FOR EDUCATION,01/02/2018,ICT,Digital and Technology Group,VODAFONE CORPORATE,1041024174,10.00,Telecoms facilities and services - mobiles and pagers
Department for Education,DEPARTMENT FOR EDUCATION,01/02/2018,ICT,Digital and Technology Group,VODAFONE CORPORATE,1041024174,10.00,Telecoms facilities and services - mobiles and pagers
Department for Education,DEPARTMENT FOR EDUCATION,01/02/2018,ICT,Digital and Technology Group,VODAFONE CORPORATE,1041024174,10.00,Telecoms facilities and services - mobiles and pagers
Department for Education,DEPARTMENT FOR EDUCATION,01/02/2018,ICT,Digital and Technology Group,VODAFONE CORPORATE,1041024174,10.00,Telecoms facilities and services - mobiles and pagers
Department for Education,DEPARTMENT FOR EDUCATION,01/02/2018,ICT,Digital and Technology Group,VODAFONE CORPORATE,1041024174,10.00,Telecoms facilities and services - mobiles and pagers
Department for Education,DEPARTMENT FOR EDUCATION,01/02/2018,ICT,Digital and Technology Group,VODAFONE CORPORATE,1041024174,10.00,Telecoms facilities and services - mobiles and pagers
Department for Education,DEPARTMENT FOR EDUCATION,01/02/2018,ICT,Digital and Technology Group,VODAFONE CORPORATE,1041024174,10.89,Telecoms facilities and services - mobiles and pagers
Department for Education,DEPARTMENT FOR EDUCATION,01/02/2018,ICT,Digital and Technology Group,VODAFONE CORPORATE,1041024174,10.00,Telecoms facilities and services - mobiles and pagers
Department for Education,DEPARTMENT FOR EDUCATION,01/02/2018,ICT,Digital and Technology Group,VODAFONE CORPORATE,1041024174,10.00,Telecoms facilities and services - mobiles and pagers
Department for Education,DEPARTMENT FOR EDUCATION,01/02/2018,ICT,Digital and Technology Group,VODAFONE CORPORATE,1041024174,10.00,Telecoms facilities and services - mobiles and pagers
Department for Education,DEPARTMENT FOR EDUCATION,01/02/2018,ICT,Digital and Technology Group,VODAFONE CORPORATE,1041024174,10.09,Telecoms facilities and services - mobiles and pagers
Department for Education,DEPARTMENT FOR EDUCATION,01/02/2018,ICT,Digital and Technology Group,VODAFONE CORPORATE,1041024174,10.00,Telecoms facilities and services - mobiles and pagers
Department for Education,DEPARTMENT FOR EDUCATION,01/02/2018,ICT,Digital and Technology Group,VODAFONE CORPORATE,1041024174,10.25,Telecoms facilities and services - mobiles and pagers
Department for Education,DEPARTMENT FOR EDUCATION,01/02/2018,ICT,Digital and Technology Group,VODAFONE CORPORATE,1041024174,10.00,Telecoms facilities and services - mobiles and pagers
Department for Education,DEPARTMENT FOR EDUCATION,01/02/2018,ICT,Digital and Technology Group,VODAFONE CORPORATE,1041024174,10.00,Telecoms facilities and services - mobiles and pagers
Department for Education,DEPARTMENT FOR EDUCATION,01/02/2018,ICT,Digital and Technology Group,VODAFONE CORPORATE,1041024174,10.00,Telecoms facilities and services - mobiles and pagers
Department for Education,DEPARTMENT FOR EDUCATION,01/02/2018,ICT,Digital and Technology Group,VODAFONE CORPORATE,1041024174,10.00,Telecoms facilities and services - mobiles and pagers
Department for Education,DEPARTMENT FOR EDUCATION,01/02/2018,ICT,Digital and Technology Group,VODAFONE CORPORATE,1041024174,9.00,Telecoms facilities and services - mobiles and pagers
Department for Education,DEPARTMENT FOR EDUCATION,01/02/2018,ICT,Digital and Technology Group,VODAFONE CORPORATE,1041024174,10.00,Telecoms facilities and services - mobiles and pagers
Department for Education,DEPARTMENT FOR EDUCATION,01/02/2018,ICT,Digital and Technology Group,VODAFONE CORPORATE,1041024174,10.00,Telecoms facilities and services - mobiles and pagers
Department for Education,DEPARTMENT FOR EDUCATION,01/02/2018,ICT,Digital and Technology Group,VODAFONE CORPORATE,1041024174,10.00,Telecoms facilities and services - mobiles and pagers
Department for Education,DEPARTMENT FOR EDUCATION,01/02/2018,ICT,Digital and Technology Group,VODAFONE CORPORATE,1041024174,10.00,Telecoms facilities and services - mobiles and pagers
Department for Education,DEPARTMENT FOR EDUCATION,01/02/2018,ICT,Digital and Technology Group,VODAFONE CORPORATE,1041024174,10.00,Telecoms facilities and services - mobiles and pagers
Department for Education,DEPARTMENT FOR EDUCATION,01/02/2018,ICT,Digital and Technology Group,VODAFONE CORPORATE,1041024174,10.00,Telecoms facilities and services - mobiles and pagers
Department for Education,DEPARTMENT FOR EDUCATION,01/02/2018,ICT,Digital and Technology Group,VODAFONE CORPORATE,1041024174,10.00,Telecoms facilities and services - mobiles and pagers
Department for Education,DEPARTMENT FOR EDUCATION,01/02/2018,ICT,Digital and Technology Group,VODAFONE CORPORATE,1041024174,10.00,Telecoms facilities and services - mobiles and pagers
Department for Education,DEPARTMENT FOR EDUCATION,01/02/2018,ICT,Digital and Technology Group,VODAFONE CORPORATE,1041024174,10.00,Telecoms facilities and services - mobiles and pagers
Department for Education,DEPARTMENT FOR EDUCATION,01/02/2018,ICT,Digital and Technology Group,VODAFONE CORPORATE,1041024174,10.00,Telecoms facilities and services - mobiles and pagers
Department for Education,DEPARTMENT FOR EDUCATION,01/02/2018,ICT,Digital and Technology Group,VODAFONE CORPORATE,1041024174,12.00,Telecoms facilities and services - mobiles and pagers
Department for Education,DEPARTMENT FOR EDUCATION,01/02/2018,ICT,Digital and Technology Group,VODAFONE CORPORATE,1041024174,12.00,Telecoms facilities and services - mobiles and pagers
Department for Education,DEPARTMENT FOR EDUCATION,01/02/2018,ICT,Digital and Technology Group,VODAFONE CORPORATE,1041024174,12.00,Telecoms facilities and services - mobiles and pagers
Department for Education,DEPARTMENT FOR EDUCATION,01/02/2018,ICT,Digital and Technology Group,VODAFONE CORPORATE,1041024174,22.00,Telecoms facilities and services - mobiles and pagers
Department for Education,DEPARTMENT FOR EDUCATION,01/02/2018,ICT,Digital and Technology Group,VODAFONE CORPORATE,1041024174,12.00,Telecoms facilities and services - mobiles and pagers
Department for Education,DEPARTMENT FOR EDUCATION,01/02/2018,ICT,Digital and Technology Group,VODAFONE CORPORATE,1041024174,12.00,Telecoms facilities and services - mobiles and pagers
Department for Education,DEPARTMENT FOR EDUCATION,01/02/2018,ICT,Digital and Technology Group,VODAFONE CORPORATE,1041024174,10.00,Telecoms facilities and services - mobiles and pagers
Department for Education,DEPARTMENT FOR EDUCATION,01/02/2018,ICT,Digital and Technology Group,VODAFONE CORPORATE,1041024174,10.00,Telecoms facilities and services - mobiles and pagers
Department for Education,DEPARTMENT FOR EDUCATION,01/02/2018,ICT,Digital and Technology Group,VODAFONE CORPORATE,1041024174,10.00,Telecoms facilities and services - mobiles and pagers
Department for Education,DEPARTMENT FOR EDUCATION,01/02/2018,ICT,Digital and Technology Group,VODAFONE CORPORATE,1041024174,10.00,Telecoms facilities and services - mobiles and pagers
Department for Education,DEPARTMENT FOR EDUCATION,01/02/2018,ICT,Digital and Technology Group,VODAFONE CORPORATE,1041024174,10.00,Telecoms facilities and services - mobiles and pagers
Department for Education,DEPARTMENT FOR EDUCATION,01/02/2018,ICT,Digital and Technology Group,VODAFONE CORPORATE,1041024174,10.00,Telecoms facilities and services - mobiles and pagers
Department for Education,DEPARTMENT FOR EDUCATION,01/02/2018,ICT,Digital and Technology Group,VODAFONE CORPORATE,1041024174,10.00,Telecoms facilities and services - mobiles and pagers
Department for Education,DEPARTMENT FOR EDUCATION,01/02/2018,ICT,Digital and Technology Group,VODAFONE CORPORATE,1041024174,10.00,Telecoms facilities and services - mobiles and pagers
Department for Education,DEPARTMENT FOR EDUCATION,01/02/2018,ICT,Digital and Technology Group,VODAFONE CORPORATE,1041024174,10.00,Telecoms facilities and services - mobiles and pagers
Department for Education,DEPARTMENT FOR EDUCATION,01/02/2018,ICT,Digital and Technology Group,VODAFONE CORPORATE,1041024174,10.00,Telecoms facilities and services - mobiles and pagers
Department for Education,DEPARTMENT FOR EDUCATION,01/02/2018,ICT,Digital and Technology Group,VODAFONE CORPORATE,1041024174,10.00,Telecoms facilities and services - mobiles and pagers
Department for Education,DEPARTMENT FOR EDUCATION,01/02/2018,ICT,Digital and Technology Group,VODAFONE CORPORATE,1041024174,10.00,Telecoms facilities and services - mobiles and pagers
Department for Education,DEPARTMENT FOR EDUCATION,01/02/2018,ICT,Digital and Technology Group,VODAFONE CORPORATE,1041024174,10.00,Telecoms facilities and services - mobiles and pagers
Department for Education,DEPARTMENT FOR EDUCATION,01/02/2018,ICT,Digital and Technology Group,VODAFONE CORPORATE,1041024174,10.00,Telecoms facilities and services - mobiles and pagers
Department for Education,DEPARTMENT FOR EDUCATION,01/02/2018,ICT,Digital and Technology Group,VODAFONE CORPORATE,1041024174,10.00,Telecoms facilities and services - mobiles and pagers
Department for Education,DEPARTMENT FOR EDUCATION,01/02/2018,ICT,Digital and Technology Group,VODAFONE CORPORATE,1041024174,10.00,Telecoms facilities and services - mobiles and pagers
Department for Education,DEPARTMENT FOR EDUCATION,01/02/2018,ICT,Digital and Technology Group,VODAFONE CORPORATE,1041024174,10.00,Telecoms facilities and services - mobiles and pagers
Department for Education,DEPARTMENT FOR EDUCATION,01/02/2018,ICT,Digital and Technology Group,VODAFONE CORPORATE,1041024174,10.00,Telecoms facilities and services - mobiles and pagers
Department for Education,DEPARTMENT FOR EDUCATION,01/02/2018,ICT,Digital and Technology Group,VODAFONE CORPORATE,1041024174,10.00,Telecoms facilities and services - mobiles and pagers
Department for Education,DEPARTMENT FOR EDUCATION,01/02/2018,ICT,Digital and Technology Group,VODAFONE CORPORATE,1041024174,10.00,Telecoms facilities and services - mobiles and pagers
Department for Education,DEPARTMENT FOR EDUCATION,01/02/2018,ICT,Digital and Technology Group,VODAFONE CORPORATE,1041024174,10.00,Telecoms facilities and services - mobiles and pagers
Department for Education,DEPARTMENT FOR EDUCATION,01/02/2018,ICT,Digital and Technology Group,VODAFONE CORPORATE,1041024174,10.00,Telecoms facilities and services - mobiles and pagers
Department for Education,DEPARTMENT FOR EDUCATION,01/02/2018,ICT,Digital and Technology Group,VODAFONE CORPORATE,1041024174,10.00,Telecoms facilities and services - mobiles and pagers
Department for Education,DEPARTMENT FOR EDUCATION,01/02/2018,ICT,Digital and Technology Group,VODAFONE CORPORATE,1041024174,10.00,Telecoms facilities and services - mobiles and pagers
Department for Education,DEPARTMENT FOR EDUCATION,01/02/2018,ICT,Digital and Technology Group,VODAFONE CORPORATE,1041024174,10.00,Telecoms facilities and services - mobiles and pagers
Department for Education,DEPARTMENT FOR EDUCATION,01/02/2018,ICT,Digital and Technology Group,VODAFONE CORPORATE,1041024174,12.00,Telecoms facilities and services - mobiles and pagers
Department for Education,DEPARTMENT FOR EDUCATION,01/02/2018,ICT,Digital and Technology Group,VODAFONE CORPORATE,1041024174,17.02,Telecoms facilities and services - mobiles and pagers
Department for Education,DEPARTMENT FOR EDUCATION,01/02/2018,ICT,Digital and Technology Group,VODAFONE CORPORATE,1041024174,10.00,Telecoms facilities and services - mobiles and pagers
Department for Education,DEPARTMENT FOR EDUCATION,01/02/2018,ICT,Digital and Technology Group,VODAFONE CORPORATE,1041024174,10.00,Telecoms facilities and services - mobiles and pagers
Department for Education,DEPARTMENT FOR EDUCATION,01/02/2018,ICT,Digital and Technology Group,VODAFONE CORPORATE,1041024174,10.00,Telecoms facilities and services - mobiles and pagers
Department for Education,DEPARTMENT FOR EDUCATION,01/02/2018,ICT,Digital and Technology Group,VODAFONE CORPORATE,1041024174,10.00,Telecoms facilities and services - mobiles and pagers
Department for Education,DEPARTMENT FOR EDUCATION,01/02/2018,ICT,Digital and Technology Group,VODAFONE CORPORATE,1041024174,10.00,Telecoms facilities and services - mobiles and pagers
Department for Education,DEPARTMENT FOR EDUCATION,01/02/2018,ICT,Digital and Technology Group,VODAFONE CORPORATE,1041024174,10.00,Telecoms facilities and services - mobiles and pagers
Department for Education,DEPARTMENT FOR EDUCATION,01/02/2018,ICT,Digital and Technology Group,VODAFONE CORPORATE,1041024174,10.00,Telecoms facilities and services - mobiles and pagers
Department for Education,DEPARTMENT FOR EDUCATION,01/02/2018,ICT,Digital and Technology Group,VODAFONE CORPORATE,1041024174,10.00,Telecoms facilities and services - mobiles and pagers
Department for Education,DEPARTMENT FOR EDUCATION,01/02/2018,ICT,Digital and Technology Group,VODAFONE CORPORATE,1041024174,10.00,Telecoms facilities and services - mobiles and pagers
Department for Education,DEPARTMENT FOR EDUCATION,01/02/2018,ICT,Digital and Technology Group,VODAFONE CORPORATE,1041024174,10.00,Telecoms facilities and services - mobiles and pagers
Department for Education,DEPARTMENT FOR EDUCATION,01/02/2018,ICT,Digital and Technology Group,VODAFONE CORPORATE,1041024174,10.00,Telecoms facilities and services - mobiles and pagers
Department for Education,DEPARTMENT FOR EDUCATION,01/02/2018,ICT,Digital and Technology Group,VODAFONE CORPORATE,1041024174,12.00,Telecoms facilities and services - mobiles and pagers
Department for Education,DEPARTMENT FOR EDUCATION,01/02/2018,ICT,Digital and Technology Group,VODAFONE CORPORATE,1041024174,10.00,Telecoms facilities and services - mobiles and pagers
Department for Education,DEPARTMENT FOR EDUCATION,01/02/2018,ICT,Digital and Technology Group,VODAFONE CORPORATE,1041024174,10.00,Telecoms facilities and services - mobiles and pagers
Department for Education,DEPARTMENT FOR EDUCATION,01/02/2018,ICT,Digital and Technology Group,VODAFONE CORPORATE,1041024174,10.00,Telecoms facilities and services - mobiles and pagers
Department for Education,DEPARTMENT FOR EDUCATION,01/02/2018,ICT,Digital and Technology Group,VODAFONE CORPORATE,1041024174,0.77,Telecoms facilities and services - mobiles and pagers
Department for Education,DEPARTMENT FOR EDUCATION,01/02/2018,ICT,Digital and Technology Group,VODAFONE CORPORATE,1041024174,9.00,Telecoms facilities and services - mobiles and pagers
Department for Education,DEPARTMENT FOR EDUCATION,01/02/2018,ICT,Digital and Technology Group,VODAFONE CORPORATE,1041024174,9.00,Telecoms facilities and services - mobiles and pagers
Department for Education,DEPARTMENT FOR EDUCATION,01/02/2018,ICT,Digital and Technology Group,VODAFONE CORPORATE,1041024174,9.00,Telecoms facilities and services - mobiles and pagers
Department for Education,DEPARTMENT FOR EDUCATION,01/02/2018,ICT,Digital and Technology Group,VODAFONE CORPORATE,1041024174,10.00,Telecoms facilities and services - mobiles and pagers
Department for Education,DEPARTMENT FOR EDUCATION,01/02/2018,ICT,Digital and Technology Group,VODAFONE CORPORATE,1041024174,10.00,Telecoms facilities and services - mobiles and pagers
Department for Education,DEPARTMENT FOR EDUCATION,01/02/2018,ICT,Digital and Technology Group,VODAFONE CORPORATE,1041024174,10.00,Telecoms facilities and services - mobiles and pagers
Department for Education,DEPARTMENT FOR EDUCATION,01/02/2018,ICT,Digital and Technology Group,VODAFONE CORPORATE,1041024174,10.00,Telecoms facilities and services - mobiles and pagers
Department for Education,DEPARTMENT FOR EDUCATION,01/02/2018,ICT,Digital and Technology Group,VODAFONE CORPORATE,1041024174,10.00,Telecoms facilities and services - mobiles and pagers
Department for Education,DEPARTMENT FOR EDUCATION,01/02/2018,ICT,Digital and Technology Group,VODAFONE CORPORATE,1041024174,10.00,Telecoms facilities and services - mobiles and pagers
Department for Education,DEPARTMENT FOR EDUCATION,01/02/2018,ICT,Digital and Technology Group,VODAFONE CORPORATE,1041024174,16.48,Telecoms facilities and services - mobiles and pagers
Department for Education,DEPARTMENT FOR EDUCATION,01/02/2018,ICT,Digital and Technology Group,VODAFONE CORPORATE,1041024174,1.29,Telecoms facilities and services - mobiles and pagers
Department for Education,DEPARTMENT FOR EDUCATION,01/02/2018,ICT,Digital and Technology Group,VODAFONE CORPORATE,1041024174,10.00,Telecoms facilities and services - mobiles and pagers
Department for Education,DEPARTMENT FOR EDUCATION,01/02/2018,ICT,Digital and Technology Group,VODAFONE CORPORATE,1041024174,10.00,Telecoms facilities and services - mobiles and pagers
Department for Education,DEPARTMENT FOR EDUCATION,01/02/2018,ICT,Digital and Technology Group,VODAFONE CORPORATE,1041024174,19.66,Telecoms facilities and services - mobiles and pagers
Department for Education,DEPARTMENT FOR EDUCATION,01/02/2018,ICT,Digital and Technology Group,VODAFONE CORPORATE,1041024174,10.00,Telecoms facilities and services - mobiles and pagers
Department for Education,DEPARTMENT FOR EDUCATION,01/02/2018,ICT,Digital and Technology Group,VODAFONE CORPORATE,1041024174,10.00,Telecoms facilities and services - mobiles and pagers
Department for Education,DEPARTMENT FOR EDUCATION,01/02/2018,ICT,Digital and Technology Group,VODAFONE CORPORATE,1041024174,10.00,Telecoms facilities and services - mobiles and pagers
Department for Education,DEPARTMENT FOR EDUCATION,01/02/2018,ICT,Digital and Technology Group,VODAFONE CORPORATE,1041024174,10.00,Telecoms facilities and services - mobiles and pagers
Department for Education,DEPARTMENT FOR EDUCATION,01/02/2018,ICT,Digital and Technology Group,VODAFONE CORPORATE,1041024174,10.00,Telecoms facilities and services - mobiles and pagers
Department for Education,DEPARTMENT FOR EDUCATION,01/02/2018,ICT,Digital and Technology Group,VODAFONE CORPORATE,1041024174,2.50,Telecoms facilities and services - mobiles and pagers
Department for Education,DEPARTMENT FOR EDUCATION,01/02/2018,ICT,Digital and Technology Group,VODAFONE CORPORATE,1041024174,10.00,Telecoms facilities and services - mobiles and pagers
Department for Education,DEPARTMENT FOR EDUCATION,01/02/2018,ICT,Digital and Technology Group,VODAFONE CORPORATE,1041024174,10.00,Telecoms facilities and services - mobiles and pagers
Department for Education,DEPARTMENT FOR EDUCATION,01/02/2018,ICT,Digital and Technology Group,VODAFONE CORPORATE,1041024174,10.00,Telecoms facilities and services - mobiles and pagers
Department for Education,DEPARTMENT FOR EDUCATION,01/02/2018,ICT,Digital and Technology Group,VODAFONE CORPORATE,1041024174,11.39,Telecoms facilities and services - mobiles and pagers
Department for Education,DEPARTMENT FOR EDUCATION,01/02/2018,ICT,Digital and Technology Group,VODAFONE CORPORATE,1041024174,10.00,Telecoms facilities and services - mobiles and pagers
Department for Education,DEPARTMENT FOR EDUCATION,01/02/2018,ICT,Digital and Technology Group,VODAFONE CORPORATE,1041024174,10.00,Telecoms facilities and services - mobiles and pagers
Department for Education,DEPARTMENT FOR EDUCATION,01/02/2018,ICT,Digital and Technology Group,VODAFONE CORPORATE,1041024174,10.00,Telecoms facilities and services - mobiles and pagers
Department for Education,DEPARTMENT FOR EDUCATION,01/02/2018,ICT,Digital and Technology Group,VODAFONE CORPORATE,1041024174,10.00,Telecoms facilities and services - mobiles and pagers
Department for Education,DEPARTMENT FOR EDUCATION,01/02/2018,ICT,Digital and Technology Group,VODAFONE CORPORATE,1041024174,10.00,Telecoms facilities and services - mobiles and pagers
Department for Education,DEPARTMENT FOR EDUCATION,01/02/2018,ICT,Digital and Technology Group,VODAFONE CORPORATE,1041024174,10.00,Telecoms facilities and services - mobiles and pagers
Department for Education,DEPARTMENT FOR EDUCATION,01/02/2018,ICT,Digital and Technology Group,VODAFONE CORPORATE,1041024174,10.00,Telecoms facilities and services - mobiles and pagers
Department for Education,DEPARTMENT FOR EDUCATION,01/02/2018,ICT,Digital and Technology Group,VODAFONE CORPORATE,1041024174,10.00,Telecoms facilities and services - mobiles and pagers
Department for Education,DEPARTMENT FOR EDUCATION,01/02/2018,ICT,Digital and Technology Group,VODAFONE CORPORATE,1041024174,10.00,Telecoms facilities and services - mobiles and pagers
Department for Education,DEPARTMENT FOR EDUCATION,01/02/2018,ICT,Digital and Technology Group,VODAFONE CORPORATE,1041024174,15.09,Telecoms facilities and services - mobiles and pagers
Department for Education,DEPARTMENT FOR EDUCATION,01/02/2018,ICT,Digital and Technology Group,VODAFONE CORPORATE,1041024174,10.00,Telecoms facilities and services - mobiles and pagers
Department for Education,DEPARTMENT FOR EDUCATION,01/02/2018,ICT,Digital and Technology Group,VODAFONE CORPORATE,1041024174,10.00,Telecoms facilities and services - mobiles and pagers
Department for Education,DEPARTMENT FOR EDUCATION,01/02/2018,ICT,Digital and Technology Group,VODAFONE CORPORATE,1041024174,10.00,Telecoms facilities and services - mobiles and pagers
Department for Education,DEPARTMENT FOR EDUCATION,01/02/2018,ICT,Digital and Technology Group,VODAFONE CORPORATE,1041024174,10.00,Telecoms facilities and services - mobiles and pagers
Department for Education,DEPARTMENT FOR EDUCATION,01/02/2018,ICT,Digital and Technology Group,VODAFONE CORPORATE,1041024174,10.00,Telecoms facilities and services - mobiles and pagers
Department for Education,DEPARTMENT FOR EDUCATION,01/02/2018,ICT,Digital and Technology Group,VODAFONE CORPORATE,1041024174,10.00,Telecoms facilities and services - mobiles and pagers
Department for Education,DEPARTMENT FOR EDUCATION,01/02/2018,ICT,Digital and Technology Group,VODAFONE CORPORATE,1041024174,10.00,Telecoms facilities and services - mobiles and pagers
Department for Education,DEPARTMENT FOR EDUCATION,01/02/2018,ICT,Digital and Technology Group,VODAFONE CORPORATE,1041024174,12.00,Telecoms facilities and services - mobiles and pagers
Department for Education,DEPARTMENT FOR EDUCATION,01/02/2018,ICT,Digital and Technology Group,VODAFONE CORPORATE,1041024174,10.00,Telecoms facilities and services - mobiles and pagers
Department for Education,DEPARTMENT FOR EDUCATION,01/02/2018,ICT,Digital and Technology Group,VODAFONE CORPORATE,1041024174,10.00,Telecoms facilities and services - mobiles and pagers
Department for Education,DEPARTMENT FOR EDUCATION,01/02/2018,ICT,Digital and Technology Group,VODAFONE CORPORATE,1041024174,10.00,Telecoms facilities and services - mobiles and pagers
Department for Education,DEPARTMENT FOR EDUCATION,01/02/2018,ICT,Digital and Technology Group,VODAFONE CORPORATE,1041024174,12.83,Telecoms facilities and services - mobiles and pagers
Department for Education,DEPARTMENT FOR EDUCATION,01/02/2018,ICT,Digital and Technology Group,VODAFONE CORPORATE,1041024174,10.00,Telecoms facilities and services - mobiles and pagers
Department for Education,DEPARTMENT FOR EDUCATION,01/02/2018,ICT,Digital and Technology Group,VODAFONE CORPORATE,1041024174,10.00,Telecoms facilities and services - mobiles and pagers
Department for Education,DEPARTMENT FOR EDUCATION,01/02/2018,ICT,Digital and Technology Group,VODAFONE CORPORATE,1041024174,10.00,Telecoms facilities and services - mobiles and pagers
Department for Education,DEPARTMENT FOR EDUCATION,01/02/2018,ICT,Digital and Technology Group,VODAFONE CORPORATE,1041024174,10.00,Telecoms facilities and services - mobiles and pagers
Department for Education,DEPARTMENT FOR EDUCATION,01/02/2018,ICT,Digital and Technology Group,VODAFONE CORPORATE,1041024174,10.53,Telecoms facilities and services - mobiles and pagers
Department for Education,DEPARTMENT FOR EDUCATION,01/02/2018,ICT,Digital and Technology Group,VODAFONE CORPORATE,1041024174,10.30,Telecoms facilities and services - mobiles and pagers
Department for Education,DEPARTMENT FOR EDUCATION,01/02/2018,ICT,Digital and Technology Group,VODAFONE CORPORATE,1041024174,10.00,Telecoms facilities and services - mobiles and pagers
Department for Education,DEPARTMENT FOR EDUCATION,01/02/2018,ICT,Digital and Technology Group,VODAFONE CORPORATE,1041024174,10.00,Telecoms facilities and services - mobiles and pagers
Department for Education,DEPARTMENT FOR EDUCATION,01/02/2018,ICT,Digital and Technology Group,VODAFONE CORPORATE,1041024174,10.00,Telecoms facilities and services - mobiles and pagers
Department for Education,DEPARTMENT FOR EDUCATION,01/02/2018,ICT,Digital and Technology Group,VODAFONE CORPORATE,1041024174,10.00,Telecoms facilities and services - mobiles and pagers
Department for Education,DEPARTMENT FOR EDUCATION,01/02/2018,ICT,Digital and Technology Group,VODAFONE CORPORATE,1041024174,10.29,Telecoms facilities and services - mobiles and pagers
Department for Education,DEPARTMENT FOR EDUCATION,01/02/2018,ICT,Digital and Technology Group,VODAFONE CORPORATE,1041024174,10.00,Telecoms facilities and services - mobiles and pagers
Department for Education,DEPARTMENT FOR EDUCATION,01/02/2018,ICT,Digital and Technology Group,VODAFONE CORPORATE,1041024174,10.00,Telecoms facilities and services - mobiles and pagers
Department for Education,DEPARTMENT FOR EDUCATION,01/02/2018,ICT,Digital and Technology Group,VODAFONE CORPORATE,1041024174,10.00,Telecoms facilities and services - mobiles and pagers
Department for Education,DEPARTMENT FOR EDUCATION,01/02/2018,ICT,Digital and Technology Group,VODAFONE CORPORATE,1041024174,10.00,Telecoms facilities and services - mobiles and pagers
Department for Education,DEPARTMENT FOR EDUCATION,01/02/2018,ICT,Digital and Technology Group,VODAFONE CORPORATE,1041024174,12.00,Telecoms facilities and services - mobiles and pagers
Department for Education,DEPARTMENT FOR EDUCATION,01/02/2018,ICT,Digital and Technology Group,VODAFONE CORPORATE,1041024174,12.00,Telecoms facilities and services - mobiles and pagers
Department for Education,DEPARTMENT FOR EDUCATION,01/02/2018,ICT,Digital and Technology Group,VODAFONE CORPORATE,1041024174,10.00,Telecoms facilities and services - mobiles and pagers
Department for Education,DEPARTMENT FOR EDUCATION,01/02/2018,ICT,Digital and Technology Group,VODAFONE CORPORATE,1041024174,10.00,Telecoms facilities and services - mobiles and pagers
Department for Education,DEPARTMENT FOR EDUCATION,01/02/2018,ICT,Digital and Technology Group,VODAFONE CORPORATE,1041024174,10.00,Telecoms facilities and services - mobiles and pagers
Department for Education,DEPARTMENT FOR EDUCATION,01/02/2018,ICT,Digital and Technology Group,VODAFONE CORPORATE,1041024174,10.00,Telecoms facilities and services - mobiles and pagers
Department for Education,DEPARTMENT FOR EDUCATION,01/02/2018,ICT,Digital and Technology Group,VODAFONE CORPORATE,1041024174,10.00,Telecoms facilities and services - mobiles and pagers
Department for Education,DEPARTMENT FOR EDUCATION,01/02/2018,ICT,Digital and Technology Group,VODAFONE CORPORATE,1041024174,10.00,Telecoms facilities and services - mobiles and pagers
Department for Education,DEPARTMENT FOR EDUCATION,01/02/2018,ICT,Digital and Technology Group,VODAFONE CORPORATE,1041024174,10.00,Telecoms facilities and services - mobiles and pagers
Department for Education,DEPARTMENT FOR EDUCATION,01/02/2018,ICT,Digital and Technology Group,VODAFONE CORPORATE,1041024174,16.11,Telecoms facilities and services - mobiles and pagers
Department for Education,DEPARTMENT FOR EDUCATION,01/02/2018,ICT,Digital and Technology Group,VODAFONE CORPORATE,1041024174,10.00,Telecoms facilities and services - mobiles and pagers
Department for Education,DEPARTMENT FOR EDUCATION,01/02/2018,ICT,Digital and Technology Group,VODAFONE CORPORATE,1041024174,11.98,Telecoms facilities and services - mobiles and pagers
Department for Education,DEPARTMENT FOR EDUCATION,01/02/2018,ICT,Digital and Technology Group,VODAFONE CORPORATE,1041024174,10.00,Telecoms facilities and services - mobiles and pagers
Department for Education,DEPARTMENT FOR EDUCATION,01/02/2018,ICT,Digital and Technology Group,VODAFONE CORPORATE,1041024174,10.00,Telecoms facilities and services - mobiles and pagers
Department for Education,DEPARTMENT FOR EDUCATION,01/02/2018,ICT,Digital and Technology Group,VODAFONE CORPORATE,1041024174,10.00,Telecoms facilities and services - mobiles and pagers
Department for Education,DEPARTMENT FOR EDUCATION,01/02/2018,ICT,Digital and Technology Group,VODAFONE CORPORATE,1041024174,10.00,Telecoms facilities and services - mobiles and pagers
Department for Education,DEPARTMENT FOR EDUCATION,01/02/2018,ICT,Digital and Technology Group,VODAFONE CORPORATE,1041024174,10.00,Telecoms facilities and services - mobiles and pagers
Department for Education,DEPARTMENT FOR EDUCATION,01/02/2018,ICT,Digital and Technology Group,VODAFONE CORPORATE,1041024174,10.00,Telecoms facilities and services - mobiles and pagers
Department for Education,DEPARTMENT FOR EDUCATION,01/02/2018,ICT,Digital and Technology Group,VODAFONE CORPORATE,1041024174,10.09,Telecoms facilities and services - mobiles and pagers
Department for Education,DEPARTMENT FOR EDUCATION,01/02/2018,ICT,Digital and Technology Group,VODAFONE CORPORATE,1041024174,10.00,Telecoms facilities and services - mobiles and pagers
Department for Education,DEPARTMENT FOR EDUCATION,01/02/2018,ICT,Digital and Technology Group,VODAFONE CORPORATE,1041024174,12.00,Telecoms facilities and services - mobiles and pagers
Department for Education,DEPARTMENT FOR EDUCATION,01/02/2018,ICT,Digital and Technology Group,VODAFONE CORPORATE,1041024174,10.00,Telecoms facilities and services - mobiles and pagers
Department for Education,DEPARTMENT FOR EDUCATION,01/02/2018,ICT,Digital and Technology Group,VODAFONE CORPORATE,1041024174,10.00,Telecoms facilities and services - mobiles and pagers
Department for Education,DEPARTMENT FOR EDUCATION,01/02/2018,ICT,Digital and Technology Group,VODAFONE CORPORATE,1041024174,10.00,Telecoms facilities and services - mobiles and pagers
Department for Education,DEPARTMENT FOR EDUCATION,01/02/2018,ICT,Digital and Technology Group,VODAFONE CORPORATE,1041024174,10.00,Telecoms facilities and services - mobiles and pagers
Department for Education,DEPARTMENT FOR EDUCATION,01/02/2018,ICT,Digital and Technology Group,VODAFONE CORPORATE,1041024174,10.00,Telecoms facilities and services - mobiles and pagers
Department for Education,DEPARTMENT FOR EDUCATION,01/02/2018,ICT,Digital and Technology Group,VODAFONE CORPORATE,1041024174,10.00,Telecoms facilities and services - mobiles and pagers
Department for Education,DEPARTMENT FOR EDUCATION,01/02/2018,ICT,Digital and Technology Group,VODAFONE CORPORATE,1041024174,10.00,Telecoms facilities and services - mobiles and pagers
Department for Education,DEPARTMENT FOR EDUCATION,01/02/2018,ICT,Digital and Technology Group,VODAFONE CORPORATE,1041024174,3.39,Telecoms facilities and services - mobiles and pagers
Department for Education,DEPARTMENT FOR EDUCATION,01/02/2018,ICT,Digital and Technology Group,VODAFONE CORPORATE,1041024174,2.50,Telecoms facilities and services - mobiles and pagers
Department for Education,DEPARTMENT FOR EDUCATION,01/02/2018,ICT,Digital and Technology Group,VODAFONE CORPORATE,1041024174,10.00,Telecoms facilities and services - mobiles and pagers
Department for Education,DEPARTMENT FOR EDUCATION,01/02/2018,ICT,Digital and Technology Group,VODAFONE CORPORATE,1041024174,10.00,Telecoms facilities and services - mobiles and pagers
Department for Education,DEPARTMENT FOR EDUCATION,01/02/2018,ICT,Digital and Technology Group,VODAFONE CORPORATE,1041024174,10.00,Telecoms facilities and services - mobiles and pagers
Department for Education,DEPARTMENT FOR EDUCATION,01/02/2018,ICT,Digital and Technology Group,VODAFONE CORPORATE,1041024174,10.00,Telecoms facilities and services - mobiles and pagers
Department for Education,DEPARTMENT FOR EDUCATION,01/02/2018,ICT,Digital and Technology Group,VODAFONE CORPORATE,1041024174,10.00,Telecoms facilities and services - mobiles and pagers
Department for Education,DEPARTMENT FOR EDUCATION,01/02/2018,ICT,Digital and Technology Group,VODAFONE CORPORATE,1041024174,10.00,Telecoms facilities and services - mobiles and pagers
Department for Education,DEPARTMENT FOR EDUCATION,01/02/2018,ICT,Digital and Technology Group,VODAFONE CORPORATE,1041024174,10.00,Telecoms facilities and services - mobiles and pagers
Department for Education,DEPARTMENT FOR EDUCATION,01/02/2018,ICT,Digital and Technology Group,VODAFONE CORPORATE,1041024174,10.00,Telecoms facilities and services - mobiles and pagers
Department for Education,DEPARTMENT FOR EDUCATION,01/02/2018,ICT,Digital and Technology Group,VODAFONE CORPORATE,1041024174,10.00,Telecoms facilities and services - mobiles and pagers
Department for Education,DEPARTMENT FOR EDUCATION,01/02/2018,ICT,Digital and Technology Group,VODAFONE CORPORATE,1041024174,10.00,Telecoms facilities and services - mobiles and pagers
Department for Education,DEPARTMENT FOR EDUCATION,01/02/2018,ICT,Digital and Technology Group,VODAFONE CORPORATE,1041024174,10.09,Telecoms facilities and services - mobiles and pagers
Department for Education,DEPARTMENT FOR EDUCATION,01/02/2018,ICT,Digital and Technology Group,VODAFONE CORPORATE,1041024174,10.00,Telecoms facilities and services - mobiles and pagers
Department for Education,DEPARTMENT FOR EDUCATION,01/02/2018,ICT,Digital and Technology Group,VODAFONE CORPORATE,1041024174,10.00,Telecoms facilities and services - mobiles and pagers
Department for Education,DEPARTMENT FOR EDUCATION,01/02/2018,ICT,Digital and Technology Group,VODAFONE CORPORATE,1041024174,10.00,Telecoms facilities and services - mobiles and pagers
Department for Education,DEPARTMENT FOR EDUCATION,01/02/2018,ICT,Digital and Technology Group,VODAFONE CORPORATE,1041024174,10.00,Telecoms facilities and services - mobiles and pagers
Department for Education,DEPARTMENT FOR EDUCATION,01/02/2018,ICT,Digital and Technology Group,VODAFONE CORPORATE,1041024174,10.00,Telecoms facilities and services - mobiles and pagers
Department for Education,DEPARTMENT FOR EDUCATION,01/02/2018,ICT,Digital and Technology Group,VODAFONE CORPORATE,1041024174,10.00,Telecoms facilities and services - mobiles and pagers
Department for Education,DEPARTMENT FOR EDUCATION,01/02/2018,ICT,Digital and Technology Group,VODAFONE CORPORATE,1041024174,10.00,Telecoms facilities and services - mobiles and pagers
Department for Education,DEPARTMENT FOR EDUCATION,01/02/2018,ICT,Digital and Technology Group,VODAFONE CORPORATE,1041024174,10.00,Telecoms facilities and services - mobiles and pagers
Department for Education,DEPARTMENT FOR EDUCATION,01/02/2018,ICT,Digital and Technology Group,VODAFONE CORPORATE,1041024174,10.00,Telecoms facilities and services - mobiles and pagers
Department for Education,DEPARTMENT FOR EDUCATION,01/02/2018,ICT,Digital and Technology Group,VODAFONE CORPORATE,1041024174,10.00,Telecoms facilities and services - mobiles and pagers
Department for Education,DEPARTMENT FOR EDUCATION,01/02/2018,ICT,Digital and Technology Group,VODAFONE CORPORATE,1041024174,10.00,Telecoms facilities and services - mobiles and pagers
Department for Education,DEPARTMENT FOR EDUCATION,01/02/2018,ICT,Digital and Technology Group,VODAFONE CORPORATE,1041024174,10.00,Telecoms facilities and services - mobiles and pagers
Department for Education,DEPARTMENT FOR EDUCATION,01/02/2018,ICT,Digital and Technology Group,VODAFONE CORPORATE,1041024174,12.00,Telecoms facilities and services - mobiles and pagers
Department for Education,DEPARTMENT FOR EDUCATION,01/02/2018,ICT,Digital and Technology Group,VODAFONE CORPORATE,1041024174,12.00,Telecoms facilities and services - mobiles and pagers
Department for Education,DEPARTMENT FOR EDUCATION,01/02/2018,ICT,Digital and Technology Group,VODAFONE CORPORATE,1041024174,1.55,Telecoms facilities and services - mobiles and pagers
Department for Education,DEPARTMENT FOR EDUCATION,01/02/2018,ICT,Digital and Technology Group,VODAFONE CORPORATE,1041024174,12.00,Telecoms facilities and services - mobiles and pagers
Department for Education,DEPARTMENT FOR EDUCATION,01/02/2018,ICT,Digital and Technology Group,VODAFONE CORPORATE,1041024174,12.00,Telecoms facilities and services - mobiles and pagers
Department for Education,DEPARTMENT FOR EDUCATION,01/02/2018,ICT,Digital and Technology Group,VODAFONE CORPORATE,1041024174,12.00,Telecoms facilities and services - mobiles and pagers
Department for Education,DEPARTMENT FOR EDUCATION,01/02/2018,ICT,Digital and Technology Group,VODAFONE CORPORATE,1041024174,12.00,Telecoms facilities and services - mobiles and pagers
Department for Education,DEPARTMENT FOR EDUCATION,01/02/2018,ICT,Digital and Technology Group,VODAFONE CORPORATE,1041024174,10.00,Telecoms facilities and services - mobiles and pagers
Department for Education,DEPARTMENT FOR EDUCATION,01/02/2018,ICT,Digital and Technology Group,VODAFONE CORPORATE,1041024174,10.00,Telecoms facilities and services - mobiles and pagers
Department for Education,DEPARTMENT FOR EDUCATION,01/02/2018,ICT,Digital and Technology Group,VODAFONE CORPORATE,1041024174,12.00,Telecoms facilities and services - mobiles and pagers
Department for Education,DEPARTMENT FOR EDUCATION,01/02/2018,ICT,Digital and Technology Group,VODAFONE CORPORATE,1041024174,10.00,Telecoms facilities and services - mobiles and pagers
Department for Education,DEPARTMENT FOR EDUCATION,01/02/2018,ICT,Digital and Technology Group,VODAFONE CORPORATE,1041024174,12.00,Telecoms facilities and services - mobiles and pagers
Department for Education,DEPARTMENT FOR EDUCATION,01/02/2018,ICT,Digital and Technology Group,VODAFONE CORPORATE,1041024174,4.26,Telecoms facilities and services - mobiles and pagers
Department for Education,DEPARTMENT FOR EDUCATION,01/02/2018,ICT,Digital and Technology Group,VODAFONE CORPORATE,1041024174,12.00,Telecoms facilities and services - mobiles and pagers
Department for Education,DEPARTMENT FOR EDUCATION,01/02/2018,ICT,Digital and Technology Group,VODAFONE CORPORATE,1041024174,12.00,Telecoms facilities and services - mobiles and pagers
Department for Education,DEPARTMENT FOR EDUCATION,01/02/2018,ICT,Digital and Technology Group,VODAFONE CORPORATE,1041024174,10.00,Telecoms facilities and services - mobiles and pagers
Department for Education,DEPARTMENT FOR EDUCATION,01/02/2018,ICT,Digital and Technology Group,VODAFONE CORPORATE,1041024174,10.00,Telecoms facilities and services - mobiles and pagers
Department for Education,DEPARTMENT FOR EDUCATION,01/02/2018,ICT,Digital and Technology Group,VODAFONE CORPORATE,1041024174,10.00,Telecoms facilities and services - mobiles and pagers
Department for Education,DEPARTMENT FOR EDUCATION,01/02/2018,ICT,Digital and Technology Group,VODAFONE CORPORATE,1041024174,10.00,Telecoms facilities and services - mobiles and pagers
Department for Education,DEPARTMENT FOR EDUCATION,01/02/2018,ICT,Digital and Technology Group,VODAFONE CORPORATE,1041024174,10.00,Telecoms facilities and services - mobiles and pagers
Department for Education,DEPARTMENT FOR EDUCATION,01/02/2018,ICT,Digital and Technology Group,VODAFONE CORPORATE,1041024174,10.00,Telecoms facilities and services - mobiles and pagers
Department for Education,DEPARTMENT FOR EDUCATION,01/02/2018,ICT,Digital and Technology Group,VODAFONE CORPORATE,1041024174,3.23,Telecoms facilities and services - mobiles and pagers
Department for Education,DEPARTMENT FOR EDUCATION,01/02/2018,ICT,Digital and Technology Group,VODAFONE CORPORATE,1041024174,10.00,Telecoms facilities and services - mobiles and pagers
Department for Education,DEPARTMENT FOR EDUCATION,01/02/2018,ICT,Digital and Technology Group,VODAFONE CORPORATE,1041024174,10.00,Telecoms facilities and services - mobiles and pagers
Department for Education,DEPARTMENT FOR EDUCATION,01/02/2018,ICT,Digital and Technology Group,VODAFONE CORPORATE,1041024174,10.00,Telecoms facilities and services - mobiles and pagers
Department for Education,DEPARTMENT FOR EDUCATION,01/02/2018,ICT,Digital and Technology Group,VODAFONE CORPORATE,1041024174,10.00,Telecoms facilities and services - mobiles and pagers
Department for Education,DEPARTMENT FOR EDUCATION,01/02/2018,ICT,Digital and Technology Group,VODAFONE CORPORATE,1041024174,10.00,Telecoms facilities and services - mobiles and pagers
Department for Education,DEPARTMENT FOR EDUCATION,01/02/2018,ICT,Digital and Technology Group,VODAFONE CORPORATE,1041024174,10.00,Telecoms facilities and services - mobiles and pagers
Department for Education,DEPARTMENT FOR EDUCATION,01/02/2018,ICT,Digital and Technology Group,VODAFONE CORPORATE,1041024174,10.00,Telecoms facilities and services - mobiles and pagers
Department for Education,DEPARTMENT FOR EDUCATION,01/02/2018,ICT,Digital and Technology Group,VODAFONE CORPORATE,1041024174,10.00,Telecoms facilities and services - mobiles and pagers
Department for Education,DEPARTMENT FOR EDUCATION,01/02/2018,ICT,Digital and Technology Group,VODAFONE CORPORATE,1041024174,10.00,Telecoms facilities and services - mobiles and pagers
Department for Education,DEPARTMENT FOR EDUCATION,01/02/2018,ICT,Digital and Technology Group,VODAFONE CORPORATE,1041024174,12.00,Telecoms facilities and services - mobiles and pagers
Department for Education,DEPARTMENT FOR EDUCATION,01/02/2018,ICT,Digital and Technology Group,VODAFONE CORPORATE,1041024174,10.00,Telecoms facilities and services - mobiles and pagers
Department for Education,DEPARTMENT FOR EDUCATION,01/02/2018,ICT,Digital and Technology Group,VODAFONE CORPORATE,1041024174,10.00,Telecoms facilities and services - mobiles and pagers
Department for Education,DEPARTMENT FOR EDUCATION,01/02/2018,ICT,Digital and Technology Group,VODAFONE CORPORATE,1041024174,10.00,Telecoms facilities and services - mobiles and pagers
Department for Education,DEPARTMENT FOR EDUCATION,01/02/2018,ICT,Digital and Technology Group,VODAFONE CORPORATE,1041024174,10.00,Telecoms facilities and services - mobiles and pagers
Department for Education,DEPARTMENT FOR EDUCATION,01/02/2018,ICT,Digital and Technology Group,VODAFONE CORPORATE,1041024174,10.70,Telecoms facilities and services - mobiles and pagers
Department for Education,DEPARTMENT FOR EDUCATION,01/02/2018,ICT,Digital and Technology Group,VODAFONE CORPORATE,1041024174,10.00,Telecoms facilities and services - mobiles and pagers
Department for Education,DEPARTMENT FOR EDUCATION,01/02/2018,ICT,Digital and Technology Group,VODAFONE CORPORATE,1041024174,10.00,Telecoms facilities and services - mobiles and pagers
Department for Education,DEPARTMENT FOR EDUCATION,01/02/2018,ICT,Digital and Technology Group,VODAFONE CORPORATE,1041024174,10.00,Telecoms facilities and services - mobiles and pagers
Department for Education,DEPARTMENT FOR EDUCATION,01/02/2018,ICT,Digital and Technology Group,VODAFONE CORPORATE,1041024174,12.50,Telecoms facilities and services - mobiles and pagers
Department for Education,DEPARTMENT FOR EDUCATION,01/02/2018,ICT,Digital and Technology Group,VODAFONE CORPORATE,1041024174,12.00,Telecoms facilities and services - mobiles and pagers
Department for Education,DEPARTMENT FOR EDUCATION,01/02/2018,ICT,Digital and Technology Group,VODAFONE CORPORATE,1041024174,10.00,Telecoms facilities and services - mobiles and pagers
Department for Education,DEPARTMENT FOR EDUCATION,01/02/2018,ICT,Digital and Technology Group,VODAFONE CORPORATE,1041024174,10.00,Telecoms facilities and services - mobiles and pagers
Department for Education,DEPARTMENT FOR EDUCATION,01/02/2018,ICT,Digital and Technology Group,VODAFONE CORPORATE,1041024174,10.00,Telecoms facilities and services - mobiles and pagers
Department for Education,DEPARTMENT FOR EDUCATION,01/02/2018,ICT,Digital and Technology Group,VODAFONE CORPORATE,1041024174,10.00,Telecoms facilities and services - mobiles and pagers
Department for Education,DEPARTMENT FOR EDUCATION,01/02/2018,ICT,Digital and Technology Group,VODAFONE CORPORATE,1041024174,10.00,Telecoms facilities and services - mobiles and pagers
Department for Education,DEPARTMENT FOR EDUCATION,01/02/2018,ICT,Digital and Technology Group,VODAFONE CORPORATE,1041024174,5.48,Telecoms facilities and services - mobiles and pagers
Department for Education,DEPARTMENT FOR EDUCATION,01/02/2018,ICT,Digital and Technology Group,VODAFONE CORPORATE,1041024174,10.00,Telecoms facilities and services - mobiles and pagers
Department for Education,DEPARTMENT FOR EDUCATION,01/02/2018,ICT,Digital and Technology Group,VODAFONE CORPORATE,1041024174,12.50,Telecoms facilities and services - mobiles and pagers
Department for Education,DEPARTMENT FOR EDUCATION,01/02/2018,ICT,Digital and Technology Group,VODAFONE CORPORATE,1041024174,10.00,Telecoms facilities and services - mobiles and pagers
Department for Education,DEPARTMENT FOR EDUCATION,01/02/2018,ICT,Digital and Technology Group,VODAFONE CORPORATE,1041024174,10.00,Telecoms facilities and services - mobiles and pagers
Department for Education,DEPARTMENT FOR EDUCATION,01/02/2018,ICT,Digital and Technology Group,VODAFONE CORPORATE,1041024174,12.50,Telecoms facilities and services - mobiles and pagers
Department for Education,DEPARTMENT FOR EDUCATION,01/02/2018,ICT,Digital and Technology Group,VODAFONE CORPORATE,1041024174,10.00,Telecoms facilities and services - mobiles and pagers
Department for Education,DEPARTMENT FOR EDUCATION,01/02/2018,ICT,Digital and Technology Group,VODAFONE CORPORATE,1041024174,10.75,Telecoms facilities and services - mobiles and pagers
Department for Education,DEPARTMENT FOR EDUCATION,01/02/2018,ICT,Digital and Technology Group,VODAFONE CORPORATE,1041024174,10.00,Telecoms facilities and services - mobiles and pagers
Department for Education,DEPARTMENT FOR EDUCATION,01/02/2018,ICT,Digital and Technology Group,VODAFONE CORPORATE,1041024174,10.00,Telecoms facilities and services - mobiles and pagers
Department for Education,DEPARTMENT FOR EDUCATION,01/02/2018,ICT,Digital and Technology Group,VODAFONE CORPORATE,1041024174,10.00,Telecoms facilities and services - mobiles and pagers
Department for Education,DEPARTMENT FOR EDUCATION,01/02/2018,ICT,Digital and Technology Group,VODAFONE CORPORATE,1041024174,10.00,Telecoms facilities and services - mobiles and pagers
Department for Education,DEPARTMENT FOR EDUCATION,01/02/2018,ICT,Digital and Technology Group,VODAFONE CORPORATE,1041024174,10.08,Telecoms facilities and services - mobiles and pagers
Department for Education,DEPARTMENT FOR EDUCATION,01/02/2018,ICT,Digital and Technology Group,VODAFONE CORPORATE,1041024174,10.74,Telecoms facilities and services - mobiles and pagers
Department for Education,DEPARTMENT FOR EDUCATION,01/02/2018,ICT,Digital and Technology Group,VODAFONE CORPORATE,1041024174,18.10,Telecoms facilities and services - mobiles and pagers
Department for Education,DEPARTMENT FOR EDUCATION,01/02/2018,ICT,Digital and Technology Group,VODAFONE CORPORATE,1041024174,10.00,Telecoms facilities and services - mobiles and pagers
Department for Education,DEPARTMENT FOR EDUCATION,01/02/2018,ICT,Digital and Technology Group,VODAFONE CORPORATE,1041024174,10.00,Telecoms facilities and services - mobiles and pagers
Department for Education,DEPARTMENT FOR EDUCATION,01/02/2018,ICT,Digital and Technology Group,VODAFONE CORPORATE,1041024174,10.00,Telecoms facilities and services - mobiles and pagers
Department for Education,DEPARTMENT FOR EDUCATION,01/02/2018,ICT,Digital and Technology Group,VODAFONE CORPORATE,1041024174,12.00,Telecoms facilities and services - mobiles and pagers
Department for Education,DEPARTMENT FOR EDUCATION,01/02/2018,ICT,Digital and Technology Group,VODAFONE CORPORATE,1041024174,12.00,Telecoms facilities and services - mobiles and pagers
Department for Education,DEPARTMENT FOR EDUCATION,01/02/2018,ICT,Digital and Technology Group,VODAFONE CORPORATE,1041024174,12.00,Telecoms facilities and services - mobiles and pagers
Department for Education,DEPARTMENT FOR EDUCATION,01/02/2018,ICT,Digital and Technology Group,VODAFONE CORPORATE,1041024174,5.49,Telecoms facilities and services - mobiles and pagers
Department for Education,DEPARTMENT FOR EDUCATION,01/02/2018,ICT,Digital and Technology Group,VODAFONE CORPORATE,1041024174,10.00,Telecoms facilities and services - mobiles and pagers
Department for Education,DEPARTMENT FOR EDUCATION,01/02/2018,ICT,Digital and Technology Group,VODAFONE CORPORATE,1041024174,10.00,Telecoms facilities and services - mobiles and pagers
Department for Education,DEPARTMENT FOR EDUCATION,01/02/2018,ICT,Digital and Technology Group,VODAFONE CORPORATE,1041024174,10.00,Telecoms facilities and services - mobiles and pagers
Department for Education,DEPARTMENT FOR EDUCATION,01/02/2018,ICT,Digital and Technology Group,VODAFONE CORPORATE,1041024174,10.00,Telecoms facilities and services - mobiles and pagers
Department for Education,DEPARTMENT FOR EDUCATION,01/02/2018,ICT,Digital and Technology Group,VODAFONE CORPORATE,1041024174,10.00,Telecoms facilities and services - mobiles and pagers
Department for Education,DEPARTMENT FOR EDUCATION,01/02/2018,ICT,Digital and Technology Group,VODAFONE CORPORATE,1041024174,10.00,Telecoms facilities and services - mobiles and pagers
Department for Education,DEPARTMENT FOR EDUCATION,01/02/2018,ICT,Digital and Technology Group,VODAFONE CORPORATE,1041024174,10.00,Telecoms facilities and services - mobiles and pagers
Department for Education,DEPARTMENT FOR EDUCATION,01/02/2018,ICT,Digital and Technology Group,VODAFONE CORPORATE,1041024174,10.00,Telecoms facilities and services - mobiles and pagers
Department for Education,DEPARTMENT FOR EDUCATION,01/02/2018,ICT,Digital and Technology Group,VODAFONE CORPORATE,1041024174,12.00,Telecoms facilities and services - mobiles and pagers
Department for Education,DEPARTMENT FOR EDUCATION,01/02/2018,ICT,Digital and Technology Group,VODAFONE CORPORATE,1041024174,12.00,Telecoms facilities and services - mobiles and pagers
Department for Education,DEPARTMENT FOR EDUCATION,01/02/2018,ICT,Digital and Technology Group,VODAFONE CORPORATE,1041024174,12.00,Telecoms facilities and services - mobiles and pagers
Department for Education,DEPARTMENT FOR EDUCATION,01/02/2018,ICT,Digital and Technology Group,VODAFONE CORPORATE,1041024174,12.00,Telecoms facilities and services - mobiles and pagers
Department for Education,DEPARTMENT FOR EDUCATION,01/02/2018,ICT,Digital and Technology Group,VODAFONE CORPORATE,1041024174,12.00,Telecoms facilities and services - mobiles and pagers
Department for Education,DEPARTMENT FOR EDUCATION,01/02/2018,ICT,Digital and Technology Group,VODAFONE CORPORATE,1041024174,12.00,Telecoms facilities and services - mobiles and pagers
Department for Education,DEPARTMENT FOR EDUCATION,01/02/2018,ICT,Digital and Technology Group,VODAFONE CORPORATE,1041024174,10.00,Telecoms facilities and services - mobiles and pagers
Department for Education,DEPARTMENT FOR EDUCATION,01/02/2018,ICT,Digital and Technology Group,VODAFONE CORPORATE,1041024174,10.00,Telecoms facilities and services - mobiles and pagers
Department for Education,DEPARTMENT FOR EDUCATION,01/02/2018,ICT,Digital and Technology Group,VODAFONE CORPORATE,1041024174,10.00,Telecoms facilities and services - mobiles and pagers
Department for Education,DEPARTMENT FOR EDUCATION,01/02/2018,ICT,Digital and Technology Group,VODAFONE CORPORATE,1041024174,10.00,Telecoms facilities and services - mobiles and pagers
Department for Education,DEPARTMENT FOR EDUCATION,01/02/2018,ICT,Digital and Technology Group,VODAFONE CORPORATE,1041024174,10.00,Telecoms facilities and services - mobiles and pagers
Department for Education,DEPARTMENT FOR EDUCATION,01/02/2018,ICT,Digital and Technology Group,VODAFONE CORPORATE,1041024174,10.45,Telecoms facilities and services - mobiles and pagers
Department for Education,DEPARTMENT FOR EDUCATION,01/02/2018,ICT,Digital and Technology Group,VODAFONE CORPORATE,1041024174,10.00,Telecoms facilities and services - mobiles and pagers
Department for Education,DEPARTMENT FOR EDUCATION,01/02/2018,ICT,Digital and Technology Group,VODAFONE CORPORATE,1041024174,10.00,Telecoms facilities and services - mobiles and pagers
Department for Education,DEPARTMENT FOR EDUCATION,01/02/2018,ICT,Digital and Technology Group,VODAFONE CORPORATE,1041024174,10.00,Telecoms facilities and services - mobiles and pagers
Department for Education,DEPARTMENT FOR EDUCATION,01/02/2018,ICT,Digital and Technology Group,VODAFONE CORPORATE,1041024174,10.00,Telecoms facilities and services - mobiles and pagers
Department for Education,DEPARTMENT FOR EDUCATION,01/02/2018,ICT,Digital and Technology Group,VODAFONE CORPORATE,1041024174,10.00,Telecoms facilities and services - mobiles and pagers
Department for Education,DEPARTMENT FOR EDUCATION,01/02/2018,ICT,Digital and Technology Group,VODAFONE CORPORATE,1041024174,10.20,Telecoms facilities and services - mobiles and pagers
Department for Education,DEPARTMENT FOR EDUCATION,01/02/2018,ICT,Digital and Technology Group,VODAFONE CORPORATE,1041024174,12.00,Telecoms facilities and services - mobiles and pagers
Department for Education,DEPARTMENT FOR EDUCATION,01/02/2018,ICT,Digital and Technology Group,VODAFONE CORPORATE,1041024174,10.00,Telecoms facilities and services - mobiles and pagers
Department for Education,DEPARTMENT FOR EDUCATION,01/02/2018,ICT,Digital and Technology Group,VODAFONE CORPORATE,1041024174,10.00,Telecoms facilities and services - mobiles and pagers
Department for Education,DEPARTMENT FOR EDUCATION,01/02/2018,ICT,Digital and Technology Group,VODAFONE CORPORATE,1041024174,10.00,Telecoms facilities and services - mobiles and pagers
Department for Education,DEPARTMENT FOR EDUCATION,01/02/2018,ICT,Digital and Technology Group,VODAFONE CORPORATE,1041024174,10.00,Telecoms facilities and services - mobiles and pagers
Department for Education,DEPARTMENT FOR EDUCATION,01/02/2018,ICT,Digital and Technology Group,VODAFONE CORPORATE,1041024174,10.00,Telecoms facilities and services - mobiles and pagers
Department for Education,DEPARTMENT FOR EDUCATION,01/02/2018,ICT,Digital and Technology Group,VODAFONE CORPORATE,1041024174,10.00,Telecoms facilities and services - mobiles and pagers
Department for Education,DEPARTMENT FOR EDUCATION,01/02/2018,ICT,Digital and Technology Group,VODAFONE CORPORATE,1041024174,10.00,Telecoms facilities and services - mobiles and pagers
Department for Education,DEPARTMENT FOR EDUCATION,01/02/2018,ICT,Digital and Technology Group,VODAFONE CORPORATE,1041024174,10.00,Telecoms facilities and services - mobiles and pagers
Department for Education,DEPARTMENT FOR EDUCATION,01/02/2018,ICT,Digital and Technology Group,VODAFONE CORPORATE,1041024174,10.00,Telecoms facilities and services - mobiles and pagers
Department for Education,DEPARTMENT FOR EDUCATION,01/02/2018,ICT,Digital and Technology Group,VODAFONE CORPORATE,1041024174,10.00,Telecoms facilities and services - mobiles and pagers
Department for Education,DEPARTMENT FOR EDUCATION,01/02/2018,ICT,Digital and Technology Group,VODAFONE CORPORATE,1041024174,8.71,Telecoms facilities and services - mobiles and pagers
Department for Education,DEPARTMENT FOR EDUCATION,01/02/2018,ICT,Digital and Technology Group,VODAFONE CORPORATE,1041024174,10.00,Telecoms facilities and services - mobiles and pagers
Department for Education,DEPARTMENT FOR EDUCATION,01/02/2018,ICT,Digital and Technology Group,VODAFONE CORPORATE,1041024174,10.00,Telecoms facilities and services - mobiles and pagers
Department for Education,DEPARTMENT FOR EDUCATION,01/02/2018,ICT,Digital and Technology Group,VODAFONE CORPORATE,1041024174,10.74,Telecoms facilities and services - mobiles and pagers
Department for Education,DEPARTMENT FOR EDUCATION,01/02/2018,ICT,Digital and Technology Group,VODAFONE CORPORATE,1041024174,11.79,Telecoms facilities and services - mobiles and pagers
Department for Education,DEPARTMENT FOR EDUCATION,01/02/2018,ICT,Digital and Technology Group,VODAFONE CORPORATE,1041024174,10.00,Telecoms facilities and services - mobiles and pagers
Department for Education,DEPARTMENT FOR EDUCATION,01/02/2018,ICT,Digital and Technology Group,VODAFONE CORPORATE,1041024174,10.00,Telecoms facilities and services - mobiles and pagers
Department for Education,DEPARTMENT FOR EDUCATION,01/02/2018,ICT,Digital and Technology Group,VODAFONE CORPORATE,1041024174,10.00,Telecoms facilities and services - mobiles and pagers
Department for Education,DEPARTMENT FOR EDUCATION,01/02/2018,ICT,Digital and Technology Group,VODAFONE CORPORATE,1041024174,10.00,Telecoms facilities and services - mobiles and pagers
Department for Education,DEPARTMENT FOR EDUCATION,01/02/2018,ICT,Digital and Technology Group,VODAFONE CORPORATE,1041024174,10.00,Telecoms facilities and services - mobiles and pagers
Department for Education,DEPARTMENT FOR EDUCATION,01/02/2018,ICT,Digital and Technology Group,VODAFONE CORPORATE,1041024174,10.00,Telecoms facilities and services - mobiles and pagers
Department for Education,DEPARTMENT FOR EDUCATION,01/02/2018,ICT,Digital and Technology Group,VODAFONE CORPORATE,1041024174,10.00,Telecoms facilities and services - mobiles and pagers
Department for Education,DEPARTMENT FOR EDUCATION,01/02/2018,ICT,Digital and Technology Group,VODAFONE CORPORATE,1041024174,11.02,Telecoms facilities and services - mobiles and pagers
Department for Education,DEPARTMENT FOR EDUCATION,01/02/2018,ICT,Digital and Technology Group,VODAFONE CORPORATE,1041024174,10.00,Telecoms facilities and services - mobiles and pagers
Department for Education,DEPARTMENT FOR EDUCATION,01/02/2018,ICT,Digital and Technology Group,VODAFONE CORPORATE,1041024174,10.00,Telecoms facilities and services - mobiles and pagers
Department for Education,DEPARTMENT FOR EDUCATION,01/02/2018,ICT,Digital and Technology Group,VODAFONE CORPORATE,1041024174,12.00,Telecoms facilities and services - mobiles and pagers
Department for Education,DEPARTMENT FOR EDUCATION,01/02/2018,ICT,Digital and Technology Group,VODAFONE CORPORATE,1041024174,10.00,Telecoms facilities and services - mobiles and pagers
Department for Education,DEPARTMENT FOR EDUCATION,01/02/2018,ICT,Digital and Technology Group,VODAFONE CORPORATE,1041024174,10.00,Telecoms facilities and services - mobiles and pagers
Department for Education,DEPARTMENT FOR EDUCATION,01/02/2018,ICT,Digital and Technology Group,VODAFONE CORPORATE,1041024174,10.00,Telecoms facilities and services - mobiles and pagers
Department for Education,DEPARTMENT FOR EDUCATION,01/02/2018,ICT,Digital and Technology Group,VODAFONE CORPORATE,1041024174,10.00,Telecoms facilities and services - mobiles and pagers
Department for Education,DEPARTMENT FOR EDUCATION,01/02/2018,ICT,Digital and Technology Group,VODAFONE CORPORATE,1041024174,12.00,Telecoms facilities and services - mobiles and pagers
Department for Education,DEPARTMENT FOR EDUCATION,01/02/2018,ICT,Digital and Technology Group,VODAFONE CORPORATE,1041024174,10.00,Telecoms facilities and services - mobiles and pagers
Department for Education,DEPARTMENT FOR EDUCATION,01/02/2018,ICT,Digital and Technology Group,VODAFONE CORPORATE,1041024174,12.00,Telecoms facilities and services - mobiles and pagers
Department for Education,DEPARTMENT FOR EDUCATION,01/02/2018,ICT,Digital and Technology Group,VODAFONE CORPORATE,1041024174,10.00,Telecoms facilities and services - mobiles and pagers
Department for Education,DEPARTMENT FOR EDUCATION,01/02/2018,ICT,Digital and Technology Group,VODAFONE CORPORATE,1041024174,10.00,Telecoms facilities and services - mobiles and pagers
Department for Education,DEPARTMENT FOR EDUCATION,01/02/2018,ICT,Digital and Technology Group,VODAFONE CORPORATE,1041024174,9.00,Telecoms facilities and services - mobiles and pagers
Department for Education,DEPARTMENT FOR EDUCATION,01/02/2018,ICT,Digital and Technology Group,VODAFONE CORPORATE,1041024174,9.00,Telecoms facilities and services - mobiles and pagers
Department for Education,DEPARTMENT FOR EDUCATION,01/02/2018,ICT,Digital and Technology Group,VODAFONE CORPORATE,1041024174,10.00,Telecoms facilities and services - mobiles and pagers
Department for Education,DEPARTMENT FOR EDUCATION,01/02/2018,ICT,Digital and Technology Group,VODAFONE CORPORATE,1041024174,5.48,Telecoms facilities and services - mobiles and pagers
Department for Education,DEPARTMENT FOR EDUCATION,01/02/2018,ICT,Digital and Technology Group,VODAFONE CORPORATE,1041024174,12.00,Telecoms facilities and services - mobiles and pagers
Department for Education,DEPARTMENT FOR EDUCATION,01/02/2018,ICT,Digital and Technology Group,VODAFONE CORPORATE,1041024174,10.00,Telecoms facilities and services - mobiles and pagers
Department for Education,DEPARTMENT FOR EDUCATION,01/02/2018,ICT,Digital and Technology Group,VODAFONE CORPORATE,1041024174,10.00,Telecoms facilities and services - mobiles and pagers
Department for Education,DEPARTMENT FOR EDUCATION,01/02/2018,ICT,Digital and Technology Group,VODAFONE CORPORATE,1041024174,10.00,Telecoms facilities and services - mobiles and pagers
Department for Education,DEPARTMENT FOR EDUCATION,01/02/2018,ICT,Digital and Technology Group,VODAFONE CORPORATE,1041024174,8.71,Telecoms facilities and services - mobiles and pagers
Department for Education,DEPARTMENT FOR EDUCATION,01/02/2018,ICT,Digital and Technology Group,VODAFONE CORPORATE,1041024174,10.00,Telecoms facilities and services - mobiles and pagers
Department for Education,DEPARTMENT FOR EDUCATION,01/02/2018,ICT,Digital and Technology Group,VODAFONE CORPORATE,1041024174,10.00,Telecoms facilities and services - mobiles and pagers
Department for Education,DEPARTMENT FOR EDUCATION,01/02/2018,ICT,Digital and Technology Group,VODAFONE CORPORATE,1041024174,75.00,Telecoms facilities and services - mobiles and pagers
Department for Education,DEPARTMENT FOR EDUCATION,01/02/2018,ICT,Digital and Technology Group,VODAFONE CORPORATE,1041024174,12.00,Telecoms facilities and services - mobiles and pagers
Department for Education,DEPARTMENT FOR EDUCATION,01/02/2018,ICT,Digital and Technology Group,VODAFONE CORPORATE,1041024174,10.00,Telecoms facilities and services - mobiles and pagers
Department for Education,DEPARTMENT FOR EDUCATION,01/02/2018,ICT,Digital and Technology Group,VODAFONE CORPORATE,1041024174,10.00,Telecoms facilities and services - mobiles and pagers
Department for Education,DEPARTMENT FOR EDUCATION,01/02/2018,ICT,Digital and Technology Group,VODAFONE CORPORATE,1041024174,10.00,Telecoms facilities and services - mobiles and pagers
Department for Education,DEPARTMENT FOR EDUCATION,01/02/2018,ICT,Digital and Technology Group,VODAFONE CORPORATE,1041024174,10.00,Telecoms facilities and services - mobiles and pagers
Department for Education,DEPARTMENT FOR EDUCATION,01/02/2018,ICT,Digital and Technology Group,VODAFONE CORPORATE,1041024174,10.00,Telecoms facilities and services - mobiles and pagers
Department for Education,DEPARTMENT FOR EDUCATION,01/02/2018,ICT,Digital and Technology Group,VODAFONE CORPORATE,1041024174,10.00,Telecoms facilities and services - mobiles and pagers
Department for Education,DEPARTMENT FOR EDUCATION,01/02/2018,ICT,Digital and Technology Group,VODAFONE CORPORATE,1041024174,10.00,Telecoms facilities and services - mobiles and pagers
Department for Education,DEPARTMENT FOR EDUCATION,01/02/2018,ICT,Digital and Technology Group,VODAFONE CORPORATE,1041024174,10.12,Telecoms facilities and services - mobiles and pagers
Department for Education,DEPARTMENT FOR EDUCATION,01/02/2018,ICT,Digital and Technology Group,VODAFONE CORPORATE,1041024174,10.00,Telecoms facilities and services - mobiles and pagers
Department for Education,DEPARTMENT FOR EDUCATION,01/02/2018,ICT,Digital and Technology Group,VODAFONE CORPORATE,1041024174,10.00,Telecoms facilities and services - mobiles and pagers
Department for Education,DEPARTMENT FOR EDUCATION,01/02/2018,ICT,Digital and Technology Group,VODAFONE CORPORATE,1041024174,10.00,Telecoms facilities and services - mobiles and pagers
Department for Education,DEPARTMENT FOR EDUCATION,01/02/2018,ICT,Digital and Technology Group,VODAFONE CORPORATE,1041024174,10.00,Telecoms facilities and services - mobiles and pagers
Department for Education,DEPARTMENT FOR EDUCATION,01/02/2018,ICT,Digital and Technology Group,VODAFONE CORPORATE,1041024174,11.25,Telecoms facilities and services - mobiles and pagers
Department for Education,DEPARTMENT FOR EDUCATION,01/02/2018,ICT,Digital and Technology Group,VODAFONE CORPORATE,1041024174,10.00,Telecoms facilities and services - mobiles and pagers
Department for Education,DEPARTMENT FOR EDUCATION,01/02/2018,ICT,Digital and Technology Group,VODAFONE CORPORATE,1041024174,12.00,Telecoms facilities and services - mobiles and pagers
Department for Education,DEPARTMENT FOR EDUCATION,01/02/2018,ICT,Digital and Technology Group,VODAFONE CORPORATE,1041024174,12.00,Telecoms facilities and services - mobiles and pagers
Department for Education,DEPARTMENT FOR EDUCATION,01/02/2018,ICT,Digital and Technology Group,VODAFONE CORPORATE,1041024174,12.00,Telecoms facilities and services - mobiles and pagers
Department for Education,DEPARTMENT FOR EDUCATION,01/02/2018,ICT,Digital and Technology Group,VODAFONE CORPORATE,1041024174,12.00,Telecoms facilities and services - mobiles and pagers
Department for Education,DEPARTMENT FOR EDUCATION,01/02/2018,ICT,Digital and Technology Group,VODAFONE CORPORATE,1041024174,12.00,Telecoms facilities and services - mobiles and pagers
Department for Education,DEPARTMENT FOR EDUCATION,01/02/2018,ICT,Digital and Technology Group,VODAFONE CORPORATE,1041024174,10.00,Telecoms facilities and services - mobiles and pagers
Department for Education,DEPARTMENT FOR EDUCATION,01/02/2018,ICT,Digital and Technology Group,VODAFONE CORPORATE,1041024174,10.00,Telecoms facilities and services - mobiles and pagers
Department for Education,DEPARTMENT FOR EDUCATION,01/02/2018,ICT,Digital and Technology Group,VODAFONE CORPORATE,1041024174,10.00,Telecoms facilities and services - mobiles and pagers
Department for Education,DEPARTMENT FOR EDUCATION,01/02/2018,ICT,Digital and Technology Group,VODAFONE CORPORATE,1041024174,10.00,Telecoms facilities and services - mobiles and pagers
Department for Education,DEPARTMENT FOR EDUCATION,01/02/2018,ICT,Digital and Technology Group,VODAFONE CORPORATE,1041024174,10.00,Telecoms facilities and services - mobiles and pagers
Department for Education,DEPARTMENT FOR EDUCATION,01/02/2018,ICT,Digital and Technology Group,VODAFONE CORPORATE,1041024174,10.00,Telecoms facilities and services - mobiles and pagers
Department for Education,DEPARTMENT FOR EDUCATION,01/02/2018,ICT,Digital and Technology Group,VODAFONE CORPORATE,1041024174,10.00,Telecoms facilities and services - mobiles and pagers
Department for Education,DEPARTMENT FOR EDUCATION,01/02/2018,ICT,Digital and Technology Group,VODAFONE CORPORATE,1041024174,10.50,Telecoms facilities and services - mobiles and pagers
Department for Education,DEPARTMENT FOR EDUCATION,01/02/2018,ICT,Digital and Technology Group,VODAFONE CORPORATE,1041024174,10.00,Telecoms facilities and services - mobiles and pagers
Department for Education,DEPARTMENT FOR EDUCATION,01/02/2018,ICT,Digital and Technology Group,VODAFONE CORPORATE,1041024174,10.00,Telecoms facilities and services - mobiles and pagers
Department for Education,DEPARTMENT FOR EDUCATION,01/02/2018,ICT,Digital and Technology Group,VODAFONE CORPORATE,1041024174,10.58,Telecoms facilities and services - mobiles and pagers
Department for Education,DEPARTMENT FOR EDUCATION,01/02/2018,ICT,Digital and Technology Group,VODAFONE CORPORATE,1041024174,10.00,Telecoms facilities and services - mobiles and pagers
Department for Education,DEPARTMENT FOR EDUCATION,01/02/2018,ICT,Digital and Technology Group,VODAFONE CORPORATE,1041024174,10.00,Telecoms facilities and services - mobiles and pagers
Department for Education,DEPARTMENT FOR EDUCATION,01/02/2018,ICT,Digital and Technology Group,VODAFONE CORPORATE,1041024174,10.00,Telecoms facilities and services - mobiles and pagers
Department for Education,DEPARTMENT FOR EDUCATION,01/02/2018,ICT,Digital and Technology Group,VODAFONE CORPORATE,1041024174,8.71,Telecoms facilities and services - mobiles and pagers
Department for Education,DEPARTMENT FOR EDUCATION,01/02/2018,ICT,Digital and Technology Group,VODAFONE CORPORATE,1041024174,16.30,Telecoms facilities and services - mobiles and pagers
Department for Education,DEPARTMENT FOR EDUCATION,01/02/2018,ICT,Digital and Technology Group,VODAFONE CORPORATE,1041024174,10.00,Telecoms facilities and services - mobiles and pagers
Department for Education,DEPARTMENT FOR EDUCATION,01/02/2018,ICT,Digital and Technology Group,VODAFONE CORPORATE,1041024174,10.00,Telecoms facilities and services - mobiles and pagers
Department for Education,DEPARTMENT FOR EDUCATION,01/02/2018,ICT,Digital and Technology Group,VODAFONE CORPORATE,1041024174,10.00,Telecoms facilities and services - mobiles and pagers
Department for Education,DEPARTMENT FOR EDUCATION,01/02/2018,ICT,Digital and Technology Group,VODAFONE CORPORATE,1041024174,10.00,Telecoms facilities and services - mobiles and pagers
Department for Education,DEPARTMENT FOR EDUCATION,01/02/2018,ICT,Digital and Technology Group,VODAFONE CORPORATE,1041024174,10.00,Telecoms facilities and services - mobiles and pagers
Department for Education,DEPARTMENT FOR EDUCATION,01/02/2018,ICT,Digital and Technology Group,VODAFONE CORPORATE,1041024174,10.00,Telecoms facilities and services - mobiles and pagers
Department for Education,DEPARTMENT FOR EDUCATION,01/02/2018,ICT,Digital and Technology Group,VODAFONE CORPORATE,1041024174,10.00,Telecoms facilities and services - mobiles and pagers
Department for Education,DEPARTMENT FOR EDUCATION,01/02/2018,ICT,Digital and Technology Group,VODAFONE CORPORATE,1041024174,10.00,Telecoms facilities and services - mobiles and pagers
Department for Education,DEPARTMENT FOR EDUCATION,01/02/2018,ICT,Digital and Technology Group,VODAFONE CORPORATE,1041024174,10.00,Telecoms facilities and services - mobiles and pagers
Department for Education,DEPARTMENT FOR EDUCATION,01/02/2018,ICT,Digital and Technology Group,VODAFONE CORPORATE,1041024174,10.00,Telecoms facilities and services - mobiles and pagers
Department for Education,DEPARTMENT FOR EDUCATION,01/02/2018,ICT,Digital and Technology Group,VODAFONE CORPORATE,1041024174,10.00,Telecoms facilities and services - mobiles and pagers
Department for Education,DEPARTMENT FOR EDUCATION,01/02/2018,ICT,Digital and Technology Group,VODAFONE CORPORATE,1041024174,10.00,Telecoms facilities and services - mobiles and pagers
Department for Education,DEPARTMENT FOR EDUCATION,01/02/2018,ICT,Digital and Technology Group,VODAFONE CORPORATE,1041024174,10.00,Telecoms facilities and services - mobiles and pagers
Department for Education,DEPARTMENT FOR EDUCATION,01/02/2018,ICT,Digital and Technology Group,VODAFONE CORPORATE,1041024174,10.00,Telecoms facilities and services - mobiles and pagers
Department for Education,DEPARTMENT FOR EDUCATION,01/02/2018,ICT,Digital and Technology Group,VODAFONE CORPORATE,1041024174,11.64,Telecoms facilities and services - mobiles and pagers
Department for Education,DEPARTMENT FOR EDUCATION,01/02/2018,ICT,Digital and Technology Group,VODAFONE CORPORATE,1041024174,10.00,Telecoms facilities and services - mobiles and pagers
Department for Education,DEPARTMENT FOR EDUCATION,01/02/2018,ICT,Digital and Technology Group,VODAFONE CORPORATE,1041024174,12.00,Telecoms facilities and services - mobiles and pagers
Department for Education,DEPARTMENT FOR EDUCATION,01/02/2018,ICT,Digital and Technology Group,VODAFONE CORPORATE,1041024174,12.00,Telecoms facilities and services - mobiles and pagers
Department for Education,DEPARTMENT FOR EDUCATION,01/02/2018,ICT,Digital and Technology Group,VODAFONE CORPORATE,1041024174,12.00,Telecoms facilities and services - mobiles and pagers
